{"text_format":"1","workbook":"xlsx","n_sheets":6,"sheets":["021","Prestaciones 021","011 y  022 ","Hoja1","SP 031A","B 031"],"not_rendered":{"charts":0,"images":3,"macros":1,"external_links":2,"defined_names":4,"comments":0,"pivot_tables":0},"unopened":[],"bounds":{"document_bytes":16777216,"sheet_cells":100000,"rows_first":2000,"rows_last":500,"rows_between":2000,"halvings":0,"cell_chars":16384,"cell_head_chars":4096},"cells_cut":0,"cells_raw":0,"read":"whole","date_system":"1900"}

{"sheet":"021","index":0,"n_rows":33,"n_cols":22,"rows_kept":33,"cut":false,"hidden":false,"merged":[[9,5,12,5],[8,1,8,21],[9,21,12,21],[9,20,12,20],[11,15,12,15],[9,2,12,2],[9,3,12,3],[11,12,12,12],[9,7,12,7],[11,17,12,17],[5,1,5,20],[9,6,12,6],[9,13,12,13],[11,18,12,18],[9,9,9,12],[11,10,12,10],[11,9,12,9],[9,4,12,4],[9,8,12,8],[11,11,12,11],[11,14,12,14],[11,16,12,16],[10,11,10,12],[9,14,9,18],[9,19,12,19],[9,1,12,1],[31,15,31,19],[21,7,21,8],[29,15,29,19],[30,15,30,19],[29,8,29,12],[30,8,30,12],[31,8,31,12]]}
[null,null,null,null,null,null,null,null,null,null,null,null,null,null,null,null,null," "]
[]
[]
[]
[]
[null,"AUTORIDAD PARA EL MANEJO SUSTENTABLE DE LA CUENCA Y DEL LAGO DE AMATITLÁN\nNOMINA DE SUELDOS PERSONAL CONTRATADO BAJO EL  RENGLÓN 021 \"PERSONAL SUPERNUMERARIO\"  \nCORRESPONDIENTE A JUNIO DE 2021"]
[]
[]
[]
[null,"No.","CODIGO EMPLEADO","PUESTO","NIT","NOMBRE","Puesto Oficial","Fecha de\nIngreso","Fecha de \nIngreso","Devengado Mensual",null,null,null,"Total Devengado Mensual","Deducciones",null,null,null,null,"Total\nDeducciones","Líquido","Número de\nCuenta"]
[null,null,null,null,null,null,null,null,null,"Renglón 021","Renglón 026","Renglón 027",null,null,118,202,201,102,203,null,null,"CUENTA MONETARIA"]
[null,null,null,null,null,null,null,null,null,"Sueldo\nMensual","Bono \nProfesional","Bono \nMonetario","Bono \n66-2000",null,"Montepío","Fianza","IGSS","Amort. Bantrab","ISR"]
[null,null,null,null,null,null,null,null,null,null,null,26,27,null,"PROMEDIO POR 12 MESES",26,27]
[null,1,null,775401,null,"Jenniffer Rossana Díaz Contreras ","Encargada de Compras ","2021-01-07",null,8700,0,2000,250,{"$f":"J14+L14+M14","v":10950},{"$f":"(J14+L14)*15%","v":1605},{"$f":"(J14+L14)*1.344%","v":143.80799999999999},{"$f":"(J14+L14)*3%","v":321},null,249.99,{"$f":"O14+P14+Q14+S14","v":2319.7979999999998},{"$f":"N14-T14","v":8630.2020000000011}]
[null,2,null,1219451,null,"Marilyn Maria Fernanda Con Sosa ","Encargado de Cobro","2021-01-07",null,3000,0,1500,250,{"$f":"SUM(J15:M15)","v":4750},540,{"$f":"(J15+L15)*1.344%","v":60.480000000000004},{"$f":"(J15+L15)*3%","v":135},null,0,{"$f":"O15+P15+Q15+S15","v":735.48},4014.52]
[null,3,null,775402,null,"Jonnathan Rene Pernillo Salazar ","Encargado de Presupuesto ","2021-01-07",null,8200,0,2000,250,{"$f":"J16+L16+M16","v":10450},{"$f":"(J16+L16)*15%","v":1530},137.08799999999999,306,3390.44,229.54,{"$f":"O16+P16+Q16+R16+S16","v":5593.0680000000002},4856.9319999999998]
[null,4,990091724,775400,46905030,"Claudia Estela Reinoso Fuentes ","Encargada de Nomina","2021-03-02","2015-04-13",5300,0,2000,250,{"$f":"SUM(J17:M17)","v":7550},949,98.11,219,1527.84,74.19,{"$f":"SUM(O17:S17)","v":2868.14},4681.8600000000006]
[null,5,9901116935,1219521,"1208204K  ","Josseline Andrea Perez Herrarte ","Encargado de Caja Chica","2021-01-07","2015-05-04",4500,0,2000,250,6750,845,87.36,195,null,80.900000000000006,{"$f":"SUM(O18:S18)","v":1208.2600000000002},5541.74]
[null,6,9901227385,781020,26424169,"Sibia de Jesús Debroy Franco","Encargada de Bodega","2021-01-07","2015-05-04",3000,0,1500,250,{"$f":"J19+L19+M19","v":4750},{"$f":"(J19+L19)*12%","v":540},60.480000000000004,135,null,0,{"$f":"SUM(O19:S19)","v":735.48},4014.52,3164068218]
[null,7,9901349724,775405,null,"Claudia Maribel Duran Rosales","Encargada de Inventarios ","2021-01-07","2015-04-06",3000,0,1500,250,{"$f":"SUM(J20:M20)","v":4750},{"$f":"(J20+L20)*12%","v":540},60.480000000000004,135,null,0,{"$f":"SUM(O20:S20)","v":735.48},4014.52]
[null,8,9901349724,75416,null,"Jaime Orlando Velásquez Santizo ","Encargado de Tesorería ","2021-05-27","2015-04-06",4064.52,0,1741.94,290.32,{"$f":"SUM(J21:M21)","v":6096.78},696.77,78.040000000000006,174.19,null,24.4,{"$f":"SUM(O21:S21)","v":973.4},5123.38]
[null,null,null,null,null,null,null,null,null,{"$f":"SUM(J14:J21)","v":39764.519999999997},null,{"$f":"SUM(L14:L21)","v":14241.94},2040.32,56046.78,7245.77,725.846,1620.19,{"$f":"SUM(R14:R20)","v":4918.28},{"$f":"SUM(S14:S21)","v":659.02},{"$f":"SUM(T14:T21)","v":15169.105999999998},{"$f":"SUM(U14:U21)","v":40877.673999999999}]
[]
[]
[]
[]
[]
[]
[null,null,null,"Elaboró:",null,null,null,null,null,null,null,null,null,null,"Vo.Bo."]
[null,null,null,null,null,"Claudia Reinoso Fuentes ",null,null,null,null,null,null,null,null,null,"Edgar Rolando Zamora Ruiz"]
[null,null,null,null,null,"Encargada de Nómina",null,null,null,null,null,null,null,null,null,"Director Ejecutivo"]
[null,null,null,null,null,"AMSA",null,null,null,null,null,null,null,null,null,"AMSA"]
[null,null,null,null,null,null,null,null,null,null,null,null,null,null,null,null,null,null,null,null,"1/1"]

{"sheet":"Prestaciones 021","index":1,"n_rows":39,"n_cols":27,"rows_kept":39,"cut":false,"hidden":true,"merged":[[31,5,31,19],[31,23,31,25],[32,5,32,19],[32,23,32,25],[13,2,13,3],[13,16,13,17],[15,2,15,3],[15,4,15,17],[30,5,30,19],[30,23,30,25],[14,2,14,3],[14,16,14,17],[9,18,10,18],[9,21,12,21],[9,22,10,22],[9,23,10,23],[11,20,12,20],[11,22,12,22],[11,23,12,23],[11,18,12,18],[11,19,12,19],[9,19,10,19],[9,20,10,20],[11,24,12,24],[11,25,12,25],[9,16,12,17],[1,0,1,26],[2,0,2,26],[3,0,3,26],[5,2,5,3],[7,0,7,26],[8,0,8,26],[9,0,12,0],[9,1,12,1],[9,2,12,3],[9,4,12,4],[9,5,12,5],[9,24,10,25],[9,26,12,26]]}
[]
["NÓMINA ADICIONAL PARA PAGO DE PRESTACIONES "]
["RENGLÓN 022 \"PERSONAL POR CONTRATO\"  "]
[]
[]
[]
[]
["PAGO DE PRESTACIONES"]
["AGUINALDO, BONO VACACIONAL Y BONO 14 "]
["No.","Empleado","Puesto ",null,"Contrato","Fecha de \nIngreso",null,null,null,null,null,null,null,null,null,null,"Días Laborados en el Año",null,"RENGLÓN 022","RENGLÓN 026","RENGLON 27","Total Devengado Mensual","Renglón 071","Renglón 073","Renglón 072",null,"Líquido"]
[]
[null,null,null,null,null,null,null,null,null,null,null,null,null,null,null,null,null,null,"Sueldo Mensual","Bono Profesional","Bono            66-2000",null,"Aguinaldo","Bono Vacacional","Salarios Devengados","Bono 14"]
[]
[1,"Heber Amilcar Barrios de León","Encargado de Inventarios",null,"10-2016-022-AMSA","2017-06-13",null,null,{"$f":"(200/365)*(26+31+30+31+30+31+31+30+31+30+31)","v":181.91780821917808},{"$f":"#REF!+I14","v":{"$error":"#REF!"}},null,null,null,null,null,null,382,null,12000,375,250,{"$f":"SUM(S14:U14)","v":12625},{"$f":"12625*352/365","v":12175.342465753425},{"$f":"382/365*200","v":209.31506849315068},{"$f":"(12625*1)+(12625/31*30)","v":24842.741935483871},{"$f":"Y14/12","v":2070.2284946236559},{"$f":"W14+X14+Z14","v":14454.886028870233}]
[2,"Edgar Eduardo Pérez Cabrera","Encargado de Inventarios",null,"08-2017-021-AMSA","2017-01-01",null,null,{"$f":"(200/365)*(26+31+30+31+30+31+31+30+31+30+31)","v":181.91780821917808},{"$f":"#REF!+I15","v":{"$error":"#REF!"}},null,null,null,null,null,null,58,null,3000,1500,250,{"$f":"SUM(S15:U15)","v":4750},{"$f":"12625*352/365","v":12175.342465753425},{"$f":"382/365*200","v":209.31506849315068},{"$f":"(12625*1)+(12625/31*30)","v":24842.741935483871},{"$f":"Y15/12","v":2070.2284946236559},{"$f":"W15+X15+Z15","v":14454.886028870233}]
[null,null,null,null,"Totales",null,null,null,null,null,null,null,null,null,null,null,null,null,{"$f":"SUM(S14:S14)","v":12000},375,250,12625,{"$f":"SUM(W14)","v":12175.342465753425},{"$f":"SUM(X14)","v":209.31506849315068},{"$f":"SUM(Y14)","v":24842.741935483871},{"$f":"SUM(Z14)","v":2070.2284946236559},{"$f":"SUM(AA14:AA14)","v":14454.886028870233}]
[null,null,null,null,null,null,{"$f":"SUM(G16:G16)","v":0},{"$f":"SUM(#REF!)","v":{"$error":"#REF!"}},{"$f":"SUM(I14:I16)","v":363.83561643835617},{"$f":"SUM(J14:J16)","v":{"$error":"#REF!"}}]
["Al señor  Brian Antonio Archila Koppler se le esta efectuando el pago de prestaciones laborales hasta el día 28 de febrero de 2017, según Acuerdo número RH-047-2016 de fecha 31 de octubre de 2016."]
[]
[]
[]
[]
[]
[]
[]
[]
[]
[]
[]
["Elaboró",null,null,null,"Revisó:",null,null,null,null,null,null,null,null,null,null,null,null,null,null,null,null,null,"Vo.Bo."]
[null,"Yeimy Daleicy Rodriguez González",null,null,null,"Víctor Aníbal López Aquino",null,null,null,null,null,null,null,null,null,null,null,null,null,null,null,null,null,"Ing. Oscar Amed Juárez Sosa"]
[null,"Encargada de Nómina",null,null,null,"Jefe Administrativo Financiero",null,null,null,null,null,null,null,null,null,null,null,null,null,null,null,null,null,"Director Ejecutivo"]
[null,"AMSA",null,null,null,"AMSA",null,null,null,null,null,null,null,null,null,null,null,null,null,null,null,null,null,"AMSA"]
[]
[]
[]
[]
[]
[null,null,null,null,null,null,null,null,null,null,null,null,null,null,null,null,null,null,null,null,null,null,null,null,null,null,"1/1"]

{"sheet":"011 y  022 ","index":2,"n_rows":37,"n_cols":41,"rows_kept":37,"cut":false,"hidden":false,"merged":[[18,9,18,10],[23,11,23,12],[24,11,24,12],[19,9,19,10],[12,1,15,1],[12,2,15,2],[12,3,15,3],[12,4,15,4],[12,6,15,6],[12,7,15,7],[12,8,15,8],[12,5,15,5],[17,9,17,10],[16,9,16,10],[22,9,22,10],[12,13,15,13],[12,14,15,14],[9,11,9,12],[11,0,11,40],[12,39,15,39],[12,40,15,40],[12,27,12,30],[12,22,15,22],[12,25,15,25],[14,27,15,27],[14,28,15,28],[12,12,15,12],[14,32,15,32],[14,33,15,33],[12,20,15,20],[12,26,15,26],[12,9,15,10],[12,11,15,11],[12,21,15,21],[12,23,15,23],[14,35,15,35],[14,34,15,34],[14,30,15,30],[12,16,15,16],[12,17,15,17],[12,18,15,18],[12,19,15,19],[12,24,15,24],[12,31,15,31],[6,27,7,27],[6,28,7,28],[6,29,7,29],[6,30,7,30],[4,23,7,23],[4,24,7,24],[4,25,7,25],[4,26,7,26],[4,16,7,16],[4,31,7,31],[4,9,7,10],[4,11,7,11],[4,12,7,12],[4,13,7,13],[4,39,7,39],[6,32,7,32],[4,21,7,21],[4,22,7,22],[6,33,7,33],[6,35,7,35],[4,27,4,30],[4,14,7,14],[6,34,7,34],[14,38,15,38],[14,37,15,37],[4,40,7,40],[6,38,7,38],[12,32,12,37],[4,32,4,37],[6,37,7,37],[12,0,15,0],[1,0,1,40],[2,0,2,40],[3,0,3,40],[4,0,7,0],[4,1,7,1],[4,2,7,2],[4,3,7,3],[4,4,7,4],[4,5,7,5],[4,6,7,6],[4,17,7,17],[4,18,7,18],[4,19,7,19],[4,20,7,20],[4,7,7,7],[4,8,7,8],[33,32,33,35],[33,3,33,4],[36,32,36,35],[36,11,36,27],[36,3,36,4],[35,32,35,35],[35,11,35,27],[35,3,35,4],[34,32,34,35],[34,11,34,27],[34,3,34,4]]}
[" "]
["AUTORIDAD PARA EL MANEJO SUSTENTABLE DE LA CUENCA Y DEL LAGO DE AMATITLÁN\nNÓMINA DE SUELDOS CORRESPONDIENTES AL MES DE ENERO 2021"]
[]
["RENGLÓN 011 PERSONAL PERMANENTE"]
["No.","Renglón","ÁREA","Puesto Nominal","Puesto Funcional","Código\nPuesto","CÓDIGO DE\nEMPLEADO","PARTIDA\nINDIVIDUAL","UBICACIÓN","NOMBRE",null,"Acuerdo","Fecha de \nIngreso","NIT","IGSS",null,"CÉDULA","EXTENDIDA EN ","FECHA DE\nNACIMIENTO","DIRECCIÓN","TELÉFONO","CORREO ELECTRÓNICO","ESTADO CIVIL","PROFESIÓN","OTROS ESTUDIOS","COLEGIADO\nACTIVO","CUENTA\nBANCARIA","Devengado Mensual",null,null,null,"Total \nDevengado \nMensual","Deducciones",null,null,null,null,null,null,"Total \nDeducciones","Líquido"]
[null,null,null,null,null,null,null,null,null,null,null,null,null,null,null,null,null,null,null,null,null,null,null,null,null,null,null,"Renglón 011","Renglón 014","Renglón 015","Renglón 063",null,118,202,201,203,211,102,120]
[null,null,null,null,null,null,null,null,null,null,null,null,null,null,null,null,null,null,null,null,null,null,null,null,null,null,null,"Sueldo\nMensual","Bono \nProfesional","Bono\n66-2000","Gastos de\nRepresent.",null,"Montepío","Fianza","IGSS","ISR","DESC.","Amort \nBANTRAB","Decreto 81-70"]
[null,null,null,null,null,null,null,null,null,null,null,null,null,null,null,null,null,null,null,null,null,null,null,null,null,null,null,null,null,27,null,null,"PROMEDIO POR 12 MESES",26,27,null,"JUDICIAL"]
[1,"011",990074989,"Director Ejecutivo","Director Ejecutivo",55272,990074989,"00001","Dirección y Coordinación","Omar José Orellana Cámbara",null,28,"2019-04-04","444872-3",160312179,null,"N-14 23657","Joyabaj, Quiche","1960-12-22","Lote 23 manzana D sector 3 Prados de Villa Hermosa, zona 7 san miguel Petapa",null,"edvinramos2000@yahoo.es","casado","Ingeniero Agrónomo",null,2258,3031032222,17500,0,250,12000,{"$f":"SUM(AB9:AE9)","v":29750},{"$f":"ROUND(SUM(AB9:AC9)*15%,2)","v":2625},{"$f":"ROUND(SUM(AB9+AC9)*1.344%,2)","v":235.2},{"$f":"ROUND(SUM(AB9+AC9)*3%,2)","v":525},545.38,0,null,null,{"$f":"SUM(AG9:AM9)","v":3930.58},{"$f":"+AF9-AN9","v":25819.42}]
[null,null,null,null,null,null,null,null,null,null,null,"Total 011",null,null,null,null,null,null,null,null,null,null,null,null,null,null,null,{"$f":"SUM(AB9)","v":17500},0,250,12000,29750,2625,235.2,525,545.38,0,0,0,3930.58,25819.42]
[]
["RENGLÓN 022 PERSONAL POR CONTRATO"]
["No.","Renglón","ÁREA","Puesto Nominal","Puesto Funcional","Código\nPuesto","CÓDIGO DE\nEMPLEADO","PARTIDA\nINDIVIDUAL","UBICACIÓN","NOMBRE",null,"Contrato","Fecha de \nIngreso","NIT","IGSS",null,"CÉDULA","EXTENDIDA EN ","FECHA DE\nNACIMIENTO","DIRECCIÓN","TELÉFONO","CORREO ELECTRÓNICO","ESTADO CIVIL","PROFESIÓN","OTROS ESTUDIOS","COLEGIADO\nACTIVO","CUENTA\nBANCARIA","Devengado Mensual",null,null,null,"TOTAL DEVENGADO MENSUAL","Deducciones",null,null,null,null,null,null,"Total \nDeducciones","Líquido"]
[null,null,null,null,null,null,null,null,null,null,null,null,null,null,null,null,null,null,null,null,null,null,null,null,null,null,null,"Renglón 022","Renglón 026","Renglón 027","Renglón 063",null,118,202,201,203,211,102,120]
[null,null,null,null,null,null,null,null,null,null,null,null,null,null,null,"DPI",null,null,null,null,null,null,null,null,null,null,null,"Sueldo\nMensual","Bono \nProfesional","Bono\n66-2000","Gastos de\nRepresent.",null,"Montepío","Fianza","IGSS","ISR","DESC.","Amort \nBANTRAB","Decreto 81-70"]
[null,null,null,null,null,null,null,null,null,null,null,null,null,null,null,null,null,null,null,null,null,null,null,null,null,null,null,null,null,27,null,null,"PROMEDIO POR 12 MESES",26,null,null,"JUDICIAL"]
[2,"022","A","Director Ejecutivo II","Jefe Administrativo Financiero",351675,990097519,"00011","División Financiera","Víctor Aníbal López Aquino",null,"01-2016-022-AMSA","2016-02-19","2017446-2",272086356,null,"A-1 849029","Guatemala, Guatemala","1972-05-25","12 calle 9-97 zona 7 de Mixco","5405-4377",null,"casada",{"$f":"'[1]021'!$S$21","v":"Licenciatura en Administracion de Empresas"},null,null,null,12000,0,250,0,{"$f":"ROUND(SUM(AB17:AE17),2)","v":12250},{"$f":"ROUND(SUM(AB17:AC17)*15%,2)","v":1800},{"$f":"ROUND(SUM(AB17+AC17)*1.344%,2)","v":161.28},{"$f":"ROUND(SUM(AB17+AC17)*3%,2)","v":360},304.5,null,3107.34,null,{"$f":"SUM(AG17:AM17)","v":5733.12},{"$f":"AF17-AN17","v":6516.88}]
[3,"022",null,"Director Ejecutivo II","Jefa Asesoría Jurídica",401225,null,null,null,"Elizabeth Lemus Orellana",null,"04-2019-022-AMSA","2019-05-15",null,null,null,null,null,null,null,null,null,null,null,null,null,null,12000,375,250,0,{"$f":"ROUND(SUM(AB18:AE18),2)","v":12625},1856.25,166.32,371.25,319.88,null,null,null,2713.7,9911.2999999999993]
[4,"022",null,"Subdirector Ejecutivo III","Jefa de Educación Ambiental",351674,null,null,null,"Maria Alejandra Punti Martínez",null,"08-2016-022-AMSA","2016-04-04",null,null,null,null,null,null,null,null,null,null,null,null,null,null,11300,0,250,0,11550,1695,151.87,339,275.8,null,null,null,2461.67,9088.33]
[5,"022",null,"Director Ejecutivo II","Jefe Desechos Sólidos y Liquidos",352693,null,null,null,"Mynor Gustavo Tzicap Tzunún",null,"03-2019-022-AMSA","2019-05-15",null,null,null,null,null,null,null,null,null,null,null,null,null,null,12000,375,250,0,{"$f":"ROUND(SUM(AB20:AE20),2)","v":12625},1856.25,166.32,371.25,365.95,null,null,null,2759.7699999999995,9865.23]
[5,22,null,"Director Ejecutivo ll","Jefe de Ejecucion de Proyectos",351677,null,null,null,"Luis Enrique Acevedo Castañeda",null,"05-2019-022-AMSA","2019-05-28",null,null,null,null,null,null,null,null,null,null,null,null,null,null,12000,375,250,0,12625,1856.25,166.32,371.25,365.95,null,null,null,2759.7699999999995,9865.23]
[5,22,null,"subdirector Ejecutivo II ","Jede de Control de Calidad ",351673,null,null,null,"Sharon Vanadis Tuylen Domínguez",null,"07-2019-022-AMSA","2019-06-06",null,null,null,null,null,null,null,null,null,null,null,null,null,null,12000,375,250,0,12625,1856.25,166.32,371.25,319.88,null,null,null,2713.7,9911.2999999999993]
[8,22,null,"Subdirector Ejecutivo II ","Jefe de Forestal ",352692,null,null,null,"Rosa Maria López Vides ",null,"10-2019-022-AMSA","2019-11-18",null,null,null,null,null,null,null,null,null,null,null,null,null,null,12000,375,250,0,{"$f":"AB23+AC23+AD23","v":12625},1856.25,166.32,371.25,319.88,null,null,null,2713.7,9911.2999999999993]
[null,null,null,null,null,null,null,null,null,null,null,"Total 022",null,null,null,null,null,null,null,null,null,null,null,null,null,null,null,{"$f":"SUM(AB17:AB23)","v":83300},1875,1750,0,86925,12776.25,1144.7499999999998,2555.25,2271.84,{"$f":"SUM(AK17:AK21)","v":0},{"$f":"SUM(AL17:AL23)","v":3107.34},{"$f":"SUM(AM17:AM21)","v":0},{"$f":"SUM(AN17:AN23)","v":21855.43},{"$f":"SUM(AO17:AO23)","v":65069.570000000007}]
[null,null,null,null,null,null,null,null,null,null,null,"Total 011 y 022",null,null,null,null,null,null,null,null,null,null,null,null,null,null,null,{"$f":"+AB24+AB10","v":100800},{"$f":"+AC24+AC10","v":1875},{"$f":"+AD24+AD10","v":2000},{"$f":"+AE24+AE10","v":12000},{"$f":"SUM(AF24+AF10)","v":116675},15401.25,1379.9499999999998,3080.25,2817.2200000000003,0,3107.34,0,{"$f":"AG25+AH25+AI25+AJ25+AL25","v":25786.010000000002},{"$f":"AF25-AN25","v":90888.989999999991}]
[]
[]
[]
[]
[]
[]
[]
[]
[null,"Elaboró:",null,null,null,null,null,null,null,null,null,null,null,null,null,null,null,null,null,null,null,null,null,null,null,null,null,null,null,null,null,"Vo.Bo."]
[null,null,null,"Loida Rebeca Vásquez Zuleta ",null,null,null,null,null,null,null,null,null,null,null,null,null,null,null,null,null,null,null,null,null,null,null,null,null,null,null,null,"Ing. Omar José Orellana Cámbara "]
[null,null,null,"Encargada de Nómina",null,null,null,null,null,null,null,null,null,null,null,null,null,null,null,null,null,null,null,null,null,null,null,null,null,null,null,null,"Director Ejecutivo "]
[null,null,null,"AMSA",null,null,"AMSA",null,null,null,null,null,null,null,null,null,null,null,null,null,null,null,null,null,null,null,null,null,null,null,null,null,"AMSA",null,null,null,null,null,null,null,"1/1"]

{"sheet":"Hoja1","index":3,"n_rows":15,"n_cols":42,"rows_kept":15,"cut":false,"hidden":false,"merged":[[5,9,5,10]]}
[]
[]
[]
[]
[]
[3,"022",null,"Director Ejecutivo III","Jefe Ordenamiento Territorial",351670,null,null,null,"Julio Christian Montenegro Guzman ",null,"11-2019-022-AMSA","2019-11-18",null,null,null,null,null,null,null,null,null,null,null,null,null,null,{"$f":"13500/31*17","v":7403.2258064516136},{"$f":"375/31*17","v":205.64516129032259},{"$f":"250/31*17","v":137.09677419354838},0,{"$f":"ROUND(SUM(AB6:AE6),2)","v":7745.97},{"$f":"ROUND(SUM(AB6:AC6)*15%,2)","v":1141.33},{"$f":"ROUND(SUM(AB6+AC6)*1.344%,2)","v":102.26},{"$f":"ROUND(SUM(AB6+AC6)*3%,2)","v":228.27},381.38,null,null,null,{"$f":"SUM(AG6:AM6)","v":1853.2399999999998},{"$f":"AF6-AN6","v":5892.7300000000005},9901370183]
[]
[]
[]
[]
[]
[]
[]
[]
[null,null,null,null,null,12000,{"$f":"F15/2","v":6000}]

{"sheet":"SP 031A","index":4,"n_rows":134,"n_cols":24,"rows_kept":134,"cut":false,"hidden":true,"merged":[[16,5,16,22],[1,0,1,22],[2,1,2,21],[4,0,4,24],[5,0,5,24],[7,5,7,11],[7,18,7,22],[9,1,9,6],[9,7,9,22],[11,4,11,23],[12,18,12,22],[13,1,13,22],[38,4,38,23],[25,3,25,10],[25,14,25,20],[28,0,28,22],[29,1,29,21],[31,0,31,24],[32,0,32,24],[34,5,34,11],[34,18,34,22],[36,1,36,6],[36,7,36,22],[39,18,39,22],[40,1,40,22],[43,5,43,22],[45,6,45,22],[70,6,70,22],[68,5,68,22],[53,0,53,22],[54,1,54,21],[56,0,56,24],[57,0,57,24],[59,5,59,11],[59,18,59,22],[61,1,61,6],[61,7,61,22],[63,4,63,23],[64,18,64,22],[65,1,65,22],[90,4,90,23],[77,3,77,10],[77,14,77,20],[80,0,80,22],[81,1,81,21],[83,0,83,24],[84,0,84,24],[86,5,86,11],[86,18,86,22],[88,1,88,6],[88,7,88,22],[91,18,91,22],[92,1,92,22],[95,5,95,22],[104,3,104,10],[104,14,104,20],[97,6,97,22],[108,0,108,22],[109,1,109,21],[111,0,111,24],[112,0,112,24],[114,5,114,11],[114,18,114,22],[123,5,123,22],[132,3,132,10],[132,14,132,20],[116,1,116,6],[116,7,116,22],[118,4,118,23],[119,1,119,4],[119,18,119,22],[120,1,120,22],[125,6,125,22]]}
[]
["AUTORIDAD PARA EL MANEJO SUSTENTABLE DE LA CUENCA Y DEL LAGO DE AMATITLÁN."]
[null,"PRESIDENCIA DE LA REPÚBLICA."]
[]
[{"$f":"#REF!","v":{"$error":"#REF!"}}]
[{"$f":"#REF!","v":{"$error":"#REF!"}}]
[]
[null,"GUATEMALA,",null,null,null,{"$f":"TODAY()","v":"2021-06-21"},null,null,null,null,null,null,null,null,"CANTIDAD:",null,null,null,{"$f":"+#REF!","v":{"$error":"#REF!"}}]
[]
[null,"UNIDAD SOLICITANTE:",null,null,null,null,null,"RECURSOS HUMANOS"]
[]
[null,"CANTIDAD:",null,null,{"$f":"PesosMN(S8)","v":{"$error":"#VALUE!"}}]
[null,"NOMINA: ",null,null,null,null,null,{"$f":"+A6","v":{"$error":"#REF!"}},null,null,null,null,null,null,null,null,"VENCE:"]
[]
[null,"CUR",null,"x",null,"CHEQUE AMSA",null,null,null,"",null,"CAJA CHICA"]
[null,null,null,""]
[null,"A NOMBRE DE:",null,null,null,"AMSA"]
[null,null,null,""]
[null,"OBSERVACIONES:",null,null,null,null,{"$f":"#REF!","v":{"$error":"#REF!"}}]
[null,null,null,null,null,null," 031 \"JORNALES\" "]
[]
[]
[null,null,null,null,null,null,null,null,null,null,null,null,null,null,null,null,null,null,null,null,null,null,null," "]
[null,null,null,null,null,null,null,null,null,null,null,null," "]
[]
[]
[null,"     "]
[]
["AUTORIDAD PARA EL MANEJO SUSTENTABLE DE LA CUENCA Y DEL LAGO DE AMATITLÁN."]
[null,"PRESIDENCIA DE LA REPÚBLICA."]
[]
[{"$f":"'[2]031'!E42","v":"SOLICITUD DE PAGO"}]
[{"$f":"+#REF!","v":{"$error":"#REF!"}}]
[]
[null,"GUATEMALA,",null,null,null,{"$f":"F8","v":"2021-06-21"},null,null,null,null,null,null,null,null,"CANTIDAD:",null,null,null,{"$f":"+#REF!","v":{"$error":"#REF!"}}]
[]
[null,"UNIDAD SOLICITANTE:",null,null,null,null,null,"RECURSOS HUMANOS"]
[]
[null,"CANTIDAD:",null,null,{"$f":"PesosMN(S35)","v":{"$error":"#VALUE!"}}]
[null,"NOMINA: ",null,null,null,null,null,{"$f":"+A33","v":{"$error":"#REF!"}},null,null,null,null,null,null,null,null,"VENCE:"]
[]
[null,"CUR",null,"x",null,"CHEQUE AMSA",null,null,null,"",null,"CAJA CHICA"]
[null,null,null,""]
[null,"A NOMBRE DE:",null,null,null,"AMSA"]
[null,null,null,""]
[null,"OBSERVACIONES:",null,null,null,null,{"$f":"G19","v":{"$error":"#REF!"}}]
[null,null,null,null,null,null,"031 \"JORNALES\" DE LA DIVISIÓN DE DESECHOS SÓLIDOS."]
[]
[]
[]
[]
[null,"     "]
[]
["AUTORIDAD PARA EL MANEJO SUSTENTABLE DE LA CUENCA Y DEL LAGO DE AMATITLÁN."]
[null,"PRESIDENCIA DE LA REPÚBLICA."]
[]
[{"$f":"'[2]031'!E78","v":"SOLICITUD DE PAGO"}]
[{"$f":"+#REF!","v":{"$error":"#REF!"}}]
[]
[null,"GUATEMALA,",null,null,null,{"$f":"F8","v":"2021-06-21"},null,null,null,null,null,null,null,null,"CANTIDAD:",null,null,null,{"$f":"+#REF!","v":{"$error":"#REF!"}}]
[]
[null,"UNIDAD SOLICITANTE:",null,null,null,null,null,"RECURSOS HUMANOS"]
[]
[null,"CANTIDAD:",null,null,{"$f":"PesosMN(S60)","v":{"$error":"#VALUE!"}}]
[null,"NOMINA:",null,null,null,null,null,{"$f":"A58","v":{"$error":"#REF!"}},null,null,null,null,null,null,null,null,"VENCE:"]
[]
[null,"CUR",null,"x",null,"CHEQUE AMSA",null,null,null,"",null,"CAJA CHICA"]
[null,null,null,""]
[null,"A NOMBRE DE:",null,null,null,"AMSA"]
[null,null,null,""]
[null,"OBSERVACIONES:",null,null,null,null,{"$f":"G19","v":{"$error":"#REF!"}}]
[null,null,null,null,null,null,"031 \"JORNALES\" DE LA DIVISIÓN DE DESECHOS LÍQUIDOS."]
[]
[]
[null,null,null,null,null,null,null,null,null,null,null,null,null,null,null,null,null,null,null,null,null,null,null," "]
[]
[]
[]
[null,"     "]
[]
["AUTORIDAD PARA EL MANEJO SUSTENTABLE DE LA CUENCA Y DEL LAGO DE AMATITLÁN."]
[null,"PRESIDENCIA DE LA REPÚBLICA."]
[]
[{"$f":"'[2]031'!E116","v":"SOLICITUD DE PAGO "}]
[{"$f":"+#REF!","v":{"$error":"#REF!"}}]
[]
[null,"GUATEMALA,",null,null,null,{"$f":"F8","v":"2021-06-21"},null,null,null,null,null,null,null,null,"CANTIDAD:",null,null,null,{"$f":"+#REF!","v":{"$error":"#REF!"}}]
[]
[null,"UNIDAD SOLICITANTE:",null,null,null,null,null,"RECURSOS HUMANOS"]
[]
[null,"CANTIDAD:",null,null,{"$f":"PesosMN(S87)","v":{"$error":"#VALUE!"}}]
[null,"NOMINA:",null,null,null,null,null,{"$f":"A85","v":{"$error":"#REF!"}},null,null,null,null,null,null,null,null,"VENCE:"]
[]
[null,"CUR",null,"x",null,"CHEQUE AMSA",null,null,null,"",null,"CAJA CHICA"]
[null,null,null,""]
[null,"A NOMBRE DE:",null,null,null,"AMSA"]
[null,null,null,""]
[null,"OBSERVACIONES:",null,null,null,null,{"$f":"G19","v":{"$error":"#REF!"}}]
[null,null,null,null,null,null,"031 \"JORNALES\" DE LA DIVISIÓN DE MANTENIMIENTO Y LIMPIEZA DEL LAGO."]
[]
[]
[null,null,null,null,null,null,null,null,null,null,null,null,null,null,null,null,null,null,null,null,null,null,null," "]
[]
[]
[]
[null,"     "]
[]
[]
["AUTORIDAD PARA EL MANEJO SUSTENTABLE DE LA CUENCA Y DEL LAGO DE AMATITLÁN."]
[null,"PRESIDENCIA DE LA REPÚBLICA."]
[]
[{"$f":"'[2]031'!E161","v":"SOLICITUD DE PAGO "}]
[{"$f":"+#REF!","v":{"$error":"#REF!"}}]
[]
[null,"GUATEMALA,",null,null,null,{"$f":"F8","v":"2021-06-21"},null,null,null,null,null,null,null,null,"CANTIDAD:",null,null,null,{"$f":"+#REF!","v":{"$error":"#REF!"}}]
[]
[null,"UNIDAD SOLICITANTE:",null,null,null,null,null,"RECURSOS HUMANOS"]
[]
[null,"CANTIDAD:",null,null,{"$f":"PesosMN(S115)","v":{"$error":"#VALUE!"}}]
[null,"NOMINA No.",null,null,null,null,null,null,{"$f":"A113","v":{"$error":"#REF!"}},null,null,null,null,null,null,null,"VENCE:"]
[null," "]
[null,"CUR",null,"x",null,"CHEQUE AMSA",null,null,null,"",null,"CAJA CHICA"]
[null,null,null,""]
[null,"A NOMBRE DE:",null,null,null,"AMSA"]
[null,null,null,""]
[null,"OBSERVACIONES:",null,null,null,null,{"$f":"G19","v":{"$error":"#REF!"}}]
[null,null,null,null,null,null,"031 \"JORNALES\" DE LA DIVISIÓN FORESTAL."]
[]
[]
[null,null,null,null,null,null,null,null,null,null,null,null,null,null,null,null,null,null,null,null,null,null,null," "]
[]
[]
[]
[null,"     "]

{"sheet":"B 031","index":5,"n_rows":3691,"n_cols":19,"rows_kept":3691,"cut":false,"hidden":true,"merged":[[497,0,497,19],[566,12,566,19],[566,0,566,7],[565,12,565,19],[565,0,565,7],[564,12,564,19],[564,0,564,7],[555,12,555,14],[555,10,555,11],[554,16,554,18],[554,12,554,14],[554,10,554,11],[553,16,553,18],[552,16,552,18],[551,16,551,18],[550,12,550,14],[549,12,549,14],[547,16,547,18],[547,12,547,14],[505,0,505,1],[505,2,505,4],[505,5,505,7],[505,8,505,11],[505,12,505,14],[505,15,505,19],[506,0,506,2],[506,3,506,4],[506,5,506,9],[506,10,506,12],[506,13,506,14],[506,15,506,17],[506,18,506,19],[334,12,334,14],[334,16,334,18],[336,12,336,14],[337,12,337,14],[338,16,338,18],[332,0,332,2],[332,3,332,4],[332,5,332,9],[332,10,332,12],[332,13,332,14],[332,15,332,17],[351,0,351,7],[351,12,351,19],[352,0,352,7],[352,12,352,19],[353,0,353,7],[353,12,353,19],[339,16,339,18],[340,16,340,18],[341,10,341,11],[341,12,341,14],[341,16,341,18],[342,10,342,11],[342,12,342,14],[331,0,331,1],[331,2,331,4],[331,5,331,7],[331,8,331,11],[331,12,331,14],[331,15,331,19],[323,0,323,19],[324,0,324,19],[327,0,327,19],[328,0,328,19],[330,0,330,1],[330,2,330,8],[330,10,330,12],[330,13,330,14],[330,15,330,16],[330,17,330,19],[332,18,332,19],[295,12,295,14],[295,16,295,18],[297,12,297,14],[298,12,298,14],[299,16,299,18],[293,0,293,2],[293,3,293,4],[293,5,293,9],[293,10,293,12],[293,13,293,14],[293,15,293,17],[312,0,312,7],[312,12,312,19],[313,0,313,7],[313,12,313,19],[314,0,314,7],[314,12,314,19],[300,16,300,18],[301,16,301,18],[302,10,302,11],[302,12,302,14],[302,16,302,18],[303,10,303,11],[303,12,303,14],[292,0,292,1],[292,2,292,4],[292,5,292,7],[292,8,292,11],[292,12,292,14],[292,15,292,19],[284,0,284,19],[285,0,285,19],[288,0,288,19],[289,0,289,19],[291,0,291,1],[291,2,291,8],[291,10,291,12],[291,13,291,14],[291,15,291,16],[291,17,291,19],[293,18,293,19],[263,12,263,14],[263,16,263,18],[265,12,265,14],[266,12,266,14],[267,16,267,18],[261,0,261,2],[261,3,261,4],[261,5,261,9],[261,10,261,12],[261,13,261,14],[261,15,261,17],[280,0,280,7],[280,12,280,19],[281,0,281,7],[281,12,281,19],[282,0,282,7],[282,12,282,19],[268,16,268,18],[269,16,269,18],[270,10,270,11],[270,12,270,14],[270,16,270,18],[271,10,271,11],[271,12,271,14],[260,0,260,1],[260,2,260,4],[260,5,260,7],[260,8,260,11],[260,12,260,14],[260,15,260,19],[252,0,252,19],[253,0,253,19],[256,0,256,19],[257,0,257,19],[259,0,259,1],[259,2,259,8],[259,10,259,12],[259,13,259,14],[259,15,259,16],[259,17,259,19],[261,18,261,19],[224,12,224,14],[224,16,224,18],[226,12,226,14],[227,12,227,14],[228,16,228,18],[222,0,222,2],[222,3,222,4],[222,5,222,9],[222,10,222,12],[222,13,222,14],[222,15,222,17],[241,0,241,7],[241,12,241,19],[242,0,242,7],[242,12,242,19],[243,0,243,7],[243,12,243,19],[229,16,229,18],[230,16,230,18],[231,10,231,11],[231,12,231,14],[231,16,231,18],[232,10,232,11],[232,12,232,14],[221,0,221,1],[221,2,221,4],[221,5,221,7],[221,8,221,11],[221,12,221,14],[221,15,221,19],[213,0,213,19],[214,0,214,19],[217,0,217,19],[218,0,218,19],[220,0,220,1],[220,2,220,8],[220,10,220,12],[220,13,220,14],[220,15,220,16],[220,17,220,19],[222,18,222,19],[192,12,192,14],[192,16,192,18],[194,12,194,14],[195,12,195,14],[196,16,196,18],[190,0,190,2],[190,3,190,4],[190,5,190,9],[190,10,190,12],[190,13,190,14],[190,15,190,17],[209,0,209,7],[209,12,209,19],[210,0,210,7],[210,12,210,19],[211,0,211,7],[211,12,211,19],[197,16,197,18],[198,16,198,18],[199,10,199,11],[199,12,199,14],[199,16,199,18],[200,10,200,11],[200,12,200,14],[189,0,189,1],[189,2,189,4],[189,5,189,7],[189,8,189,11],[189,12,189,14],[189,15,189,19],[181,0,181,19],[182,0,182,19],[185,0,185,19],[186,0,186,19],[188,0,188,1],[188,2,188,8],[188,10,188,12],[188,13,188,14],[188,15,188,16],[188,17,188,19],[190,18,190,19],[153,12,153,14],[153,16,153,18],[155,12,155,14],[156,12,156,14],[157,16,157,18],[151,0,151,2],[151,3,151,4],[151,5,151,9],[151,10,151,12],[151,13,151,14],[151,15,151,17],[170,0,170,7],[170,12,170,19],[171,0,171,7],[171,12,171,19],[172,0,172,7],[172,12,172,19],[158,16,158,18],[159,16,159,18],[160,10,160,11],[160,12,160,14],[160,16,160,18],[161,10,161,11],[161,12,161,14],[150,0,150,1],[150,2,150,4],[150,5,150,7],[150,8,150,11],[150,12,150,14],[150,15,150,19],[142,0,142,19],[143,0,143,19],[146,0,146,19],[147,0,147,19],[149,0,149,1],[149,2,149,8],[149,10,149,12],[149,13,149,14],[149,15,149,16],[149,17,149,19],[151,18,151,19],[121,12,121,14],[121,16,121,18],[123,12,123,14],[124,12,124,14],[125,16,125,18],[119,0,119,2],[119,3,119,4],[119,5,119,9],[119,10,119,12],[119,13,119,14],[119,15,119,17],[138,0,138,7],[138,12,138,19],[139,0,139,7],[139,12,139,19],[140,0,140,7],[140,12,140,19],[126,16,126,18],[127,16,127,18],[128,10,128,11],[128,12,128,14],[128,16,128,18],[129,10,129,11],[129,12,129,14],[118,0,118,1],[118,2,118,4],[118,5,118,7],[118,8,118,11],[118,12,118,14],[118,15,118,19],[110,0,110,19],[111,0,111,19],[114,0,114,19],[115,0,115,19],[117,0,117,1],[117,2,117,8],[117,10,117,12],[117,13,117,14],[117,15,117,16],[117,17,117,19],[119,18,119,19],[80,18,80,19],[82,12,82,14],[82,16,82,18],[84,12,84,14],[85,12,85,14],[86,16,86,18],[80,0,80,2],[80,3,80,4],[80,5,80,9],[80,10,80,12],[80,13,80,14],[80,15,80,17],[99,0,99,7],[99,12,99,19],[100,0,100,7],[100,12,100,19],[101,0,101,7],[101,12,101,19],[87,16,87,18],[88,16,88,18],[89,10,89,11],[89,12,89,14],[89,16,89,18],[90,10,90,11],[90,12,90,14],[71,0,71,19],[72,0,72,19],[47,12,47,14],[47,15,47,19],[48,3,48,4],[48,5,48,9],[48,10,48,12],[48,13,48,14],[48,15,48,17],[48,18,48,19],[69,0,69,7],[69,12,69,19],[47,8,47,11],[79,0,79,1],[79,2,79,4],[79,5,79,7],[79,8,79,11],[79,12,79,14],[79,15,79,19],[75,0,75,19],[76,0,76,19],[78,0,78,1],[78,2,78,8],[78,10,78,12],[78,13,78,14],[78,15,78,16],[78,17,78,19],[68,0,68,7],[68,12,68,19],[67,0,67,7],[67,12,67,19],[56,16,56,18],[57,16,57,18],[54,16,54,18],[55,16,55,18],[50,12,50,14],[50,16,50,18],[52,12,52,14],[53,12,53,14],[47,0,47,1],[48,0,48,2],[47,2,47,4],[47,5,47,7],[57,10,57,11],[57,12,57,14],[58,10,58,11],[58,12,58,14],[18,10,18,11],[18,12,18,14],[18,16,18,18],[19,10,19,11],[19,12,19,14],[28,0,28,7],[28,12,28,19],[17,16,17,18],[15,16,15,18],[16,16,16,18],[43,0,43,19],[44,0,44,19],[46,0,46,1],[46,2,46,8],[46,10,46,12],[46,13,46,14],[46,15,46,16],[46,17,46,19],[29,0,29,7],[29,12,29,19],[30,0,30,7],[30,12,30,19],[39,0,39,19],[40,0,40,19],[0,0,0,19],[1,0,1,19],[4,0,4,19],[5,0,5,19],[7,0,7,1],[7,2,7,8],[7,10,7,12],[7,13,7,14],[7,15,7,16],[7,17,7,19],[11,12,11,14],[11,16,11,18],[13,12,13,14],[14,12,14,14],[9,13,9,14],[8,0,8,1],[9,0,9,2],[8,8,8,11],[8,12,8,14],[8,15,8,19],[8,2,8,4],[8,5,8,7],[9,15,9,17],[9,18,9,19],[9,3,9,4],[9,5,9,9],[9,10,9,12],[363,0,363,1],[363,2,363,4],[363,5,363,7],[363,8,363,11],[363,12,363,14],[363,15,363,19],[364,0,364,2],[364,3,364,4],[364,5,364,9],[364,10,364,12],[364,13,364,14],[364,15,364,17],[364,18,364,19],[355,0,355,19],[356,0,356,19],[359,0,359,19],[360,0,360,19],[362,0,362,1],[362,2,362,8],[362,10,362,12],[362,13,362,14],[362,15,362,16],[362,17,362,19],[374,10,374,11],[374,12,374,14],[383,0,383,7],[383,12,383,19],[384,0,384,7],[384,12,384,19],[385,0,385,7],[385,12,385,19],[394,0,394,19],[366,12,366,14],[366,16,366,18],[368,12,368,14],[369,12,369,14],[370,16,370,18],[371,16,371,18],[372,16,372,18],[373,10,373,11],[373,12,373,14],[373,16,373,18],[402,0,402,1],[402,2,402,4],[402,5,402,7],[402,8,402,11],[402,12,402,14],[402,15,402,19],[403,0,403,2],[403,3,403,4],[403,5,403,9],[403,10,403,12],[403,13,403,14],[403,15,403,17],[403,18,403,19],[395,0,395,19],[398,0,398,19],[399,0,399,19],[401,0,401,1],[401,2,401,8],[401,10,401,12],[401,13,401,14],[401,15,401,16],[401,17,401,19],[413,10,413,11],[413,12,413,14],[422,0,422,7],[422,12,422,19],[423,0,423,7],[423,12,423,19],[424,0,424,7],[424,12,424,19],[426,0,426,19],[405,12,405,14],[405,16,405,18],[407,12,407,14],[408,12,408,14],[409,16,409,18],[410,16,410,18],[411,16,411,18],[412,10,412,11],[412,12,412,14],[412,16,412,18],[434,0,434,1],[434,2,434,4],[434,5,434,7],[434,8,434,11],[434,12,434,14],[434,15,434,19],[435,0,435,2],[435,3,435,4],[435,5,435,9],[435,10,435,12],[435,13,435,14],[435,15,435,17],[435,18,435,19],[427,0,427,19],[430,0,430,19],[431,0,431,19],[433,0,433,1],[433,2,433,8],[433,10,433,12],[433,13,433,14],[433,15,433,16],[433,17,433,19],[445,10,445,11],[445,12,445,14],[454,0,454,7],[454,12,454,19],[455,0,455,7],[455,12,455,19],[456,0,456,7],[456,12,456,19],[465,0,465,19],[437,12,437,14],[437,16,437,18],[439,12,439,14],[440,12,440,14],[441,16,441,18],[442,16,442,18],[443,16,443,18],[444,10,444,11],[444,12,444,14],[444,16,444,18],[473,0,473,1],[473,2,473,4],[473,5,473,7],[473,8,473,11],[473,12,473,14],[473,15,473,19],[474,0,474,2],[474,3,474,4],[474,5,474,9],[474,10,474,12],[474,13,474,14],[474,15,474,17],[474,18,474,19],[466,0,466,19],[469,0,469,19],[470,0,470,19],[472,0,472,1],[472,2,472,8],[472,10,472,12],[472,13,472,14],[472,15,472,16],[472,17,472,19],[484,10,484,11],[484,12,484,14],[493,0,493,7],[493,12,493,19],[494,0,494,7],[494,12,494,19],[495,0,495,7],[495,12,495,19],[476,12,476,14],[476,16,476,18],[478,12,478,14],[479,12,479,14],[480,16,480,18],[481,16,481,18],[482,16,482,18],[483,10,483,11],[483,12,483,14],[483,16,483,18],[498,0,498,19],[501,0,501,19],[502,0,502,19],[504,0,504,1],[504,2,504,8],[504,10,504,12],[504,13,504,14],[504,15,504,16],[504,17,504,19],[516,10,516,11],[516,12,516,14],[525,0,525,7],[525,12,525,19],[526,0,526,7],[526,12,526,19],[527,0,527,7],[527,12,527,19],[536,0,536,19],[508,12,508,14],[508,16,508,18],[510,12,510,14],[511,12,511,14],[512,16,512,18],[513,16,513,18],[514,16,514,18],[515,10,515,11],[515,12,515,14],[515,16,515,18],[544,0,544,1],[544,2,544,4],[544,5,544,7],[544,8,544,11],[544,12,544,14],[544,15,544,19],[545,0,545,2],[545,3,545,4],[545,5,545,9],[545,10,545,12],[545,13,545,14],[545,15,545,17],[545,18,545,19],[537,0,537,19],[540,0,540,19],[541,0,541,19],[543,0,543,1],[543,2,543,8],[543,10,543,12],[543,13,543,14],[543,15,543,16],[543,17,543,19],[568,0,568,19],[572,0,572,19],[569,0,569,19],[622,16,622,18],[623,16,623,18],[624,16,624,18],[621,12,621,14],[614,0,614,1],[614,2,614,8],[614,10,614,12],[614,13,614,14],[614,15,614,16],[614,17,614,19],[615,0,615,1],[615,2,615,4],[615,5,615,7],[615,8,615,11],[615,12,615,14],[615,15,615,19],[607,0,607,19],[611,0,611,19],[608,0,608,19],[612,0,612,19],[616,10,616,12],[616,13,616,14],[616,15,616,17],[616,18,616,19],[618,12,618,14],[618,16,618,18],[573,0,573,19],[575,2,575,8],[575,10,575,12],[575,13,575,14],[575,15,575,16],[575,17,575,19],[576,0,576,1],[576,2,576,4],[576,5,576,7],[576,8,576,11],[576,12,576,14],[576,15,576,19],[577,0,577,2],[577,3,577,4],[577,5,577,9],[620,12,620,14],[586,10,586,11],[586,12,586,14],[596,0,596,7],[596,12,596,19],[597,0,597,7],[597,12,597,19],[598,0,598,7],[598,12,598,19],[581,12,581,14],[583,16,583,18],[584,16,584,18],[585,16,585,18],[575,0,575,1],[616,0,616,2],[616,3,616,4],[616,5,616,9],[577,10,577,12],[577,13,577,14],[577,15,577,17],[577,18,577,19],[579,12,579,14],[579,16,579,18],[582,12,582,14],[586,16,586,18],[587,10,587,11],[587,12,587,14],[646,0,646,1],[646,2,646,8],[646,10,646,12],[646,13,646,14],[646,15,646,16],[646,17,646,19],[647,0,647,1],[647,2,647,4],[647,5,647,7],[647,8,647,11],[647,12,647,14],[647,15,647,19],[625,16,625,18],[626,10,626,11],[626,12,626,14],[637,0,637,7],[637,12,637,19],[639,0,639,19],[640,0,640,19],[643,0,643,19],[644,0,644,19],[625,10,625,11],[625,12,625,14],[635,0,635,7],[635,12,635,19],[636,0,636,7],[636,12,636,19],[652,12,652,14],[653,12,653,14],[654,16,654,18],[655,16,655,18],[656,16,656,18],[657,10,657,11],[657,12,657,14],[657,16,657,18],[658,10,658,11],[658,12,658,14],[648,0,648,2],[648,3,648,4],[648,5,648,9],[648,10,648,12],[648,13,648,14],[648,15,648,17],[648,18,648,19],[650,12,650,14],[650,16,650,18],[683,0,683,19],[685,0,685,1],[685,2,685,8],[685,10,685,12],[685,13,685,14],[685,15,685,16],[685,17,685,19],[686,0,686,1],[686,2,686,4],[686,5,686,7],[686,8,686,11],[686,12,686,14],[686,15,686,19],[667,0,667,7],[667,12,667,19],[668,0,668,7],[668,12,668,19],[669,0,669,7],[669,12,669,19],[678,0,678,19],[679,0,679,19],[682,0,682,19],[691,12,691,14],[692,12,692,14],[693,16,693,18],[694,16,694,18],[695,16,695,18],[696,10,696,11],[696,12,696,14],[696,16,696,18],[697,10,697,11],[697,12,697,14],[687,0,687,2],[687,3,687,4],[687,5,687,9],[687,10,687,12],[687,13,687,14],[687,15,687,17],[687,18,687,19],[689,12,689,14],[689,16,689,18],[715,0,715,19],[717,0,717,1],[717,2,717,8],[717,10,717,12],[717,13,717,14],[717,15,717,16],[717,17,717,19],[718,0,718,1],[718,2,718,4],[718,5,718,7],[718,8,718,11],[718,12,718,14],[718,15,718,19],[706,0,706,7],[706,12,706,19],[707,0,707,7],[707,12,707,19],[708,0,708,7],[708,12,708,19],[710,0,710,19],[711,0,711,19],[714,0,714,19],[723,12,723,14],[724,12,724,14],[725,16,725,18],[726,16,726,18],[727,16,727,18],[728,10,728,11],[728,12,728,14],[728,16,728,18],[729,10,729,11],[729,12,729,14],[719,0,719,2],[719,3,719,4],[719,5,719,9],[719,10,719,12],[719,13,719,14],[719,15,719,17],[719,18,719,19],[721,12,721,14],[721,16,721,18],[754,0,754,19],[756,0,756,1],[756,2,756,8],[756,10,756,12],[756,13,756,14],[756,15,756,16],[756,17,756,19],[757,0,757,1],[757,2,757,4],[757,5,757,7],[757,8,757,11],[757,12,757,14],[757,15,757,19],[738,0,738,7],[738,12,738,19],[739,0,739,7],[739,12,739,19],[740,0,740,7],[740,12,740,19],[749,0,749,19],[750,0,750,19],[753,0,753,19],[762,12,762,14],[763,12,763,14],[764,16,764,18],[765,16,765,18],[766,16,766,18],[767,10,767,11],[767,12,767,14],[767,16,767,18],[768,10,768,11],[768,12,768,14],[758,0,758,2],[758,3,758,4],[758,5,758,9],[758,10,758,12],[758,13,758,14],[758,15,758,17],[758,18,758,19],[760,12,760,14],[760,16,760,18],[794,12,794,14],[796,16,796,18],[797,16,797,18],[798,16,798,18],[799,10,799,11],[799,12,799,14],[790,15,790,17],[790,18,790,19],[785,0,785,19],[788,0,788,1],[777,0,777,7],[777,12,777,19],[778,0,778,7],[778,12,778,19],[779,0,779,7],[779,12,779,19],[781,0,781,19],[782,0,782,19],[786,0,786,19],[788,2,788,8],[788,10,788,12],[788,13,788,14],[788,15,788,16],[788,17,788,19],[789,0,789,1],[789,2,789,4],[789,5,789,7],[789,8,789,11],[789,12,789,14],[789,15,789,19],[790,0,790,2],[790,3,790,4],[829,0,829,2],[829,3,829,4],[829,5,829,9],[829,10,829,12],[829,13,829,14],[829,15,829,17],[829,18,829,19],[824,0,824,19],[827,0,827,1],[825,0,825,19],[827,2,827,8],[827,10,827,12],[827,13,827,14],[827,15,827,16],[827,17,827,19],[809,0,809,7],[809,12,809,19],[810,0,810,7],[810,12,810,19],[820,0,820,19],[828,2,828,4],[828,5,828,7],[828,8,828,11],[828,12,828,14],[828,15,828,19],[790,5,790,9],[790,10,790,12],[790,13,790,14],[831,12,831,14],[831,16,831,18],[834,12,834,14],[838,16,838,18],[839,10,839,11],[839,12,839,14],[850,0,850,7],[850,12,850,19],[852,0,852,19],[792,12,792,14],[792,16,792,18],[795,12,795,14],[799,16,799,18],[800,10,800,11],[800,12,800,14],[811,0,811,7],[811,12,811,19],[821,0,821,19],[848,0,848,7],[848,12,848,19],[849,0,849,7],[849,12,849,19],[833,12,833,14],[835,16,835,18],[836,16,836,18],[837,16,837,18],[838,10,838,11],[838,12,838,14],[828,0,828,1],[860,0,860,1],[860,2,860,4],[860,5,860,7],[860,8,860,11],[860,12,860,14],[860,15,860,19],[861,0,861,2],[861,3,861,4],[861,5,861,9],[861,10,861,12],[861,13,861,14],[861,15,861,17],[861,18,861,19],[853,0,853,19],[856,0,856,19]],"merged_total":4268,"flags":["merged_cut"]}
["GOBIERNO DE LA REPÚBLICA DE GUATEMALA"]
["AUTORIDAD PARA EL MANEJO SUSTENTABLE DE LA CUENCA Y DEL LAGO DE AMATITLÁN"]
[]
[]
["Boleta de Liquidación Mensual Renglón 031 \"Jornales\"   Correspondiente al mes de septiembre 2014"]
[{"$f":"#REF!","v":{"$error":"#REF!"}}]
[]
["Empleado:",null,{"$f":"#REF!","v":{"$error":"#REF!"}},null,null,null,null,null,null,null,"Certificación No.",null,null,{"$f":"#REF!","v":{"$error":"#REF!"}},null,"Fecha:",null,"2014-08-31"]
["Contrato:",null,{"$f":"#REF!","v":{"$error":"#REF!"}},null,null,"Puesto Funcional:",null,null,{"$f":"#REF!","v":{"$error":"#REF!"}},null,null,null,"Titulo Jornal:",null,null,{"$f":"#REF!","v":{"$error":"#REF!"}}]
["Cuenta / Banco:",null,null,{"$f":"#REF!","v":{"$error":"#REF!"}},null,"Banco de Desarrollo Rural, S.A.",null,null,null,null,"Jornal Diario:",null,null,{"$f":"#REF!","v":{"$error":"#REF!"}},null,"Días Trabajados:",null,null,{"$f":"#REF!","v":{"$error":"#REF!"}}]
[]
[null,null,null,null,null,null,null,null,null,null,null,null,"Ingresos",null,null,null,"Deducciones "]
[]
[null,"031","DEVENGADO",null,null,null,null,null,null,null,null,null,{"$f":"#REF!","v":{"$error":"#REF!"}}]
[null,"033","BONO ACUERDO GUBERNATIVO 66-2000",null,null,null,null,null,null,null,null,null,{"$f":"#REF!","v":{"$error":"#REF!"}}]
[null,"201","I.G.S.S",null,null,null,null,null,null,null,null,null,null,null,null,null,{"$f":"#REF!","v":{"$error":"#REF!"}}]
[null,"118","MONTEPÍO",null,null,null,null,null,null,null,null,null,null,null,null,null,0]
[null,"211","RETENCIONES JUDICIALES",null,null,null,null,null,null,null,null,null,null,null,null,null,{"$f":"#REF!","v":{"$error":"#REF!"}}]
[null,null,null,null,null,null,null,null,null,null,"Total  :",null,{"$f":"SUM(M14:O18)","v":{"$error":"#REF!"}},null,null,null,{"$f":"SUM(Q16:S18)","v":{"$error":"#REF!"}}]
[null,null,null,null,null,null,null,null,null,null,"Liquido :",null,{"$f":"M19-Q19","v":{"$error":"#REF!"}}]
[]
[]
[]
[]
[]
[]
[]
[]
["María José Ceballos López",null,null,null,null,null,null,null,null,null,null,null,{"$f":"C8","v":{"$error":"#REF!"}}]
["Encargada de Nómina",null,null,null,null,null,null,null,null,null,null,null,{"$f":"P9","v":{"$error":"#REF!"}}]
["AMSA ",null,null,null,null,null,null,null,null,null,null,null,"AMSA"]
[]
[]
[]
[]
[]
[]
[]
[]
["GOBIERNO DE LA REPÚBLICA DE GUATEMALA"]
["AUTORIDAD PARA EL MANEJO SUSTENTABLE DE LA CUENCA Y DEL LAGO DE AMATITLÁN"]
[]
[]
[{"$f":"A5","v":"Boleta de Liquidación Mensual Renglón 031 \"Jornales\"   Correspondiente al mes de septiembre 2014"}]
[{"$f":"A6","v":{"$error":"#REF!"}}]
[]
["Empleado:",null,{"$f":"C8","v":{"$error":"#REF!"}},null,null,null,null,null,null,null,"Certificación No.",null,null,{"$f":"N8","v":{"$error":"#REF!"}},null,"Fecha:",null,{"$f":"R8","v":"2014-08-31"}]
["Contrato:",null,{"$f":"C9","v":{"$error":"#REF!"}},null,null,"Puesto Funcional:",null,null,{"$f":"I9","v":{"$error":"#REF!"}},null,null,null,"Titulo Jornal:",null,null,{"$f":"P9","v":{"$error":"#REF!"}}]
["Cuenta / Banco:",null,null,{"$f":"D10","v":{"$error":"#REF!"}},null,"Banco de Desarrollo Rural, S.A.",null,null,null,null,"Jornal Diario:",null,null,{"$f":"N10","v":{"$error":"#REF!"}},null,"Días Trabajados:",null,null,{"$f":"S10","v":{"$error":"#REF!"}}]
[]
[null,null,null,null,null,null,null,null,null,null,null,null,"Ingresos",null,null,null,"Deducciones "]
[]
[null,"031","DEVENGADO",null,null,null,null,null,null,null,null,null,{"$f":"M14","v":{"$error":"#REF!"}}]
[null,"033","BONO ACUERDO GUBERNATIVO 66-2000",null,null,null,null,null,null,null,null,null,{"$f":"M15","v":{"$error":"#REF!"}}]
[null,"201","I.G.S.S",null,null,null,null,null,null,null,null,null,null,null,null,null,{"$f":"Q16","v":{"$error":"#REF!"}}]
[null,"118","MONTEPÍO",null,null,null,null,null,null,null,null,null,null,null,null,null,{"$f":"Q17","v":0}]
[null,"211","RETENCIONES JUDICIALES",null,null,null,null,null,null,null,null,null,null,null,null,null,{"$f":"Q18","v":{"$error":"#REF!"}}]
[null,null,null,null,null,null,null,null,null,null,"Total  :",null,{"$f":"SUM(M53:O57)","v":{"$error":"#REF!"}},null,null,null,{"$f":"SUM(Q55:S57)","v":{"$error":"#REF!"}}]
[null,null,null,null,null,null,null,null,null,null,"Liquido :",null,{"$f":"M58-Q58","v":{"$error":"#REF!"}}]
[]
[]
[]
[]
[]
[]
[]
[]
[{"$f":"A29","v":"María José Ceballos López"},null,null,null,null,null,null,null,null,null,null,null,{"$f":"C47","v":{"$error":"#REF!"}}]
[{"$f":"A30","v":"Encargada de Nómina"},null,null,null,null,null,null,null,null,null,null,null,{"$f":"P48","v":{"$error":"#REF!"}}]
[{"$f":"A31","v":"AMSA "},null,null,null,null,null,null,null,null,null,null,null,"AMSA"]
[]
["GOBIERNO DE LA REPÚBLICA DE GUATEMALA"]
["AUTORIDAD PARA EL MANEJO SUSTENTABLE DE LA CUENCA Y DEL LAGO DE AMATITLÁN"]
[]
[]
[{"$f":"A5","v":"Boleta de Liquidación Mensual Renglón 031 \"Jornales\"   Correspondiente al mes de septiembre 2014"}]
[{"$f":"A6","v":{"$error":"#REF!"}}]
[]
["Empleado:",null,{"$f":"#REF!","v":{"$error":"#REF!"}},null,null,null,null,null,null,null,"Certificación No.",null,null,{"$f":"N8+1","v":{"$error":"#REF!"}},null,"Fecha:",null,{"$f":"R8","v":"2014-08-31"}]
["Contrato:",null,{"$f":"#REF!","v":{"$error":"#REF!"}},null,null,"Puesto Funcional:",null,null,{"$f":"#REF!","v":{"$error":"#REF!"}},null,null,null,"Titulo Jornal:",null,null,{"$f":"#REF!","v":{"$error":"#REF!"}}]
["Cuenta / Banco:",null,null,{"$f":"#REF!","v":{"$error":"#REF!"}},null,"Banco de Desarrollo Rural, S.A.",null,null,null,null,"Jornal Diario:",null,null,{"$f":"#REF!","v":{"$error":"#REF!"}},null,"Días Trabajados:",null,null,{"$f":"#REF!","v":{"$error":"#REF!"}}]
[]
[null,null,null,null,null,null,null,null,null,null,null,null,"Ingresos",null,null,null,"Deducciones "]
[]
[null,"031","DEVENGADO",null,null,null,null,null,null,null,null,null,{"$f":"#REF!","v":{"$error":"#REF!"}}]
[null,"033","BONO ACUERDO GUBERNATIVO 66-2000",null,null,null,null,null,null,null,null,null,{"$f":"#REF!","v":{"$error":"#REF!"}}]
[null,"201","I.G.S.S",null,null,null,null,null,null,null,null,null,null,null,null,null,{"$f":"#REF!","v":{"$error":"#REF!"}}]
[null,"118","MONTEPÍO",null,null,null,null,null,null,null,null,null,null,null,null,null,0]
[null,"211","RETENCIONES JUDICIALES",null,null,null,null,null,null,null,null,null,null,null,null,null,{"$f":"#REF!","v":{"$error":"#REF!"}}]
[null,null,null,null,null,null,null,null,null,null,"Total  :",null,{"$f":"SUM(M85:O89)","v":{"$error":"#REF!"}},null,null,null,{"$f":"SUM(Q87:S89)","v":{"$error":"#REF!"}}]
[null,null,null,null,null,null,null,null,null,null,"Liquido :",null,{"$f":"M90-Q90","v":{"$error":"#REF!"}}]
[]
[]
[]
[]
[]
[]
[]
[]
["María José Ceballos López",null,null,null,null,null,null,null,null,null,null,null,{"$f":"C79","v":{"$error":"#REF!"}}]
["Encargada de Nómina",null,null,null,null,null,null,null,null,null,null,null,{"$f":"P80","v":{"$error":"#REF!"}}]
["AMSA ",null,null,null,null,null,null,null,null,null,null,null,"AMSA"]
[]
[]
[]
[]
[]
[]
[]
[]
["GOBIERNO DE LA REPÚBLICA DE GUATEMALA"]
["AUTORIDAD PARA EL MANEJO SUSTENTABLE DE LA CUENCA Y DEL LAGO DE AMATITLÁN"]
[]
[]
[{"$f":"A76","v":"Boleta de Liquidación Mensual Renglón 031 \"Jornales\"   Correspondiente al mes de septiembre 2014"}]
[{"$f":"A77","v":{"$error":"#REF!"}}]
[]
["Empleado:",null,{"$f":"C79","v":{"$error":"#REF!"}},null,null,null,null,null,null,null,"Certificación No.",null,null,{"$f":"N79","v":{"$error":"#REF!"}},null,"Fecha:",null,{"$f":"R79","v":"2014-08-31"}]
["Contrato:",null,{"$f":"C80","v":{"$error":"#REF!"}},null,null,"Puesto Funcional:",null,null,{"$f":"I80","v":{"$error":"#REF!"}},null,null,null,"Titulo Jornal:",null,null,{"$f":"P80","v":{"$error":"#REF!"}}]
["Cuenta / Banco:",null,null,{"$f":"D81","v":{"$error":"#REF!"}},null,"Banco de Desarrollo Rural, S.A.",null,null,null,null,"Jornal Diario:",null,null,{"$f":"N81","v":{"$error":"#REF!"}},null,"Días Trabajados:",null,null,{"$f":"S81","v":{"$error":"#REF!"}}]
[]
[null,null,null,null,null,null,null,null,null,null,null,null,"Ingresos",null,null,null,"Deducciones "]
[]
[null,"031","DEVENGADO",null,null,null,null,null,null,null,null,null,{"$f":"M85","v":{"$error":"#REF!"}}]
[null,"033","BONO ACUERDO GUBERNATIVO 66-2000",null,null,null,null,null,null,null,null,null,{"$f":"M86","v":{"$error":"#REF!"}}]
[null,"201","I.G.S.S",null,null,null,null,null,null,null,null,null,null,null,null,null,{"$f":"Q87","v":{"$error":"#REF!"}}]
[null,"118","MONTEPÍO",null,null,null,null,null,null,null,null,null,null,null,null,null,{"$f":"Q88","v":0}]
[null,"211","RETENCIONES JUDICIALES",null,null,null,null,null,null,null,null,null,null,null,null,null,{"$f":"Q89","v":{"$error":"#REF!"}}]
[null,null,null,null,null,null,null,null,null,null,"Total  :",null,{"$f":"SUM(M124:O128)","v":{"$error":"#REF!"}},null,null,null,{"$f":"SUM(Q126:S128)","v":{"$error":"#REF!"}}]
[null,null,null,null,null,null,null,null,null,null,"Liquido :",null,{"$f":"M129-Q129","v":{"$error":"#REF!"}}]
[]
[]
[]
[]
[]
[]
[]
[]
[{"$f":"A100","v":"María José Ceballos López"},null,null,null,null,null,null,null,null,null,null,null,{"$f":"C118","v":{"$error":"#REF!"}}]
[{"$f":"A101","v":"Encargada de Nómina"},null,null,null,null,null,null,null,null,null,null,null,{"$f":"P119","v":{"$error":"#REF!"}}]
[{"$f":"A102","v":"AMSA "},null,null,null,null,null,null,null,null,null,null,null,"AMSA"]
[]
["GOBIERNO DE LA REPÚBLICA DE GUATEMALA"]
["AUTORIDAD PARA EL MANEJO SUSTENTABLE DE LA CUENCA Y DEL LAGO DE AMATITLÁN"]
[]
[]
[{"$f":"A76","v":"Boleta de Liquidación Mensual Renglón 031 \"Jornales\"   Correspondiente al mes de septiembre 2014"}]
[{"$f":"A77","v":{"$error":"#REF!"}}]
[]
["Empleado:",null,{"$f":"#REF!","v":{"$error":"#REF!"}},null,null,null,null,null,null,null,"Certificación No.",null,null,{"$f":"N79+1","v":{"$error":"#REF!"}},null,"Fecha:",null,{"$f":"R8","v":"2014-08-31"}]
["Contrato:",null,{"$f":"#REF!","v":{"$error":"#REF!"}},null,null,"Puesto Funcional:",null,null,{"$f":"#REF!","v":{"$error":"#REF!"}},null,null,null,"Titulo Jornal:",null,null,{"$f":"#REF!","v":{"$error":"#REF!"}}]
["Cuenta / Banco:",null,null,{"$f":"#REF!","v":{"$error":"#REF!"}},null,"Banco de Desarrollo Rural, S.A.",null,null,null,null,"Jornal Diario:",null,null,{"$f":"#REF!","v":{"$error":"#REF!"}},null,"Días Trabajados:",null,null,{"$f":"#REF!","v":{"$error":"#REF!"}}]
[]
[null,null,null,null,null,null,null,null,null,null,null,null,"Ingresos",null,null,null,"Deducciones "]
[]
[null,"031","DEVENGADO",null,null,null,null,null,null,null,null,null,{"$f":"#REF!","v":{"$error":"#REF!"}}]
[null,"033","BONO ACUERDO GUBERNATIVO 66-2000",null,null,null,null,null,null,null,null,null,{"$f":"#REF!","v":{"$error":"#REF!"}}]
[null,"201","I.G.S.S",null,null,null,null,null,null,null,null,null,null,null,null,null,{"$f":"#REF!","v":{"$error":"#REF!"}}]
[null,"118","MONTEPÍO",null,null,null,null,null,null,null,null,null,null,null,null,null,0]
[null,"211","RETENCIONES JUDICIALES",null,null,null,null,null,null,null,null,null,null,null,null,null,{"$f":"#REF!","v":{"$error":"#REF!"}}]
[null,null,null,null,null,null,null,null,null,null,"Total  :",null,{"$f":"SUM(M156:O160)","v":{"$error":"#REF!"}},null,null,null,{"$f":"SUM(Q158:S160)","v":{"$error":"#REF!"}}]
[null,null,null,null,null,null,null,null,null,null,"Liquido :",null,{"$f":"M161-Q161","v":{"$error":"#REF!"}}]
[]
[]
[]
[]
[]
[]
[]
[]
["María José Ceballos López",null,null,null,null,null,null,null,null,null,null,null,{"$f":"C150","v":{"$error":"#REF!"}}]
["Encargada de Nómina",null,null,null,null,null,null,null,null,null,null,null,{"$f":"P151","v":{"$error":"#REF!"}}]
["AMSA ",null,null,null,null,null,null,null,null,null,null,null,"AMSA"]
[]
[]
[]
[]
[]
[]
[]
[]
["GOBIERNO DE LA REPÚBLICA DE GUATEMALA"]
["AUTORIDAD PARA EL MANEJO SUSTENTABLE DE LA CUENCA Y DEL LAGO DE AMATITLÁN"]
[]
[]
[{"$f":"A147","v":"Boleta de Liquidación Mensual Renglón 031 \"Jornales\"   Correspondiente al mes de septiembre 2014"}]
[{"$f":"A148","v":{"$error":"#REF!"}}]
[]
["Empleado:",null,{"$f":"C150","v":{"$error":"#REF!"}},null,null,null,null,null,null,null,"Certificación No.",null,null,{"$f":"N150","v":{"$error":"#REF!"}},null,"Fecha:",null,{"$f":"R150","v":"2014-08-31"}]
["Contrato:",null,{"$f":"C151","v":{"$error":"#REF!"}},null,null,"Puesto Funcional:",null,null,{"$f":"I151","v":{"$error":"#REF!"}},null,null,null,"Titulo Jornal:",null,null,{"$f":"P151","v":{"$error":"#REF!"}}]
["Cuenta / Banco:",null,null,{"$f":"D152","v":{"$error":"#REF!"}},null,"Banco de Desarrollo Rural, S.A.",null,null,null,null,"Jornal Diario:",null,null,{"$f":"N152","v":{"$error":"#REF!"}},null,"Días Trabajados:",null,null,{"$f":"S152","v":{"$error":"#REF!"}}]
[]
[null,null,null,null,null,null,null,null,null,null,null,null,"Ingresos",null,null,null,"Deducciones "]
[]
[null,"031","DEVENGADO",null,null,null,null,null,null,null,null,null,{"$f":"M156","v":{"$error":"#REF!"}}]
[null,"033","BONO ACUERDO GUBERNATIVO 66-2000",null,null,null,null,null,null,null,null,null,{"$f":"M157","v":{"$error":"#REF!"}}]
[null,"201","I.G.S.S",null,null,null,null,null,null,null,null,null,null,null,null,null,{"$f":"Q158","v":{"$error":"#REF!"}}]
[null,"118","MONTEPÍO",null,null,null,null,null,null,null,null,null,null,null,null,null,{"$f":"Q159","v":0}]
[null,"211","RETENCIONES JUDICIALES",null,null,null,null,null,null,null,null,null,null,null,null,null,{"$f":"Q160","v":{"$error":"#REF!"}}]
[null,null,null,null,null,null,null,null,null,null,"Total  :",null,{"$f":"SUM(M195:O199)","v":{"$error":"#REF!"}},null,null,null,{"$f":"SUM(Q197:S199)","v":{"$error":"#REF!"}}]
[null,null,null,null,null,null,null,null,null,null,"Liquido :",null,{"$f":"M200-Q200","v":{"$error":"#REF!"}}]
[]
[]
[]
[]
[]
[]
[]
[]
[{"$f":"A171","v":"María José Ceballos López"},null,null,null,null,null,null,null,null,null,null,null,{"$f":"C189","v":{"$error":"#REF!"}}]
[{"$f":"A172","v":"Encargada de Nómina"},null,null,null,null,null,null,null,null,null,null,null,{"$f":"P190","v":{"$error":"#REF!"}}]
[{"$f":"A173","v":"AMSA "},null,null,null,null,null,null,null,null,null,null,null,"AMSA"]
[]
["GOBIERNO DE LA REPÚBLICA DE GUATEMALA"]
["AUTORIDAD PARA EL MANEJO SUSTENTABLE DE LA CUENCA Y DEL LAGO DE AMATITLÁN"]
[]
[]
[{"$f":"A147","v":"Boleta de Liquidación Mensual Renglón 031 \"Jornales\"   Correspondiente al mes de septiembre 2014"}]
[{"$f":"A148","v":{"$error":"#REF!"}}]
[]
["Empleado:",null,{"$f":"#REF!","v":{"$error":"#REF!"}},null,null,null,null,null,null,null,"Certificación No.",null,null,{"$f":"N150+1","v":{"$error":"#REF!"}},null,"Fecha:",null,"2014-09-30"]
["Contrato:",null,{"$f":"#REF!","v":{"$error":"#REF!"}},null,null,"Puesto Funcional:",null,null,{"$f":"#REF!","v":{"$error":"#REF!"}},null,null,null,"Titulo Jornal:",null,null,{"$f":"#REF!","v":{"$error":"#REF!"}}]
["Cuenta / Banco:",null,null,{"$f":"#REF!","v":{"$error":"#REF!"}},null,"Banco de Desarrollo Rural, S.A.",null,null,null,null,"Jornal Diario:",null,null,{"$f":"#REF!","v":{"$error":"#REF!"}},null,"Días Trabajados:",null,null,{"$f":"#REF!","v":{"$error":"#REF!"}}]
[]
[null,null,null,null,null,null,null,null,null,null,null,null,"Ingresos",null,null,null,"Deducciones "]
[]
[null,"031","DEVENGADO",null,null,null,null,null,null,null,null,null,{"$f":"#REF!","v":{"$error":"#REF!"}}]
[null,"033","BONO ACUERDO GUBERNATIVO 66-2000",null,null,null,null,null,null,null,null,null,{"$f":"#REF!","v":{"$error":"#REF!"}}]
[null,"201","I.G.S.S",null,null,null,null,null,null,null,null,null,null,null,null,null,{"$f":"#REF!","v":{"$error":"#REF!"}}]
[null,"118","MONTEPÍO",null,null,null,null,null,null,null,null,null,null,null,null,null,0]
[null,"211","RETENCIONES JUDICIALES",null,null,null,null,null,null,null,null,null,null,null,null,null,{"$f":"#REF!","v":{"$error":"#REF!"}}]
[null,null,null,null,null,null,null,null,null,null,"Total  :",null,{"$f":"SUM(M227:O231)","v":{"$error":"#REF!"}},null,null,null,{"$f":"SUM(Q229:S231)","v":{"$error":"#REF!"}}]
[null,null,null,null,null,null,null,null,null,null,"Liquido :",null,{"$f":"M232-Q232","v":{"$error":"#REF!"}}]
[]
[]
[]
[]
[]
[]
[]
[]
["María José Ceballos López",null,null,null,null,null,null,null,null,null,null,null,{"$f":"C221","v":{"$error":"#REF!"}}]
["Encargada de Nómina",null,null,null,null,null,null,null,null,null,null,null,{"$f":"P222","v":{"$error":"#REF!"}}]
["AMSA ",null,null,null,null,null,null,null,null,null,null,null,"AMSA"]
[]
[]
[]
[]
[]
[]
[]
[]
["GOBIERNO DE LA REPÚBLICA DE GUATEMALA"]
["AUTORIDAD PARA EL MANEJO SUSTENTABLE DE LA CUENCA Y DEL LAGO DE AMATITLÁN"]
[]
[]
[{"$f":"A218","v":"Boleta de Liquidación Mensual Renglón 031 \"Jornales\"   Correspondiente al mes de septiembre 2014"}]
[{"$f":"A219","v":{"$error":"#REF!"}}]
[]
["Empleado:",null,{"$f":"C221","v":{"$error":"#REF!"}},null,null,null,null,null,null,null,"Certificación No.",null,null,{"$f":"N221","v":{"$error":"#REF!"}},null,"Fecha:",null,{"$f":"R221","v":"2014-09-30"}]
["Contrato:",null,{"$f":"C222","v":{"$error":"#REF!"}},null,null,"Puesto Funcional:",null,null,{"$f":"I222","v":{"$error":"#REF!"}},null,null,null,"Titulo Jornal:",null,null,{"$f":"P222","v":{"$error":"#REF!"}}]
["Cuenta / Banco:",null,null,{"$f":"D223","v":{"$error":"#REF!"}},null,"Banco de Desarrollo Rural, S.A.",null,null,null,null,"Jornal Diario:",null,null,{"$f":"N223","v":{"$error":"#REF!"}},null,"Días Trabajados:",null,null,{"$f":"S223","v":{"$error":"#REF!"}}]
[]
[null,null,null,null,null,null,null,null,null,null,null,null,"Ingresos",null,null,null,"Deducciones "]
[]
[null,"031","DEVENGADO",null,null,null,null,null,null,null,null,null,{"$f":"M227","v":{"$error":"#REF!"}}]
[null,"033","BONO ACUERDO GUBERNATIVO 66-2000",null,null,null,null,null,null,null,null,null,{"$f":"M228","v":{"$error":"#REF!"}}]
[null,"201","I.G.S.S",null,null,null,null,null,null,null,null,null,null,null,null,null,{"$f":"Q229","v":{"$error":"#REF!"}}]
[null,"118","MONTEPÍO",null,null,null,null,null,null,null,null,null,null,null,null,null,{"$f":"Q230","v":0}]
[null,"211","RETENCIONES JUDICIALES",null,null,null,null,null,null,null,null,null,null,null,null,null,{"$f":"Q231","v":{"$error":"#REF!"}}]
[null,null,null,null,null,null,null,null,null,null,"Total  :",null,{"$f":"SUM(M266:O270)","v":{"$error":"#REF!"}},null,null,null,{"$f":"SUM(Q268:S270)","v":{"$error":"#REF!"}}]
[null,null,null,null,null,null,null,null,null,null,"Liquido :",null,{"$f":"M271-Q271","v":{"$error":"#REF!"}}]
[]
[]
[]
[]
[]
[]
[]
[]
[{"$f":"A242","v":"María José Ceballos López"},null,null,null,null,null,null,null,null,null,null,null,{"$f":"C260","v":{"$error":"#REF!"}}]
[{"$f":"A243","v":"Encargada de Nómina"},null,null,null,null,null,null,null,null,null,null,null,{"$f":"P261","v":{"$error":"#REF!"}}]
[{"$f":"A244","v":"AMSA "},null,null,null,null,null,null,null,null,null,null,null,"AMSA"]
[]
["GOBIERNO DE LA REPÚBLICA DE GUATEMALA"]
["AUTORIDAD PARA EL MANEJO SUSTENTABLE DE LA CUENCA Y DEL LAGO DE AMATITLÁN"]
[]
[]
[{"$f":"A218","v":"Boleta de Liquidación Mensual Renglón 031 \"Jornales\"   Correspondiente al mes de septiembre 2014"}]
[{"$f":"A219","v":{"$error":"#REF!"}}]
[]
["Empleado:",null,{"$f":"#REF!","v":{"$error":"#REF!"}},null,null,null,null,null,null,null,"Certificación No.",null,null,{"$f":"N221+1","v":{"$error":"#REF!"}},null,"Fecha:",null,{"$f":"R8","v":"2014-08-31"}]
["Contrato:",null,{"$f":"#REF!","v":{"$error":"#REF!"}},null,null,"Puesto Funcional:",null,null,{"$f":"#REF!","v":{"$error":"#REF!"}},null,null,null,"Titulo Jornal:",null,null,{"$f":"#REF!","v":{"$error":"#REF!"}}]
["Cuenta / Banco:",null,null,{"$f":"#REF!","v":{"$error":"#REF!"}},null,"Banco de Desarrollo Rural, S.A.",null,null,null,null,"Jornal Diario:",null,null,{"$f":"#REF!","v":{"$error":"#REF!"}},null,"Días Trabajados:",null,null,{"$f":"#REF!","v":{"$error":"#REF!"}}]
[]
[null,null,null,null,null,null,null,null,null,null,null,null,"Ingresos",null,null,null,"Deducciones "]
[]
[null,"031","DEVENGADO",null,null,null,null,null,null,null,null,null,{"$f":"#REF!","v":{"$error":"#REF!"}}]
[null,"033","BONO ACUERDO GUBERNATIVO 66-2000",null,null,null,null,null,null,null,null,null,{"$f":"#REF!","v":{"$error":"#REF!"}}]
[null,"201","I.G.S.S",null,null,null,null,null,null,null,null,null,null,null,null,null,{"$f":"#REF!","v":{"$error":"#REF!"}}]
[null,"118","MONTEPÍO",null,null,null,null,null,null,null,null,null,null,null,null,null,0]
[null,"211","RETENCIONES JUDICIALES",null,null,null,null,null,null,null,null,null,null,null,null,null,{"$f":"#REF!","v":{"$error":"#REF!"}}]
[null,null,null,null,null,null,null,null,null,null,"Total  :",null,{"$f":"SUM(M298:O302)","v":{"$error":"#REF!"}},null,null,null,{"$f":"SUM(Q300:S302)","v":{"$error":"#REF!"}}]
[null,null,null,null,null,null,null,null,null,null,"Liquido :",null,{"$f":"M303-Q303","v":{"$error":"#REF!"}}]
[]
[]
[]
[]
[]
[]
[]
[]
["María José Ceballos López",null,null,null,null,null,null,null,null,null,null,null,{"$f":"C292","v":{"$error":"#REF!"}}]
["Encargada de Nómina",null,null,null,null,null,null,null,null,null,null,null,{"$f":"P293","v":{"$error":"#REF!"}}]
["AMSA ",null,null,null,null,null,null,null,null,null,null,null,"AMSA"]
[]
[]
[]
[]
[]
[]
[]
[]
["GOBIERNO DE LA REPÚBLICA DE GUATEMALA"]
["AUTORIDAD PARA EL MANEJO SUSTENTABLE DE LA CUENCA Y DEL LAGO DE AMATITLÁN"]
[]
[]
[{"$f":"A289","v":"Boleta de Liquidación Mensual Renglón 031 \"Jornales\"   Correspondiente al mes de septiembre 2014"}]
[{"$f":"A290","v":{"$error":"#REF!"}}]
[]
["Empleado:",null,{"$f":"C292","v":{"$error":"#REF!"}},null,null,null,null,null,null,null,"Certificación No.",null,null,{"$f":"N292","v":{"$error":"#REF!"}},null,"Fecha:",null,{"$f":"R292","v":"2014-08-31"}]
["Contrato:",null,{"$f":"C293","v":{"$error":"#REF!"}},null,null,"Puesto Funcional:",null,null,{"$f":"I293","v":{"$error":"#REF!"}},null,null,null,"Titulo Jornal:",null,null,{"$f":"P293","v":{"$error":"#REF!"}}]
["Cuenta / Banco:",null,null,{"$f":"D294","v":{"$error":"#REF!"}},null,"Banco de Desarrollo Rural, S.A.",null,null,null,null,"Jornal Diario:",null,null,{"$f":"N294","v":{"$error":"#REF!"}},null,"Días Trabajados:",null,null,{"$f":"S294","v":{"$error":"#REF!"}}]
[]
[null,null,null,null,null,null,null,null,null,null,null,null,"Ingresos",null,null,null,"Deducciones "]
[]
[null,"031","DEVENGADO",null,null,null,null,null,null,null,null,null,{"$f":"M298","v":{"$error":"#REF!"}}]
[null,"033","BONO ACUERDO GUBERNATIVO 66-2000",null,null,null,null,null,null,null,null,null,{"$f":"M299","v":{"$error":"#REF!"}}]
[null,"201","I.G.S.S",null,null,null,null,null,null,null,null,null,null,null,null,null,{"$f":"Q300","v":{"$error":"#REF!"}}]
[null,"118","MONTEPÍO",null,null,null,null,null,null,null,null,null,null,null,null,null,{"$f":"Q301","v":0}]
[null,"211","RETENCIONES JUDICIALES",null,null,null,null,null,null,null,null,null,null,null,null,null,{"$f":"Q302","v":{"$error":"#REF!"}}]
[null,null,null,null,null,null,null,null,null,null,"Total  :",null,{"$f":"SUM(M337:O341)","v":{"$error":"#REF!"}},null,null,null,{"$f":"SUM(Q339:S341)","v":{"$error":"#REF!"}}]
[null,null,null,null,null,null,null,null,null,null,"Liquido :",null,{"$f":"M342-Q342","v":{"$error":"#REF!"}}]
[]
[]
[]
[]
[]
[]
[]
[]
[{"$f":"A313","v":"María José Ceballos López"},null,null,null,null,null,null,null,null,null,null,null,{"$f":"C331","v":{"$error":"#REF!"}}]
[{"$f":"A314","v":"Encargada de Nómina"},null,null,null,null,null,null,null,null,null,null,null,{"$f":"P332","v":{"$error":"#REF!"}}]
[{"$f":"A315","v":"AMSA "},null,null,null,null,null,null,null,null,null,null,null,"AMSA"]
[]
["GOBIERNO DE LA REPÚBLICA DE GUATEMALA"]
["AUTORIDAD PARA EL MANEJO SUSTENTABLE DE LA CUENCA Y DEL LAGO DE AMATITLÁN"]
[]
[]
["Boleta de Liquidación Mensual Renglón 031 \"Jornales\"   Correspondiente al mes de Agosto 2015"]
["NÚMERO 45-2015"]
[]
["Empleado:",null,"Yomara Ninett Escobar Calderón",null,null,null,null,null,null,null,"Certificación No.",null,null,7,null,"Fecha:",null,"2015-08-31"]
["Contrato:",null,"11-2014-031-AMSA",null,null,"Puesto Funcional:",null,null,{"$f":"#REF!","v":{"$error":"#REF!"}},null,null,null,"Titulo Jornal:",null,null,"Peón"]
["Cuenta / Banco:",null,null,3164072096,null,"Banco de Desarrollo Rural, S.A.",null,null,null,null,"Jornal Diario:",null,null,74.97,null,"Días Trabajados:",null,null,{"$f":"#REF!","v":{"$error":"#REF!"}}]
[]
[null,null,null,null,null,null,null,null,null,null,null,null,"Ingresos",null,null,null,"Deducciones "]
[]
[null,"031","DEVENGADO",null,null,null,null,null,null,null,null,null,{"$f":"+N365*S365","v":{"$error":"#REF!"}}]
[null,"033","BONO ACUERDO GUBERNATIVO 66-2000",null,null,null,null,null,null,null,null,null,{"$f":"#REF!","v":{"$error":"#REF!"}}]
[null,"201","I.G.S.S",null,null,null,null,null,null,null,null,null,null,null,null,null,{"$f":"ROUND(M369*4.83%,2)","v":{"$error":"#REF!"}}]
[null,"118","MONTEPÍO",null,null,null,null,null,null,null,null,null,null,null,null,null,0]
[null,"211","RETENCIONES JUDICIALES",null,null,null,null,null,null,null,null,null,null,null,null,null,{"$f":"#REF!","v":{"$error":"#REF!"}}]
[null,null,null,null,null,null,null,null,null,null,"Total  :",null,{"$f":"SUM(M369:O373)","v":{"$error":"#REF!"}},null,null,null,{"$f":"SUM(Q371:S373)","v":{"$error":"#REF!"}}]
[null,null,null,null,null,null,null,null,null,null,"Liquido :",null,{"$f":"M374-Q374","v":{"$error":"#REF!"}}]
[]
[]
[]
[]
[]
[]
[]
[]
["Jonnathan René Pernillo Salazar",null,null,null,null,null,null,null,null,null,null,null,{"$f":"C363","v":"Yomara Ninett Escobar Calderón"}]
["Encargado de Nómina",null,null,null,null,null,null,null,null,null,null,null,{"$f":"P364","v":"Peón"}]
["AMSA ",null,null,null,null,null,null,null,null,null,null,null,"AMSA"]
[]
[]
[]
[]
[]
[]
[]
[]
["GOBIERNO DE LA REPÚBLICA DE GUATEMALA"]
["AUTORIDAD PARA EL MANEJO SUSTENTABLE DE LA CUENCA Y DEL LAGO DE AMATITLÁN"]
[]
[]
["Boleta de Liquidación Mensual Renglón 031 \"Jornales\"   Correspondiente al mes de septiembre 2015"]
["NÚMERO 49-2015"]
[]
["Empleado:",null,{"$f":"C363","v":"Yomara Ninett Escobar Calderón"},null,null,null,null,null,null,null,"Certificación No.",null,null,{"$f":"N363","v":7},null,"Fecha:",null,"2015-09-30"]
["Contrato:",null,{"$f":"C364","v":"11-2014-031-AMSA"},null,null,"Puesto Funcional:",null,null,{"$f":"I364","v":{"$error":"#REF!"}},null,null,null,"Titulo Jornal:",null,null,{"$f":"P364","v":"Peón"}]
["Cuenta / Banco:",null,null,{"$f":"D365","v":3164072096},null,"Banco de Desarrollo Rural, S.A.",null,null,null,null,"Jornal Diario:",null,null,{"$f":"N365","v":74.97},null,"Días Trabajados:",null,null,30]
[]
[null,null,null,null,null,null,null,null,null,null,null,null,"Ingresos",null,null,null,"Deducciones "]
[]
[null,"031","DEVENGADO",null,null,null,null,null,null,null,null,null,{"$f":"+N404*S404","v":2249.1}]
[null,"033","BONO ACUERDO GUBERNATIVO 66-2000",null,null,null,null,null,null,null,null,null,{"$f":"M370","v":{"$error":"#REF!"}}]
[null,"201","I.G.S.S",null,null,null,null,null,null,null,null,null,null,null,null,null,{"$f":"ROUND(M408*4.83%,2)","v":108.63}]
[null,"118","MONTEPÍO",null,null,null,null,null,null,null,null,null,null,null,null,null,{"$f":"Q372","v":0}]
[null,"211","RETENCIONES JUDICIALES",null,null,null,null,null,null,null,null,null,null,null,null,null,{"$f":"Q373","v":{"$error":"#REF!"}}]
[null,null,null,null,null,null,null,null,null,null,"Total  :",null,{"$f":"SUM(M408:O412)","v":{"$error":"#REF!"}},null,null,null,{"$f":"SUM(Q410:S412)","v":{"$error":"#REF!"}}]
[null,null,null,null,null,null,null,null,null,null,"Liquido :",null,{"$f":"M413-Q413","v":{"$error":"#REF!"}}]
[]
[]
[]
[]
[]
[]
[]
[]
[{"$f":"A384","v":"Jonnathan René Pernillo Salazar"},null,null,null,null,null,null,null,null,null,null,null,{"$f":"C402","v":"Yomara Ninett Escobar Calderón"}]
[{"$f":"A385","v":"Encargado de Nómina"},null,null,null,null,null,null,null,null,null,null,null,{"$f":"P403","v":"Peón"}]
[{"$f":"A386","v":"AMSA "},null,null,null,null,null,null,null,null,null,null,null,"AMSA"]
[]
["GOBIERNO DE LA REPÚBLICA DE GUATEMALA"]
["AUTORIDAD PARA EL MANEJO SUSTENTABLE DE LA CUENCA Y DEL LAGO DE AMATITLÁN"]
[]
[]
[{"$f":"A360","v":"Boleta de Liquidación Mensual Renglón 031 \"Jornales\"   Correspondiente al mes de Agosto 2015"}]
[{"$f":"A361","v":"NÚMERO 45-2015"}]
[]
["Empleado:",null,{"$f":"#REF!","v":{"$error":"#REF!"}},null,null,null,null,null,null,null,"Certificación No.",null,null,{"$f":"N363+1","v":8},null,"Fecha:",null,{"$f":"R8","v":"2014-08-31"}]
["Contrato:",null,{"$f":"#REF!","v":{"$error":"#REF!"}},null,null,"Puesto Funcional:",null,null,{"$f":"#REF!","v":{"$error":"#REF!"}},null,null,null,"Titulo Jornal:",null,null,{"$f":"#REF!","v":{"$error":"#REF!"}}]
["Cuenta / Banco:",null,null,{"$f":"#REF!","v":{"$error":"#REF!"}},null,"Banco de Desarrollo Rural, S.A.",null,null,null,null,"Jornal Diario:",null,null,{"$f":"#REF!","v":{"$error":"#REF!"}},null,"Días Trabajados:",null,null,{"$f":"#REF!","v":{"$error":"#REF!"}}]
[]
[null,null,null,null,null,null,null,null,null,null,null,null,"Ingresos",null,null,null,"Deducciones "]
[]
[null,"031","DEVENGADO",null,null,null,null,null,null,null,null,null,{"$f":"#REF!","v":{"$error":"#REF!"}}]
[null,"033","BONO ACUERDO GUBERNATIVO 66-2000",null,null,null,null,null,null,null,null,null,{"$f":"#REF!","v":{"$error":"#REF!"}}]
[null,"201","I.G.S.S",null,null,null,null,null,null,null,null,null,null,null,null,null,{"$f":"#REF!","v":{"$error":"#REF!"}}]
[null,"118","MONTEPÍO",null,null,null,null,null,null,null,null,null,null,null,null,null,0]
[null,"211","RETENCIONES JUDICIALES",null,null,null,null,null,null,null,null,null,null,null,null,null,{"$f":"#REF!","v":{"$error":"#REF!"}}]
[null,null,null,null,null,null,null,null,null,null,"Total  :",null,{"$f":"SUM(M440:O444)","v":{"$error":"#REF!"}},null,null,null,{"$f":"SUM(Q442:S444)","v":{"$error":"#REF!"}}]
[null,null,null,null,null,null,null,null,null,null,"Liquido :",null,{"$f":"M445-Q445","v":{"$error":"#REF!"}}]
[]
[]
[]
[]
[]
[]
[]
[]
["María José Ceballos López",null,null,null,null,null,null,null,null,null,null,null,{"$f":"C434","v":{"$error":"#REF!"}}]
["Encargada de Nómina",null,null,null,null,null,null,null,null,null,null,null,{"$f":"P435","v":{"$error":"#REF!"}}]
["AMSA ",null,null,null,null,null,null,null,null,null,null,null,"AMSA"]
[]
[]
[]
[]
[]
[]
[]
[]
["GOBIERNO DE LA REPÚBLICA DE GUATEMALA"]
["AUTORIDAD PARA EL MANEJO SUSTENTABLE DE LA CUENCA Y DEL LAGO DE AMATITLÁN"]
[]
[]
[{"$f":"A431","v":"Boleta de Liquidación Mensual Renglón 031 \"Jornales\"   Correspondiente al mes de Agosto 2015"}]
[{"$f":"A432","v":"NÚMERO 45-2015"}]
[]
["Empleado:",null,{"$f":"C434","v":{"$error":"#REF!"}},null,null,null,null,null,null,null,"Certificación No.",null,null,{"$f":"N434","v":8},null,"Fecha:",null,{"$f":"R434","v":"2014-08-31"}]
["Contrato:",null,{"$f":"C435","v":{"$error":"#REF!"}},null,null,"Puesto Funcional:",null,null,{"$f":"I435","v":{"$error":"#REF!"}},null,null,null,"Titulo Jornal:",null,null,{"$f":"P435","v":{"$error":"#REF!"}}]
["Cuenta / Banco:",null,null,{"$f":"D436","v":{"$error":"#REF!"}},null,"Banco de Desarrollo Rural, S.A.",null,null,null,null,"Jornal Diario:",null,null,{"$f":"N436","v":{"$error":"#REF!"}},null,"Días Trabajados:",null,null,{"$f":"S436","v":{"$error":"#REF!"}}]
[]
[null,null,null,null,null,null,null,null,null,null,null,null,"Ingresos",null,null,null,"Deducciones "]
[]
[null,"031","DEVENGADO",null,null,null,null,null,null,null,null,null,{"$f":"M440","v":{"$error":"#REF!"}}]
[null,"033","BONO ACUERDO GUBERNATIVO 66-2000",null,null,null,null,null,null,null,null,null,{"$f":"M441","v":{"$error":"#REF!"}}]
[null,"201","I.G.S.S",null,null,null,null,null,null,null,null,null,null,null,null,null,{"$f":"Q442","v":{"$error":"#REF!"}}]
[null,"118","MONTEPÍO",null,null,null,null,null,null,null,null,null,null,null,null,null,{"$f":"Q443","v":0}]
[null,"211","RETENCIONES JUDICIALES",null,null,null,null,null,null,null,null,null,null,null,null,null,{"$f":"Q444","v":{"$error":"#REF!"}}]
[null,null,null,null,null,null,null,null,null,null,"Total  :",null,{"$f":"SUM(M479:O483)","v":{"$error":"#REF!"}},null,null,null,{"$f":"SUM(Q481:S483)","v":{"$error":"#REF!"}}]
[null,null,null,null,null,null,null,null,null,null,"Liquido :",null,{"$f":"M484-Q484","v":{"$error":"#REF!"}}]
[]
[]
[]
[]
[]
[]
[]
[]
[{"$f":"A455","v":"María José Ceballos López"},null,null,null,null,null,null,null,null,null,null,null,{"$f":"C473","v":{"$error":"#REF!"}}]
[{"$f":"A456","v":"Encargada de Nómina"},null,null,null,null,null,null,null,null,null,null,null,{"$f":"P474","v":{"$error":"#REF!"}}]
[{"$f":"A457","v":"AMSA "},null,null,null,null,null,null,null,null,null,null,null,"AMSA"]
[]
["GOBIERNO DE LA REPÚBLICA DE GUATEMALA"]
["AUTORIDAD PARA EL MANEJO SUSTENTABLE DE LA CUENCA Y DEL LAGO DE AMATITLÁN"]
[]
[]
["Boleta de Liquidación Mensual Renglón 031 \"Jornales\" Correspondiente al mes de junio de 2014"]
[{"$f":"A432","v":"NÚMERO 45-2015"}]
[]
["Empleado:",null,{"$f":"#REF!","v":{"$error":"#REF!"}},null,null,null,null,null,null,null,"Certificación No.",null,null,{"$f":"N434+1","v":9},null,"Fecha:",null,"2014-06-30"]
["Contrato:",null,{"$f":"#REF!","v":{"$error":"#REF!"}},null,null,"Puesto Funcional:",null,null,{"$f":"#REF!","v":{"$error":"#REF!"}},null,null,null,"Titulo Jornal:",null,null,{"$f":"#REF!","v":{"$error":"#REF!"}}]
["Cuenta / Banco:",null,null,{"$f":"#REF!","v":{"$error":"#REF!"}},null,"Banco de Desarrollo Rural, S.A.",null,null,null,null,"Jornal Diario:",null,null,{"$f":"#REF!","v":{"$error":"#REF!"}},null,"Días Trabajados:",null,null,{"$f":"#REF!","v":{"$error":"#REF!"}}]
[]
[null,null,null,null,null,null,null,null,null,null,null,null,"Ingresos",null,null,null,"Deducciones "]
[]
[null,"031","DEVENGADO",null,null,null,null,null,null,null,null,null,{"$f":"#REF!","v":{"$error":"#REF!"}}]
[null,"033","BONO ACUERDO GUBERNATIVO 66-2000",null,null,null,null,null,null,null,null,null,{"$f":"#REF!","v":{"$error":"#REF!"}}]
[null,"201","I.G.S.S",null,null,null,null,null,null,null,null,null,null,null,null,null,{"$f":"#REF!","v":{"$error":"#REF!"}}]
[null,"118","MONTEPÍO",null,null,null,null,null,null,null,null,null,null,null,null,null,0]
[null,"211","RETENCIONES JUDICIALES",null,null,null,null,null,null,null,null,null,null,null,null,null,{"$f":"#REF!","v":{"$error":"#REF!"}}]
[null,null,null,null,null,null,null,null,null,null,"Total  :",null,{"$f":"SUM(M511:O515)","v":{"$error":"#REF!"}},null,null,null,{"$f":"SUM(Q513:S515)","v":{"$error":"#REF!"}}]
[null,null,null,null,null,null,null,null,null,null,"Liquido :",null,{"$f":"M516-Q516","v":{"$error":"#REF!"}}]
[]
[]
[]
[]
[]
[]
[]
[]
["María José Ceballos López",null,null,null,null,null,null,null,null,null,null,null,{"$f":"C505","v":{"$error":"#REF!"}}]
["Encargada de Nómina",null,null,null,null,null,null,null,null,null,null,null,{"$f":"P506","v":{"$error":"#REF!"}}]
["AMSA ",null,null,null,null,null,null,null,null,null,null,null,"AMSA"]
[]
[]
[]
[]
[]
[]
[]
[]
["GOBIERNO DE LA REPÚBLICA DE GUATEMALA"]
["AUTORIDAD PARA EL MANEJO SUSTENTABLE DE LA CUENCA Y DEL LAGO DE AMATITLÁN"]
[]
[]
[{"$f":"A502","v":"Boleta de Liquidación Mensual Renglón 031 \"Jornales\" Correspondiente al mes de junio de 2014"}]
[{"$f":"A503","v":"NÚMERO 45-2015"}]
[]
["Empleado:",null,{"$f":"C505","v":{"$error":"#REF!"}},null,null,null,null,null,null,null,"Certificación No.",null,null,{"$f":"N505","v":9},null,"Fecha:",null,"2014-06-30"]
["Contrato:",null,{"$f":"C506","v":{"$error":"#REF!"}},null,null,"Puesto Funcional:",null,null,{"$f":"I506","v":{"$error":"#REF!"}},null,null,null,"Titulo Jornal:",null,null,{"$f":"P506","v":{"$error":"#REF!"}}]
["Cuenta / Banco:",null,null,{"$f":"D507","v":{"$error":"#REF!"}},null,"Banco de Desarrollo Rural, S.A.",null,null,null,null,"Jornal Diario:",null,null,{"$f":"N507","v":{"$error":"#REF!"}},null,"Días Trabajados:",null,null,{"$f":"S507","v":{"$error":"#REF!"}}]
[]
[null,null,null,null,null,null,null,null,null,null,null,null,"Ingresos",null,null,null,"Deducciones "]
[]
[null,"031","DEVENGADO",null,null,null,null,null,null,null,null,null,{"$f":"M511","v":{"$error":"#REF!"}}]
[null,"033","BONO ACUERDO GUBERNATIVO 66-2000",null,null,null,null,null,null,null,null,null,{"$f":"M512","v":{"$error":"#REF!"}}]
[null,"201","I.G.S.S",null,null,null,null,null,null,null,null,null,null,null,null,null,{"$f":"Q513","v":{"$error":"#REF!"}}]
[null,"118","MONTEPÍO",null,null,null,null,null,null,null,null,null,null,null,null,null,{"$f":"Q514","v":0}]
[null,"211","RETENCIONES JUDICIALES",null,null,null,null,null,null,null,null,null,null,null,null,null,{"$f":"Q515","v":{"$error":"#REF!"}}]
[null,null,null,null,null,null,null,null,null,null,"Total  :",null,{"$f":"SUM(M550:O554)","v":{"$error":"#REF!"}},null,null,null,{"$f":"SUM(Q552:S554)","v":{"$error":"#REF!"}}]
[null,null,null,null,null,null,null,null,null,null,"Liquido :",null,{"$f":"M555-Q555","v":{"$error":"#REF!"}}]
[]
[]
[]
[]
[]
[]
[]
[]
[{"$f":"A526","v":"María José Ceballos López"},null,null,null,null,null,null,null,null,null,null,null,{"$f":"C544","v":{"$error":"#REF!"}}]
[{"$f":"A527","v":"Encargada de Nómina"},null,null,null,null,null,null,null,null,null,null,null,{"$f":"P545","v":{"$error":"#REF!"}}]
[{"$f":"A528","v":"AMSA "},null,null,null,null,null,null,null,null,null,null,null,"AMSA"]
[]
["GOBIERNO DE LA REPÚBLICA DE GUATEMALA"]
["AUTORIDAD PARA EL MANEJO SUSTENTABLE DE LA CUENCA Y DEL LAGO DE AMATITLÁN"]
[]
[]
[{"$f":"A5","v":"Boleta de Liquidación Mensual Renglón 031 \"Jornales\"   Correspondiente al mes de septiembre 2014"}]
[{"$f":"A503","v":"NÚMERO 45-2015"}]
[]
["Empleado:",null,{"$f":"#REF!","v":{"$error":"#REF!"}},null,null,null,null,null,null,null,"Certificación No.",null,null,{"$f":"N505+1","v":10},null,"Fecha:",null,{"$f":"R8","v":"2014-08-31"}]
["Contrato:",null,{"$f":"#REF!","v":{"$error":"#REF!"}},null,null,"Puesto Funcional:",null,null,{"$f":"#REF!","v":{"$error":"#REF!"}},null,null,null,"Titulo Jornal:",null,null,{"$f":"#REF!","v":{"$error":"#REF!"}}]
["Cuenta / Banco:",null,null,{"$f":"#REF!","v":{"$error":"#REF!"}},null,"Banco de Desarrollo Rural, S.A.",null,null,null,null,"Jornal Diario:",null,null,{"$f":"#REF!","v":{"$error":"#REF!"}},null,"Días Trabajados:",null,null,{"$f":"#REF!","v":{"$error":"#REF!"}}]
[]
[null,null,null,null,null,null,null,null,null,null,null,null,"Ingresos",null,null,null,"Deducciones "]
[]
[null,"031","DEVENGADO",null,null,null,null,null,null,null,null,null,{"$f":"#REF!","v":{"$error":"#REF!"}}]
[null,"033","BONO ACUERDO GUBERNATIVO 66-2000",null,null,null,null,null,null,null,null,null,{"$f":"#REF!","v":{"$error":"#REF!"}}]
[null,"201","I.G.S.S",null,null,null,null,null,null,null,null,null,null,null,null,null,{"$f":"#REF!","v":{"$error":"#REF!"}}]
[null,"118","MONTEPÍO",null,null,null,null,null,null,null,null,null,null,null,null,null,0]
[null,"211","RETENCIONES JUDICIALES",null,null,null,null,null,null,null,null,null,null,null,null,null,{"$f":"#REF!","v":{"$error":"#REF!"}}]
[null,null,null,null,null,null,null,null,null,null,"Total  :",null,{"$f":"SUM(M582:O586)","v":{"$error":"#REF!"}},null,null,null,{"$f":"SUM(Q584:S586)","v":{"$error":"#REF!"}}]
[null,null,null,null,null,null,null,null,null,null,"Liquido :",null,{"$f":"M587-Q587","v":{"$error":"#REF!"}}]
[]
[]
[]
[]
[]
[]
[]
[]
["María José Ceballos López",null,null,null,null,null,null,null,null,null,null,null,{"$f":"C576","v":{"$error":"#REF!"}}]
["Encargada de Nómina",null,null,null,null,null,null,null,null,null,null,null,{"$f":"P577","v":{"$error":"#REF!"}}]
["AMSA ",null,null,null,null,null,null,null,null,null,null,null,"AMSA"]
[]
[]
[]
[]
[]
[]
[]
[]
["GOBIERNO DE LA REPÚBLICA DE GUATEMALA"]
["AUTORIDAD PARA EL MANEJO SUSTENTABLE DE LA CUENCA Y DEL LAGO DE AMATITLÁN"]
[]
[]
[{"$f":"A573","v":"Boleta de Liquidación Mensual Renglón 031 \"Jornales\"   Correspondiente al mes de septiembre 2014"}]
[{"$f":"A574","v":"NÚMERO 45-2015"}]
[]
["Empleado:",null,{"$f":"C576","v":{"$error":"#REF!"}},null,null,null,null,null,null,null,"Certificación No.",null,null,{"$f":"N576","v":10},null,"Fecha:",null,{"$f":"R576","v":"2014-08-31"}]
["Contrato:",null,{"$f":"C577","v":{"$error":"#REF!"}},null,null,"Puesto Funcional:",null,null,{"$f":"I577","v":{"$error":"#REF!"}},null,null,null,"Titulo Jornal:",null,null,{"$f":"P577","v":{"$error":"#REF!"}}]
["Cuenta / Banco:",null,null,{"$f":"D578","v":{"$error":"#REF!"}},null,"Banco de Desarrollo Rural, S.A.",null,null,null,null,"Jornal Diario:",null,null,{"$f":"N578","v":{"$error":"#REF!"}},null,"Días Trabajados:",null,null,{"$f":"S578","v":{"$error":"#REF!"}}]
[]
[null,null,null,null,null,null,null,null,null,null,null,null,"Ingresos",null,null,null,"Deducciones "]
[]
[null,"031","DEVENGADO",null,null,null,null,null,null,null,null,null,{"$f":"M582","v":{"$error":"#REF!"}}]
[null,"033","BONO ACUERDO GUBERNATIVO 66-2000",null,null,null,null,null,null,null,null,null,{"$f":"M583","v":{"$error":"#REF!"}}]
[null,"201","I.G.S.S",null,null,null,null,null,null,null,null,null,null,null,null,null,{"$f":"Q584","v":{"$error":"#REF!"}}]
[null,"118","MONTEPÍO",null,null,null,null,null,null,null,null,null,null,null,null,null,{"$f":"Q585","v":0}]
[null,"211","RETENCIONES JUDICIALES",null,null,null,null,null,null,null,null,null,null,null,null,null,{"$f":"Q586","v":{"$error":"#REF!"}}]
[null,null,null,null,null,null,null,null,null,null,"Total  :",null,{"$f":"SUM(M621:O625)","v":{"$error":"#REF!"}},null,null,null,{"$f":"SUM(Q623:S625)","v":{"$error":"#REF!"}}]
[null,null,null,null,null,null,null,null,null,null,"Liquido :",null,{"$f":"M626-Q626","v":{"$error":"#REF!"}}]
[]
[]
[]
[]
[]
[]
[]
[]
[{"$f":"A597","v":"María José Ceballos López"},null,null,null,null,null,null,null,null,null,null,null,{"$f":"C615","v":{"$error":"#REF!"}}]
[{"$f":"A598","v":"Encargada de Nómina"},null,null,null,null,null,null,null,null,null,null,null,{"$f":"P616","v":{"$error":"#REF!"}}]
[{"$f":"A599","v":"AMSA "},null,null,null,null,null,null,null,null,null,null,null,"AMSA"]
[]
["GOBIERNO DE LA REPÚBLICA DE GUATEMALA"]
["AUTORIDAD PARA EL MANEJO SUSTENTABLE DE LA CUENCA Y DEL LAGO DE AMATITLÁN"]
[]
[]
[{"$f":"A573","v":"Boleta de Liquidación Mensual Renglón 031 \"Jornales\"   Correspondiente al mes de septiembre 2014"}]
[{"$f":"A574","v":"NÚMERO 45-2015"}]
[]
["Empleado:",null,{"$f":"#REF!","v":{"$error":"#REF!"}},null,null,null,null,null,null,null,"Certificación No.",null,null,{"$f":"N576+1","v":11},null,"Fecha:",null,{"$f":"R8","v":"2014-08-31"}]
["Contrato:",null,{"$f":"#REF!","v":{"$error":"#REF!"}},null,null,"Puesto Funcional:",null,null,{"$f":"#REF!","v":{"$error":"#REF!"}},null,null,null,"Titulo Jornal:",null,null,{"$f":"#REF!","v":{"$error":"#REF!"}}]
["Cuenta / Banco:",null,null,{"$f":"#REF!","v":{"$error":"#REF!"}},null,"Banco de Desarrollo Rural, S.A.",null,null,null,null,"Jornal Diario:",null,null,{"$f":"#REF!","v":{"$error":"#REF!"}},null,"Días Trabajados:",null,null,{"$f":"#REF!","v":{"$error":"#REF!"}}]
[]
[null,null,null,null,null,null,null,null,null,null,null,null,"Ingresos",null,null,null,"Deducciones "]
[]
[null,"031","DEVENGADO",null,null,null,null,null,null,null,null,null,{"$f":"#REF!","v":{"$error":"#REF!"}}]
[null,"033","BONO ACUERDO GUBERNATIVO 66-2000",null,null,null,null,null,null,null,null,null,{"$f":"#REF!","v":{"$error":"#REF!"}}]
[null,"201","I.G.S.S",null,null,null,null,null,null,null,null,null,null,null,null,null,{"$f":"#REF!","v":{"$error":"#REF!"}}]
[null,"118","MONTEPÍO",null,null,null,null,null,null,null,null,null,null,null,null,null,0]
[null,"211","RETENCIONES JUDICIALES",null,null,null,null,null,null,null,null,null,null,null,null,null,{"$f":"#REF!","v":{"$error":"#REF!"}}]
[null,null,null,null,null,null,null,null,null,null,"Total  :",null,{"$f":"SUM(M653:O657)","v":{"$error":"#REF!"}},null,null,null,{"$f":"SUM(Q655:S657)","v":{"$error":"#REF!"}}]
[null,null,null,null,null,null,null,null,null,null,"Liquido :",null,{"$f":"M658-Q658","v":{"$error":"#REF!"}}]
[]
[]
[]
[]
[]
[]
[]
[]
["María José Ceballos López",null,null,null,null,null,null,null,null,null,null,null,{"$f":"C647","v":{"$error":"#REF!"}}]
["Encargada de Nómina",null,null,null,null,null,null,null,null,null,null,null,{"$f":"P648","v":{"$error":"#REF!"}}]
["AMSA ",null,null,null,null,null,null,null,null,null,null,null,"AMSA"]
[]
[]
[]
[]
[]
[]
[]
[]
["GOBIERNO DE LA REPÚBLICA DE GUATEMALA"]
["AUTORIDAD PARA EL MANEJO SUSTENTABLE DE LA CUENCA Y DEL LAGO DE AMATITLÁN"]
[]
[]
[{"$f":"A644","v":"Boleta de Liquidación Mensual Renglón 031 \"Jornales\"   Correspondiente al mes de septiembre 2014"}]
[{"$f":"A645","v":"NÚMERO 45-2015"}]
[]
["Empleado:",null,{"$f":"C647","v":{"$error":"#REF!"}},null,null,null,null,null,null,null,"Certificación No.",null,null,{"$f":"N647","v":11},null,"Fecha:",null,{"$f":"R647","v":"2014-08-31"}]
["Contrato:",null,{"$f":"C648","v":{"$error":"#REF!"}},null,null,"Puesto Funcional:",null,null,{"$f":"I648","v":{"$error":"#REF!"}},null,null,null,"Titulo Jornal:",null,null,{"$f":"P648","v":{"$error":"#REF!"}}]
["Cuenta / Banco:",null,null,{"$f":"D649","v":{"$error":"#REF!"}},null,"Banco de Desarrollo Rural, S.A.",null,null,null,null,"Jornal Diario:",null,null,{"$f":"N649","v":{"$error":"#REF!"}},null,"Días Trabajados:",null,null,{"$f":"S649","v":{"$error":"#REF!"}}]
[]
[null,null,null,null,null,null,null,null,null,null,null,null,"Ingresos",null,null,null,"Deducciones "]
[]
[null,"031","DEVENGADO",null,null,null,null,null,null,null,null,null,{"$f":"M653","v":{"$error":"#REF!"}}]
[null,"033","BONO ACUERDO GUBERNATIVO 66-2000",null,null,null,null,null,null,null,null,null,{"$f":"M654","v":{"$error":"#REF!"}}]
[null,"201","I.G.S.S",null,null,null,null,null,null,null,null,null,null,null,null,null,{"$f":"Q655","v":{"$error":"#REF!"}}]
[null,"118","MONTEPÍO",null,null,null,null,null,null,null,null,null,null,null,null,null,{"$f":"Q656","v":0}]
[null,"211","RETENCIONES JUDICIALES",null,null,null,null,null,null,null,null,null,null,null,null,null,{"$f":"Q657","v":{"$error":"#REF!"}}]
[null,null,null,null,null,null,null,null,null,null,"Total  :",null,{"$f":"SUM(M692:O696)","v":{"$error":"#REF!"}},null,null,null,{"$f":"SUM(Q694:S696)","v":{"$error":"#REF!"}}]
[null,null,null,null,null,null,null,null,null,null,"Liquido :",null,{"$f":"M697-Q697","v":{"$error":"#REF!"}}]
[]
[]
[]
[]
[]
[]
[]
[]
[{"$f":"A668","v":"María José Ceballos López"},null,null,null,null,null,null,null,null,null,null,null,{"$f":"C686","v":{"$error":"#REF!"}}]
[{"$f":"A669","v":"Encargada de Nómina"},null,null,null,null,null,null,null,null,null,null,null,{"$f":"P687","v":{"$error":"#REF!"}}]
[{"$f":"A670","v":"AMSA "},null,null,null,null,null,null,null,null,null,null,null,"AMSA"]
[]
["GOBIERNO DE LA REPÚBLICA DE GUATEMALA"]
["AUTORIDAD PARA EL MANEJO SUSTENTABLE DE LA CUENCA Y DEL LAGO DE AMATITLÁN"]
[]
[]
[{"$f":"A644","v":"Boleta de Liquidación Mensual Renglón 031 \"Jornales\"   Correspondiente al mes de septiembre 2014"}]
[{"$f":"A645","v":"NÚMERO 45-2015"}]
[]
["Empleado:",null,{"$f":"#REF!","v":{"$error":"#REF!"}},null,null,null,null,null,null,null,"Certificación No.",null,null,{"$f":"N647+1","v":12},null,"Fecha:",null,{"$f":"R8","v":"2014-08-31"}]
["Contrato:",null,{"$f":"#REF!","v":{"$error":"#REF!"}},null,null,"Puesto Funcional:",null,null,{"$f":"#REF!","v":{"$error":"#REF!"}},null,null,null,"Titulo Jornal:",null,null,{"$f":"#REF!","v":{"$error":"#REF!"}}]
["Cuenta / Banco:",null,null,{"$f":"#REF!","v":{"$error":"#REF!"}},null,"Banco de Desarrollo Rural, S.A.",null,null,null,null,"Jornal Diario:",null,null,{"$f":"#REF!","v":{"$error":"#REF!"}},null,"Días Trabajados:",null,null,{"$f":"#REF!","v":{"$error":"#REF!"}}]
[]
[null,null,null,null,null,null,null,null,null,null,null,null,"Ingresos",null,null,null,"Deducciones "]
[]
[null,"031","DEVENGADO",null,null,null,null,null,null,null,null,null,{"$f":"#REF!","v":{"$error":"#REF!"}}]
[null,"033","BONO ACUERDO GUBERNATIVO 66-2000",null,null,null,null,null,null,null,null,null,{"$f":"#REF!","v":{"$error":"#REF!"}}]
[null,"201","I.G.S.S",null,null,null,null,null,null,null,null,null,null,null,null,null,{"$f":"#REF!","v":{"$error":"#REF!"}}]
[null,"118","MONTEPÍO",null,null,null,null,null,null,null,null,null,null,null,null,null,0]
[null,"211","RETENCIONES JUDICIALES",null,null,null,null,null,null,null,null,null,null,null,null,null,{"$f":"#REF!","v":{"$error":"#REF!"}}]
[null,null,null,null,null,null,null,null,null,null,"Total  :",null,{"$f":"SUM(M724:O728)","v":{"$error":"#REF!"}},null,null,null,{"$f":"SUM(Q726:S728)","v":{"$error":"#REF!"}}]
[null,null,null,null,null,null,null,null,null,null,"Liquido :",null,{"$f":"M729-Q729","v":{"$error":"#REF!"}}]
[]
[]
[]
[]
[]
[]
[]
[]
["María José Ceballos López",null,null,null,null,null,null,null,null,null,null,null,{"$f":"C718","v":{"$error":"#REF!"}}]
["Encargada de Nómina",null,null,null,null,null,null,null,null,null,null,null,{"$f":"P719","v":{"$error":"#REF!"}}]
["AMSA ",null,null,null,null,null,null,null,null,null,null,null,"AMSA"]
[]
[]
[]
[]
[]
[]
[]
[]
["GOBIERNO DE LA REPÚBLICA DE GUATEMALA"]
["AUTORIDAD PARA EL MANEJO SUSTENTABLE DE LA CUENCA Y DEL LAGO DE AMATITLÁN"]
[]
[]
[{"$f":"A715","v":"Boleta de Liquidación Mensual Renglón 031 \"Jornales\"   Correspondiente al mes de septiembre 2014"}]
[{"$f":"A716","v":"NÚMERO 45-2015"}]
[]
["Empleado:",null,{"$f":"C718","v":{"$error":"#REF!"}},null,null,null,null,null,null,null,"Certificación No.",null,null,{"$f":"N718","v":12},null,"Fecha:",null,{"$f":"R718","v":"2014-08-31"}]
["Contrato:",null,{"$f":"C719","v":{"$error":"#REF!"}},null,null,"Puesto Funcional:",null,null,{"$f":"I719","v":{"$error":"#REF!"}},null,null,null,"Titulo Jornal:",null,null,{"$f":"P719","v":{"$error":"#REF!"}}]
["Cuenta / Banco:",null,null,{"$f":"D720","v":{"$error":"#REF!"}},null,"Banco de Desarrollo Rural, S.A.",null,null,null,null,"Jornal Diario:",null,null,{"$f":"N720","v":{"$error":"#REF!"}},null,"Días Trabajados:",null,null,{"$f":"S720","v":{"$error":"#REF!"}}]
[]
[null,null,null,null,null,null,null,null,null,null,null,null,"Ingresos",null,null,null,"Deducciones "]
[]
[null,"031","DEVENGADO",null,null,null,null,null,null,null,null,null,{"$f":"M724","v":{"$error":"#REF!"}}]
[null,"033","BONO ACUERDO GUBERNATIVO 66-2000",null,null,null,null,null,null,null,null,null,{"$f":"M725","v":{"$error":"#REF!"}}]
[null,"201","I.G.S.S",null,null,null,null,null,null,null,null,null,null,null,null,null,{"$f":"Q726","v":{"$error":"#REF!"}}]
[null,"118","MONTEPÍO",null,null,null,null,null,null,null,null,null,null,null,null,null,{"$f":"Q727","v":0}]
[null,"211","RETENCIONES JUDICIALES",null,null,null,null,null,null,null,null,null,null,null,null,null,{"$f":"Q728","v":{"$error":"#REF!"}}]
[null,null,null,null,null,null,null,null,null,null,"Total  :",null,{"$f":"SUM(M763:O767)","v":{"$error":"#REF!"}},null,null,null,{"$f":"SUM(Q765:S767)","v":{"$error":"#REF!"}}]
[null,null,null,null,null,null,null,null,null,null,"Liquido :",null,{"$f":"M768-Q768","v":{"$error":"#REF!"}}]
[]
[]
[]
[]
[]
[]
[]
[]
[{"$f":"A739","v":"María José Ceballos López"},null,null,null,null,null,null,null,null,null,null,null,{"$f":"C757","v":{"$error":"#REF!"}}]
[{"$f":"A740","v":"Encargada de Nómina"},null,null,null,null,null,null,null,null,null,null,null,{"$f":"P758","v":{"$error":"#REF!"}}]
[{"$f":"A741","v":"AMSA "},null,null,null,null,null,null,null,null,null,null,null,"AMSA"]
[]
["GOBIERNO DE LA REPÚBLICA DE GUATEMALA"]
["AUTORIDAD PARA EL MANEJO SUSTENTABLE DE LA CUENCA Y DEL LAGO DE AMATITLÁN"]
[]
[]
[{"$f":"A715","v":"Boleta de Liquidación Mensual Renglón 031 \"Jornales\"   Correspondiente al mes de septiembre 2014"}]
[{"$f":"A716","v":"NÚMERO 45-2015"}]
[]
["Empleado:",null,{"$f":"#REF!","v":{"$error":"#REF!"}},null,null,null,null,null,null,null,"Certificación No.",null,null,{"$f":"N718+1","v":13},null,"Fecha:",null,{"$f":"R8","v":"2014-08-31"}]
["Contrato:",null,{"$f":"#REF!","v":{"$error":"#REF!"}},null,null,"Puesto Funcional:",null,null,{"$f":"#REF!","v":{"$error":"#REF!"}},null,null,null,"Titulo Jornal:",null,null,{"$f":"#REF!","v":{"$error":"#REF!"}}]
["Cuenta / Banco:",null,null,{"$f":"#REF!","v":{"$error":"#REF!"}},null,"Banco de Desarrollo Rural, S.A.",null,null,null,null,"Jornal Diario:",null,null,{"$f":"#REF!","v":{"$error":"#REF!"}},null,"Días Trabajados:",null,null,{"$f":"#REF!","v":{"$error":"#REF!"}}]
[]
[null,null,null,null,null,null,null,null,null,null,null,null,"Ingresos",null,null,null,"Deducciones "]
[]
[null,"031","DEVENGADO",null,null,null,null,null,null,null,null,null,{"$f":"#REF!","v":{"$error":"#REF!"}}]
[null,"033","BONO ACUERDO GUBERNATIVO 66-2000",null,null,null,null,null,null,null,null,null,{"$f":"#REF!","v":{"$error":"#REF!"}}]
[null,"201","I.G.S.S",null,null,null,null,null,null,null,null,null,null,null,null,null,{"$f":"#REF!","v":{"$error":"#REF!"}}]
[null,"118","MONTEPÍO",null,null,null,null,null,null,null,null,null,null,null,null,null,0]
[null,"211","RETENCIONES JUDICIALES",null,null,null,null,null,null,null,null,null,null,null,null,null,{"$f":"#REF!","v":{"$error":"#REF!"}}]
[null,null,null,null,null,null,null,null,null,null,"Total  :",null,{"$f":"SUM(M795:O799)","v":{"$error":"#REF!"}},null,null,null,{"$f":"SUM(Q797:S799)","v":{"$error":"#REF!"}}]
[null,null,null,null,null,null,null,null,null,null,"Liquido :",null,{"$f":"M800-Q800","v":{"$error":"#REF!"}}]
[]
[]
[]
[]
[]
[]
[]
[]
["María José Ceballos López",null,null,null,null,null,null,null,null,null,null,null,{"$f":"C789","v":{"$error":"#REF!"}}]
["Encargada de Nómina",null,null,null,null,null,null,null,null,null,null,null,{"$f":"P790","v":{"$error":"#REF!"}}]
["AMSA ",null,null,null,null,null,null,null,null,null,null,null,"AMSA"]
[]
[]
[]
[]
[]
[]
[]
[]
["GOBIERNO DE LA REPÚBLICA DE GUATEMALA"]
["AUTORIDAD PARA EL MANEJO SUSTENTABLE DE LA CUENCA Y DEL LAGO DE AMATITLÁN"]
[]
[]
[{"$f":"A786","v":"Boleta de Liquidación Mensual Renglón 031 \"Jornales\"   Correspondiente al mes de septiembre 2014"}]
[{"$f":"A787","v":"NÚMERO 45-2015"}]
[]
["Empleado:",null,{"$f":"C789","v":{"$error":"#REF!"}},null,null,null,null,null,null,null,"Certificación No.",null,null,{"$f":"N789","v":13},null,"Fecha:",null,{"$f":"R789","v":"2014-08-31"}]
["Contrato:",null,{"$f":"C790","v":{"$error":"#REF!"}},null,null,"Puesto Funcional:",null,null,{"$f":"I790","v":{"$error":"#REF!"}},null,null,null,"Titulo Jornal:",null,null,{"$f":"P790","v":{"$error":"#REF!"}}]
["Cuenta / Banco:",null,null,{"$f":"D791","v":{"$error":"#REF!"}},null,"Banco de Desarrollo Rural, S.A.",null,null,null,null,"Jornal Diario:",null,null,{"$f":"N791","v":{"$error":"#REF!"}},null,"Días Trabajados:",null,null,{"$f":"S791","v":{"$error":"#REF!"}}]
[]
[null,null,null,null,null,null,null,null,null,null,null,null,"Ingresos",null,null,null,"Deducciones "]
[]
[null,"031","DEVENGADO",null,null,null,null,null,null,null,null,null,{"$f":"M795","v":{"$error":"#REF!"}}]
[null,"033","BONO ACUERDO GUBERNATIVO 66-2000",null,null,null,null,null,null,null,null,null,{"$f":"M796","v":{"$error":"#REF!"}}]
[null,"201","I.G.S.S",null,null,null,null,null,null,null,null,null,null,null,null,null,{"$f":"Q797","v":{"$error":"#REF!"}}]
[null,"118","MONTEPÍO",null,null,null,null,null,null,null,null,null,null,null,null,null,{"$f":"Q798","v":0}]
[null,"211","RETENCIONES JUDICIALES",null,null,null,null,null,null,null,null,null,null,null,null,null,{"$f":"Q799","v":{"$error":"#REF!"}}]
[null,null,null,null,null,null,null,null,null,null,"Total  :",null,{"$f":"SUM(M834:O838)","v":{"$error":"#REF!"}},null,null,null,{"$f":"SUM(Q836:S838)","v":{"$error":"#REF!"}}]
[null,null,null,null,null,null,null,null,null,null,"Liquido :",null,{"$f":"M839-Q839","v":{"$error":"#REF!"}}]
[]
[]
[]
[]
[]
[]
[]
[]
[{"$f":"A810","v":"María José Ceballos López"},null,null,null,null,null,null,null,null,null,null,null,{"$f":"C828","v":{"$error":"#REF!"}}]
[{"$f":"A811","v":"Encargada de Nómina"},null,null,null,null,null,null,null,null,null,null,null,{"$f":"P829","v":{"$error":"#REF!"}}]
[{"$f":"A812","v":"AMSA "},null,null,null,null,null,null,null,null,null,null,null,"AMSA"]
[]
["GOBIERNO DE LA REPÚBLICA DE GUATEMALA"]
["AUTORIDAD PARA EL MANEJO SUSTENTABLE DE LA CUENCA Y DEL LAGO DE AMATITLÁN"]
[]
[]
[{"$f":"A5","v":"Boleta de Liquidación Mensual Renglón 031 \"Jornales\"   Correspondiente al mes de septiembre 2014"}]
[{"$f":"A787","v":"NÚMERO 45-2015"}]
[]
["Empleado:",null,{"$f":"#REF!","v":{"$error":"#REF!"}},null,null,null,null,null,null,null,"Certificación No.",null,null,{"$f":"N789+1","v":14},null,"Fecha:",null,{"$f":"R8","v":"2014-08-31"}]
["Contrato:",null,{"$f":"#REF!","v":{"$error":"#REF!"}},null,null,"Puesto Funcional:",null,null,{"$f":"#REF!","v":{"$error":"#REF!"}},null,null,null,"Titulo Jornal:",null,null,{"$f":"#REF!","v":{"$error":"#REF!"}}]
["Cuenta / Banco:",null,null,{"$f":"#REF!","v":{"$error":"#REF!"}},null,"Banco de Desarrollo Rural, S.A.",null,null,null,null,"Jornal Diario:",null,null,{"$f":"#REF!","v":{"$error":"#REF!"}},null,"Días Trabajados:",null,null,{"$f":"#REF!","v":{"$error":"#REF!"}}]
[]
[null,null,null,null,null,null,null,null,null,null,null,null,"Ingresos",null,null,null,"Deducciones "]
[]
[null,"031","DEVENGADO",null,null,null,null,null,null,null,null,null,{"$f":"#REF!","v":{"$error":"#REF!"}}]
[null,"033","BONO ACUERDO GUBERNATIVO 66-2000",null,null,null,null,null,null,null,null,null,{"$f":"#REF!","v":{"$error":"#REF!"}}]
[null,"201","I.G.S.S",null,null,null,null,null,null,null,null,null,null,null,null,null,{"$f":"#REF!","v":{"$error":"#REF!"}}]
[null,"118","MONTEPÍO",null,null,null,null,null,null,null,null,null,null,null,null,null,0]
[null,"211","RETENCIONES JUDICIALES",null,null,null,null,null,null,null,null,null,null,null,null,null,{"$f":"#REF!","v":{"$error":"#REF!"}}]
[null,null,null,null,null,null,null,null,null,null,"Total  :",null,{"$f":"SUM(M866:O870)","v":{"$error":"#REF!"}},null,null,null,{"$f":"SUM(Q868:S870)","v":{"$error":"#REF!"}}]
[null,null,null,null,null,null,null,null,null,null,"Liquido :",null,{"$f":"M871-Q871","v":{"$error":"#REF!"}}]
[]
[]
[]
[]
[]
[]
[]
[]
["María José Ceballos López",null,null,null,null,null,null,null,null,null,null,null,{"$f":"C860","v":{"$error":"#REF!"}}]
["Encargada de Nómina",null,null,null,null,null,null,null,null,null,null,null,{"$f":"P861","v":{"$error":"#REF!"}}]
["AMSA ",null,null,null,null,null,null,null,null,null,null,null,"AMSA"]
[]
[]
[]
[]
[]
[]
[]
[]
["GOBIERNO DE LA REPÚBLICA DE GUATEMALA"]
["AUTORIDAD PARA EL MANEJO SUSTENTABLE DE LA CUENCA Y DEL LAGO DE AMATITLÁN"]
[]
[]
[{"$f":"A857","v":"Boleta de Liquidación Mensual Renglón 031 \"Jornales\"   Correspondiente al mes de septiembre 2014"}]
[{"$f":"A858","v":"NÚMERO 45-2015"}]
[]
["Empleado:",null,{"$f":"C860","v":{"$error":"#REF!"}},null,null,null,null,null,null,null,"Certificación No.",null,null,{"$f":"N860","v":14},null,"Fecha:",null,{"$f":"R860","v":"2014-08-31"}]
["Contrato:",null,{"$f":"C861","v":{"$error":"#REF!"}},null,null,"Puesto Funcional:",null,null,{"$f":"I861","v":{"$error":"#REF!"}},null,null,null,"Titulo Jornal:",null,null,{"$f":"P861","v":{"$error":"#REF!"}}]
["Cuenta / Banco:",null,null,{"$f":"D862","v":{"$error":"#REF!"}},null,"Banco de Desarrollo Rural, S.A.",null,null,null,null,"Jornal Diario:",null,null,{"$f":"N862","v":{"$error":"#REF!"}},null,"Días Trabajados:",null,null,{"$f":"S862","v":{"$error":"#REF!"}}]
[]
[null,null,null,null,null,null,null,null,null,null,null,null,"Ingresos",null,null,null,"Deducciones "]
[]
[null,"031","DEVENGADO",null,null,null,null,null,null,null,null,null,{"$f":"M866","v":{"$error":"#REF!"}}]
[null,"033","BONO ACUERDO GUBERNATIVO 66-2000",null,null,null,null,null,null,null,null,null,{"$f":"M867","v":{"$error":"#REF!"}}]
[null,"201","I.G.S.S",null,null,null,null,null,null,null,null,null,null,null,null,null,{"$f":"Q868","v":{"$error":"#REF!"}}]
[null,"118","MONTEPÍO",null,null,null,null,null,null,null,null,null,null,null,null,null,{"$f":"Q869","v":0}]
[null,"211","RETENCIONES JUDICIALES",null,null,null,null,null,null,null,null,null,null,null,null,null,{"$f":"Q870","v":{"$error":"#REF!"}}]
[null,null,null,null,null,null,null,null,null,null,"Total  :",null,{"$f":"SUM(M905:O909)","v":{"$error":"#REF!"}},null,null,null,{"$f":"SUM(Q907:S909)","v":{"$error":"#REF!"}}]
[null,null,null,null,null,null,null,null,null,null,"Liquido :",null,{"$f":"M910-Q910","v":{"$error":"#REF!"}}]
[]
[]
[]
[]
[]
[]
[]
[]
[{"$f":"A881","v":"María José Ceballos López"},null,null,null,null,null,null,null,null,null,null,null,{"$f":"C899","v":{"$error":"#REF!"}}]
[{"$f":"A882","v":"Encargada de Nómina"},null,null,null,null,null,null,null,null,null,null,null,{"$f":"P900","v":{"$error":"#REF!"}}]
[{"$f":"A883","v":"AMSA "},null,null,null,null,null,null,null,null,null,null,null,"AMSA"]
[]
["GOBIERNO DE LA REPÚBLICA DE GUATEMALA"]
["AUTORIDAD PARA EL MANEJO SUSTENTABLE DE LA CUENCA Y DEL LAGO DE AMATITLÁN"]
[]
[]
["Boleta de Liquidación Mensual Renglón 031 \"Jornales\"   Correspondiente al mes de octubre 2015"]
[{"$f":"#REF!","v":{"$error":"#REF!"}}]
[]
["Empleado:",null,{"$f":"#REF!","v":{"$error":"#REF!"}},null,null,null,null,null,null,null,"Certificación No.",null,null,{"$f":"N860+1","v":15},null,"Fecha:",null,"2015-10-31"]
["Contrato:",null,{"$f":"#REF!","v":{"$error":"#REF!"}},null,null,"Puesto Funcional:",null,null,{"$f":"#REF!","v":{"$error":"#REF!"}},null,null,null,"Titulo Jornal:",null,null,{"$f":"#REF!","v":{"$error":"#REF!"}}]
["Cuenta / Banco:",null,null,{"$f":"#REF!","v":{"$error":"#REF!"}},null,"Banco de Desarrollo Rural, S.A.",null,null,null,null,"Jornal Diario:",null,null,{"$f":"#REF!","v":{"$error":"#REF!"}},null,"Días Trabajados:",null,null,{"$f":"#REF!","v":{"$error":"#REF!"}}]
[]
[null,null,null,null,null,null,null,null,null,null,null,null,"Ingresos",null,null,null,"Deducciones "]
[]
[null,"031","DEVENGADO",null,null,null,null,null,null,null,null,null,{"$f":"#REF!","v":{"$error":"#REF!"}}]
[null,"033","BONO ACUERDO GUBERNATIVO 66-2000",null,null,null,null,null,null,null,null,null,{"$f":"#REF!","v":{"$error":"#REF!"}}]
[null,"201","I.G.S.S",null,null,null,null,null,null,null,null,null,null,null,null,null,{"$f":"#REF!","v":{"$error":"#REF!"}}]
[null,"118","MONTEPÍO",null,null,null,null,null,null,null,null,null,null,null,null,null,0]
[null,"211","RETENCIONES JUDICIALES",null,null,null,null,null,null,null,null,null,null,null,null,null,{"$f":"#REF!","v":{"$error":"#REF!"}}]
[null,null,null,null,null,null,null,null,null,null,"Total  :",null,{"$f":"SUM(M937:O941)","v":{"$error":"#REF!"}},null,null,null,{"$f":"SUM(Q939:S941)","v":{"$error":"#REF!"}}]
[null,null,null,null,null,null,null,null,null,null,"Liquido :",null,{"$f":"M942-Q942","v":{"$error":"#REF!"}}]
[]
[]
[]
[]
[]
[]
[]
[]
["Jonnathan René Pernillo Salazar",null,null,null,null,null,null,null,null,null,null,null,{"$f":"C931","v":{"$error":"#REF!"}}]
["Encargado de Nómina",null,null,null,null,null,null,null,null,null,null,null,{"$f":"P932","v":{"$error":"#REF!"}}]
["AMSA ",null,null,null,null,null,null,null,null,null,null,null,"AMSA"]
[]
[]
[]
[]
[]
[]
[]
[]
["GOBIERNO DE LA REPÚBLICA DE GUATEMALA"]
["AUTORIDAD PARA EL MANEJO SUSTENTABLE DE LA CUENCA Y DEL LAGO DE AMATITLÁN"]
[]
[]
["Boleta de Liquidación Mensual Renglón 031 \"Jornales\"   Correspondiente al mes de septiembre 2015"]
[" NÚMERO 52-2015"]
[]
["Empleado:",null,{"$f":"C931","v":{"$error":"#REF!"}},null,null,null,null,null,null,null,"Certificación No.",null,null,{"$f":"N931","v":15},null,"Fecha:",null,"2015-09-30"]
["Contrato:",null,{"$f":"C932","v":{"$error":"#REF!"}},null,null,"Puesto Funcional:",null,null,{"$f":"I932","v":{"$error":"#REF!"}},null,null,null,"Titulo Jornal:",null,null,{"$f":"P932","v":{"$error":"#REF!"}}]
["Cuenta / Banco:",null,null,{"$f":"D933","v":{"$error":"#REF!"}},null,"Banco de Desarrollo Rural, S.A.",null,null,null,null,"Jornal Diario:",null,null,{"$f":"N933","v":{"$error":"#REF!"}},null,"Días Trabajados:",null,null,30]
[]
[null,null,null,null,null,null,null,null,null,null,null,null,"Ingresos",null,null,null,"Deducciones "]
[]
[null,"031","DEVENGADO",null,null,null,null,null,null,null,null,null,{"$f":"84.43*S972","v":2532.9}]
[null,"033","BONO ACUERDO GUBERNATIVO 66-2000",null,null,null,null,null,null,null,null,null,{"$f":"M938","v":{"$error":"#REF!"}}]
[null,"201","I.G.S.S",null,null,null,null,null,null,null,null,null,null,null,null,null,{"$f":"ROUND(M976*4.83%,2)","v":122.34}]
[null,"118","MONTEPÍO",null,null,null,null,null,null,null,null,null,null,null,null,null,{"$f":"Q940","v":0}]
[null,"211","RETENCIONES JUDICIALES",null,null,null,null,null,null,null,null,null,null,null,null,null,{"$f":"Q941","v":{"$error":"#REF!"}}]
[null,null,null,null,null,null,null,null,null,null,"Total  :",null,{"$f":"SUM(M976:O980)","v":{"$error":"#REF!"}},null,null,null,{"$f":"SUM(Q978:S980)","v":{"$error":"#REF!"}}]
[null,null,null,null,null,null,null,null,null,null,"Liquido :",null,{"$f":"M981-Q981","v":{"$error":"#REF!"}}]
[]
[]
[]
[]
[]
[]
[]
[]
[{"$f":"A952","v":"Jonnathan René Pernillo Salazar"},null,null,null,null,null,null,null,null,null,null,null,{"$f":"C970","v":{"$error":"#REF!"}}]
[{"$f":"A953","v":"Encargado de Nómina"},null,null,null,null,null,null,null,null,null,null,null,{"$f":"P971","v":{"$error":"#REF!"}}]
[{"$f":"A954","v":"AMSA "},null,null,null,null,null,null,null,null,null,null,null,"AMSA"]
[]
["GOBIERNO DE LA REPÚBLICA DE GUATEMALA"]
["AUTORIDAD PARA EL MANEJO SUSTENTABLE DE LA CUENCA Y DEL LAGO DE AMATITLÁN"]
[]
[]
[{"$f":"A928","v":"Boleta de Liquidación Mensual Renglón 031 \"Jornales\"   Correspondiente al mes de octubre 2015"}]
[{"$f":"A929","v":{"$error":"#REF!"}}]
[]
["Empleado:",null,{"$f":"#REF!","v":{"$error":"#REF!"}},null,null,null,null,null,null,null,"Certificación No.",null,null,{"$f":"N931+1","v":16},null,"Fecha:",null,{"$f":"R8","v":"2014-08-31"}]
["Contrato:",null,{"$f":"#REF!","v":{"$error":"#REF!"}},null,null,"Puesto Funcional:",null,null,{"$f":"#REF!","v":{"$error":"#REF!"}},null,null,null,"Titulo Jornal:",null,null,{"$f":"#REF!","v":{"$error":"#REF!"}}]
["Cuenta / Banco:",null,null,{"$f":"#REF!","v":{"$error":"#REF!"}},null,"Banco de Desarrollo Rural, S.A.",null,null,null,null,"Jornal Diario:",null,null,{"$f":"#REF!","v":{"$error":"#REF!"}},null,"Días Trabajados:",null,null,{"$f":"#REF!","v":{"$error":"#REF!"}}]
[]
[null,null,null,null,null,null,null,null,null,null,null,null,"Ingresos",null,null,null,"Deducciones "]
[]
[null,"031","DEVENGADO",null,null,null,null,null,null,null,null,null,{"$f":"#REF!","v":{"$error":"#REF!"}}]
[null,"033","BONO ACUERDO GUBERNATIVO 66-2000",null,null,null,null,null,null,null,null,null,{"$f":"#REF!","v":{"$error":"#REF!"}}]
[null,"201","I.G.S.S",null,null,null,null,null,null,null,null,null,null,null,null,null,{"$f":"#REF!","v":{"$error":"#REF!"}}]
[null,"118","MONTEPÍO",null,null,null,null,null,null,null,null,null,null,null,null,null,0]
[null,"211","RETENCIONES JUDICIALES",null,null,null,null,null,null,null,null,null,null,null,null,null,{"$f":"#REF!","v":{"$error":"#REF!"}}]
[null,null,null,null,null,null,null,null,null,null,"Total  :",null,{"$f":"SUM(M1008:O1012)","v":{"$error":"#REF!"}},null,null,null,{"$f":"SUM(Q1010:S1012)","v":{"$error":"#REF!"}}]
[null,null,null,null,null,null,null,null,null,null,"Liquido :",null,{"$f":"M1013-Q1013","v":{"$error":"#REF!"}}]
[]
[]
[]
[]
[]
[]
[]
[]
["María José Ceballos López",null,null,null,null,null,null,null,null,null,null,null,{"$f":"C1002","v":{"$error":"#REF!"}}]
["Encargada de Nómina",null,null,null,null,null,null,null,null,null,null,null,{"$f":"P1003","v":{"$error":"#REF!"}}]
["AMSA ",null,null,null,null,null,null,null,null,null,null,null,"AMSA"]
[]
[]
[]
[]
[]
[]
[]
[]
["GOBIERNO DE LA REPÚBLICA DE GUATEMALA"]
["AUTORIDAD PARA EL MANEJO SUSTENTABLE DE LA CUENCA Y DEL LAGO DE AMATITLÁN"]
[]
[]
[{"$f":"A999","v":"Boleta de Liquidación Mensual Renglón 031 \"Jornales\"   Correspondiente al mes de octubre 2015"}]
[{"$f":"A1000","v":{"$error":"#REF!"}}]
[]
["Empleado:",null,{"$f":"C1002","v":{"$error":"#REF!"}},null,null,null,null,null,null,null,"Certificación No.",null,null,{"$f":"N1002","v":16},null,"Fecha:",null,{"$f":"R1002","v":"2014-08-31"}]
["Contrato:",null,{"$f":"C1003","v":{"$error":"#REF!"}},null,null,"Puesto Funcional:",null,null,{"$f":"I1003","v":{"$error":"#REF!"}},null,null,null,"Titulo Jornal:",null,null,{"$f":"P1003","v":{"$error":"#REF!"}}]
["Cuenta / Banco:",null,null,{"$f":"D1004","v":{"$error":"#REF!"}},null,"Banco de Desarrollo Rural, S.A.",null,null,null,null,"Jornal Diario:",null,null,{"$f":"N1004","v":{"$error":"#REF!"}},null,"Días Trabajados:",null,null,{"$f":"S1004","v":{"$error":"#REF!"}}]
[]
[null,null,null,null,null,null,null,null,null,null,null,null,"Ingresos",null,null,null,"Deducciones "]
[]
[null,"031","DEVENGADO",null,null,null,null,null,null,null,null,null,{"$f":"M1008","v":{"$error":"#REF!"}}]
[null,"033","BONO ACUERDO GUBERNATIVO 66-2000",null,null,null,null,null,null,null,null,null,{"$f":"M1009","v":{"$error":"#REF!"}}]
[null,"201","I.G.S.S",null,null,null,null,null,null,null,null,null,null,null,null,null,{"$f":"Q1010","v":{"$error":"#REF!"}}]
[null,"118","MONTEPÍO",null,null,null,null,null,null,null,null,null,null,null,null,null,{"$f":"Q1011","v":0}]
[null,"211","RETENCIONES JUDICIALES",null,null,null,null,null,null,null,null,null,null,null,null,null,{"$f":"Q1012","v":{"$error":"#REF!"}}]
[null,null,null,null,null,null,null,null,null,null,"Total  :",null,{"$f":"SUM(M1047:O1051)","v":{"$error":"#REF!"}},null,null,null,{"$f":"SUM(Q1049:S1051)","v":{"$error":"#REF!"}}]
[null,null,null,null,null,null,null,null,null,null,"Liquido :",null,{"$f":"M1052-Q1052","v":{"$error":"#REF!"}}]
[]
[]
[]
[]
[]
[]
[]
[]
[{"$f":"A1023","v":"María José Ceballos López"},null,null,null,null,null,null,null,null,null,null,null,{"$f":"C1041","v":{"$error":"#REF!"}}]
[{"$f":"A1024","v":"Encargada de Nómina"},null,null,null,null,null,null,null,null,null,null,null,{"$f":"P1042","v":{"$error":"#REF!"}}]
[{"$f":"A1025","v":"AMSA "},null,null,null,null,null,null,null,null,null,null,null,"AMSA"]
[]
["GOBIERNO DE LA REPÚBLICA DE GUATEMALA"]
["AUTORIDAD PARA EL MANEJO SUSTENTABLE DE LA CUENCA Y DEL LAGO DE AMATITLÁN"]
[]
[]
[{"$f":"A999","v":"Boleta de Liquidación Mensual Renglón 031 \"Jornales\"   Correspondiente al mes de octubre 2015"}]
[{"$f":"A1000","v":{"$error":"#REF!"}}]
[]
["Empleado:",null,{"$f":"#REF!","v":{"$error":"#REF!"}},null,null,null,null,null,null,null,"Certificación No.",null,null,{"$f":"N1002+1","v":17},null,"Fecha:",null,{"$f":"R8","v":"2014-08-31"}]
["Contrato:",null,{"$f":"#REF!","v":{"$error":"#REF!"}},null,null,"Puesto Funcional:",null,null,{"$f":"#REF!","v":{"$error":"#REF!"}},null,null,null,"Titulo Jornal:",null,null,{"$f":"#REF!","v":{"$error":"#REF!"}}]
["Cuenta / Banco:",null,null,{"$f":"#REF!","v":{"$error":"#REF!"}},null,"Banco de Desarrollo Rural, S.A.",null,null,null,null,"Jornal Diario:",null,null,{"$f":"#REF!","v":{"$error":"#REF!"}},null,"Días Trabajados:",null,null,{"$f":"#REF!","v":{"$error":"#REF!"}}]
[]
[null,null,null,null,null,null,null,null,null,null,null,null,"Ingresos",null,null,null,"Deducciones "]
[]
[null,"031","DEVENGADO",null,null,null,null,null,null,null,null,null,{"$f":"#REF!","v":{"$error":"#REF!"}}]
[null,"033","BONO ACUERDO GUBERNATIVO 66-2000",null,null,null,null,null,null,null,null,null,{"$f":"#REF!","v":{"$error":"#REF!"}}]
[null,"201","I.G.S.S",null,null,null,null,null,null,null,null,null,null,null,null,null,{"$f":"#REF!","v":{"$error":"#REF!"}}]
[null,"118","MONTEPÍO",null,null,null,null,null,null,null,null,null,null,null,null,null,0]
[null,"211","RETENCIONES JUDICIALES",null,null,null,null,null,null,null,null,null,null,null,null,null,{"$f":"#REF!","v":{"$error":"#REF!"}}]
[null,null,null,null,null,null,null,null,null,null,"Total  :",null,{"$f":"SUM(M1079:O1083)","v":{"$error":"#REF!"}},null,null,null,{"$f":"SUM(Q1081:S1083)","v":{"$error":"#REF!"}}]
[null,null,null,null,null,null,null,null,null,null,"Liquido :",null,{"$f":"M1084-Q1084","v":{"$error":"#REF!"}}]
[]
[]
[]
[]
[]
[]
[]
[]
["María José Ceballos López",null,null,null,null,null,null,null,null,null,null,null,{"$f":"C1073","v":{"$error":"#REF!"}}]
["Encargada de Nómina",null,null,null,null,null,null,null,null,null,null,null,{"$f":"P1074","v":{"$error":"#REF!"}}]
["AMSA ",null,null,null,null,null,null,null,null,null,null,null,"AMSA"]
[]
[]
[]
[]
[]
[]
[]
[]
["GOBIERNO DE LA REPÚBLICA DE GUATEMALA"]
["AUTORIDAD PARA EL MANEJO SUSTENTABLE DE LA CUENCA Y DEL LAGO DE AMATITLÁN"]
[]
[]
[{"$f":"A1070","v":"Boleta de Liquidación Mensual Renglón 031 \"Jornales\"   Correspondiente al mes de octubre 2015"}]
[{"$f":"A1071","v":{"$error":"#REF!"}}]
[]
["Empleado:",null,{"$f":"C1073","v":{"$error":"#REF!"}},null,null,null,null,null,null,null,"Certificación No.",null,null,{"$f":"N1073","v":17},null,"Fecha:",null,{"$f":"R1073","v":"2014-08-31"}]
["Contrato:",null,{"$f":"C1074","v":{"$error":"#REF!"}},null,null,"Puesto Funcional:",null,null,{"$f":"I1074","v":{"$error":"#REF!"}},null,null,null,"Titulo Jornal:",null,null,{"$f":"P1074","v":{"$error":"#REF!"}}]
["Cuenta / Banco:",null,null,{"$f":"D1075","v":{"$error":"#REF!"}},null,"Banco de Desarrollo Rural, S.A.",null,null,null,null,"Jornal Diario:",null,null,{"$f":"N1075","v":{"$error":"#REF!"}},null,"Días Trabajados:",null,null,{"$f":"S1075","v":{"$error":"#REF!"}}]
[]
[null,null,null,null,null,null,null,null,null,null,null,null,"Ingresos",null,null,null,"Deducciones "]
[]
[null,"031","DEVENGADO",null,null,null,null,null,null,null,null,null,{"$f":"M1079","v":{"$error":"#REF!"}}]
[null,"033","BONO ACUERDO GUBERNATIVO 66-2000",null,null,null,null,null,null,null,null,null,{"$f":"M1080","v":{"$error":"#REF!"}}]
[null,"201","I.G.S.S",null,null,null,null,null,null,null,null,null,null,null,null,null,{"$f":"Q1081","v":{"$error":"#REF!"}}]
[null,"118","MONTEPÍO",null,null,null,null,null,null,null,null,null,null,null,null,null,{"$f":"Q1082","v":0}]
[null,"211","RETENCIONES JUDICIALES",null,null,null,null,null,null,null,null,null,null,null,null,null,{"$f":"Q1083","v":{"$error":"#REF!"}}]
[null,null,null,null,null,null,null,null,null,null,"Total  :",null,{"$f":"SUM(M1118:O1122)","v":{"$error":"#REF!"}},null,null,null,{"$f":"SUM(Q1120:S1122)","v":{"$error":"#REF!"}}]
[null,null,null,null,null,null,null,null,null,null,"Liquido :",null,{"$f":"M1123-Q1123","v":{"$error":"#REF!"}}]
[]
[]
[]
[]
[]
[]
[]
[]
[{"$f":"A1094","v":"María José Ceballos López"},null,null,null,null,null,null,null,null,null,null,null,{"$f":"C1112","v":{"$error":"#REF!"}}]
[{"$f":"A1095","v":"Encargada de Nómina"},null,null,null,null,null,null,null,null,null,null,null,{"$f":"P1113","v":{"$error":"#REF!"}}]
[{"$f":"A1096","v":"AMSA "},null,null,null,null,null,null,null,null,null,null,null,"AMSA"]
[]
["GOBIERNO DE LA REPÚBLICA DE GUATEMALA"]
["AUTORIDAD PARA EL MANEJO SUSTENTABLE DE LA CUENCA Y DEL LAGO DE AMATITLÁN"]
[]
[]
[{"$f":"A1070","v":"Boleta de Liquidación Mensual Renglón 031 \"Jornales\"   Correspondiente al mes de octubre 2015"}]
[{"$f":"A1071","v":{"$error":"#REF!"}}]
[]
["Empleado:",null,{"$f":"#REF!","v":{"$error":"#REF!"}},null,null,null,null,null,null,null,"Certificación No.",null,null,{"$f":"N1073+1","v":18},null,"Fecha:",null,{"$f":"R79","v":"2014-08-31"}]
["Contrato:",null,{"$f":"#REF!","v":{"$error":"#REF!"}},null,null,"Puesto Funcional:",null,null,{"$f":"#REF!","v":{"$error":"#REF!"}},null,null,null,"Titulo Jornal:",null,null,{"$f":"#REF!","v":{"$error":"#REF!"}}]
["Cuenta / Banco:",null,null,{"$f":"#REF!","v":{"$error":"#REF!"}},null,"Banco de Desarrollo Rural, S.A.",null,null,null,null,"Jornal Diario:",null,null,{"$f":"#REF!","v":{"$error":"#REF!"}},null,"Días Trabajados:",null,null,{"$f":"#REF!","v":{"$error":"#REF!"}}]
[]
[null,null,null,null,null,null,null,null,null,null,null,null,"Ingresos",null,null,null,"Deducciones "]
[]
[null,"031","DEVENGADO",null,null,null,null,null,null,null,null,null,{"$f":"#REF!","v":{"$error":"#REF!"}}]
[null,"033","BONO ACUERDO GUBERNATIVO 66-2000",null,null,null,null,null,null,null,null,null,{"$f":"#REF!","v":{"$error":"#REF!"}}]
[null,"201","I.G.S.S",null,null,null,null,null,null,null,null,null,null,null,null,null,{"$f":"#REF!","v":{"$error":"#REF!"}}]
[null,"118","MONTEPÍO",null,null,null,null,null,null,null,null,null,null,null,null,null,0]
[null,"211","RETENCIONES JUDICIALES",null,null,null,null,null,null,null,null,null,null,null,null,null,{"$f":"#REF!","v":{"$error":"#REF!"}}]
[null,null,null,null,null,null,null,null,null,null,"Total  :",null,{"$f":"SUM(M1150:O1154)","v":{"$error":"#REF!"}},null,null,null,{"$f":"SUM(Q1152:S1154)","v":{"$error":"#REF!"}}]
[null,null,null,null,null,null,null,null,null,null,"Liquido :",null,{"$f":"M1155-Q1155","v":{"$error":"#REF!"}}]
[]
[]
[]
[]
[]
[]
[]
[]
["María José Ceballos López",null,null,null,null,null,null,null,null,null,null,null,{"$f":"C1144","v":{"$error":"#REF!"}}]
["Encargada de Nómina",null,null,null,null,null,null,null,null,null,null,null,{"$f":"P1145","v":{"$error":"#REF!"}}]
["AMSA ",null,null,null,null,null,null,null,null,null,null,null,"AMSA"]
[]
[]
[]
[]
[]
[]
[]
[]
["GOBIERNO DE LA REPÚBLICA DE GUATEMALA"]
["AUTORIDAD PARA EL MANEJO SUSTENTABLE DE LA CUENCA Y DEL LAGO DE AMATITLÁN"]
[]
[]
[{"$f":"A1141","v":"Boleta de Liquidación Mensual Renglón 031 \"Jornales\"   Correspondiente al mes de octubre 2015"}]
[{"$f":"A1142","v":{"$error":"#REF!"}}]
[]
["Empleado:",null,{"$f":"C1144","v":{"$error":"#REF!"}},null,null,null,null,null,null,null,"Certificación No.",null,null,{"$f":"N1144","v":18},null,"Fecha:",null,{"$f":"R1144","v":"2014-08-31"}]
["Contrato:",null,{"$f":"C1145","v":{"$error":"#REF!"}},null,null,"Puesto Funcional:",null,null,{"$f":"I1145","v":{"$error":"#REF!"}},null,null,null,"Titulo Jornal:",null,null,{"$f":"P1145","v":{"$error":"#REF!"}}]
["Cuenta / Banco:",null,null,{"$f":"D1146","v":{"$error":"#REF!"}},null,"Banco de Desarrollo Rural, S.A.",null,null,null,null,"Jornal Diario:",null,null,{"$f":"N1146","v":{"$error":"#REF!"}},null,"Días Trabajados:",null,null,{"$f":"S1146","v":{"$error":"#REF!"}}]
[]
[null,null,null,null,null,null,null,null,null,null,null,null,"Ingresos",null,null,null,"Deducciones "]
[]
[null,"031","DEVENGADO",null,null,null,null,null,null,null,null,null,{"$f":"M1150","v":{"$error":"#REF!"}}]
[null,"033","BONO ACUERDO GUBERNATIVO 66-2000",null,null,null,null,null,null,null,null,null,{"$f":"M1151","v":{"$error":"#REF!"}}]
[null,"201","I.G.S.S",null,null,null,null,null,null,null,null,null,null,null,null,null,{"$f":"Q1152","v":{"$error":"#REF!"}}]
[null,"118","MONTEPÍO",null,null,null,null,null,null,null,null,null,null,null,null,null,{"$f":"Q1153","v":0}]
[null,"211","RETENCIONES JUDICIALES",null,null,null,null,null,null,null,null,null,null,null,null,null,{"$f":"Q1154","v":{"$error":"#REF!"}}]
[null,null,null,null,null,null,null,null,null,null,"Total  :",null,{"$f":"SUM(M1189:O1193)","v":{"$error":"#REF!"}},null,null,null,{"$f":"SUM(Q1191:S1193)","v":{"$error":"#REF!"}}]
[null,null,null,null,null,null,null,null,null,null,"Liquido :",null,{"$f":"M1194-Q1194","v":{"$error":"#REF!"}}]
[]
[]
[]
[]
[]
[]
[]
[]
[{"$f":"A1165","v":"María José Ceballos López"},null,null,null,null,null,null,null,null,null,null,null,{"$f":"C1183","v":{"$error":"#REF!"}}]
[{"$f":"A1166","v":"Encargada de Nómina"},null,null,null,null,null,null,null,null,null,null,null,{"$f":"P1184","v":{"$error":"#REF!"}}]
[{"$f":"A1167","v":"AMSA "},null,null,null,null,null,null,null,null,null,null,null,"AMSA"]
[]
["GOBIERNO DE LA REPÚBLICA DE GUATEMALA"]
["AUTORIDAD PARA EL MANEJO SUSTENTABLE DE LA CUENCA Y DEL LAGO DE AMATITLÁN"]
[]
[]
[{"$f":"A1141","v":"Boleta de Liquidación Mensual Renglón 031 \"Jornales\"   Correspondiente al mes de octubre 2015"}]
[{"$f":"A1142","v":{"$error":"#REF!"}}]
[]
["Empleado:",null,{"$f":"#REF!","v":{"$error":"#REF!"}},null,null,null,null,null,null,null,"Certificación No.",null,null,{"$f":"N1144+1","v":19},null,"Fecha:",null,{"$f":"R150","v":"2014-08-31"}]
["Contrato:",null,{"$f":"#REF!","v":{"$error":"#REF!"}},null,null,"Puesto Funcional:",null,null,{"$f":"#REF!","v":{"$error":"#REF!"}},null,null,null,"Titulo Jornal:",null,null,{"$f":"#REF!","v":{"$error":"#REF!"}}]
["Cuenta / Banco:",null,null,{"$f":"#REF!","v":{"$error":"#REF!"}},null,"Banco de Desarrollo Rural, S.A.",null,null,null,null,"Jornal Diario:",null,null,{"$f":"#REF!","v":{"$error":"#REF!"}},null,"Días Trabajados:",null,null,{"$f":"#REF!","v":{"$error":"#REF!"}}]
[]
[null,null,null,null,null,null,null,null,null,null,null,null,"Ingresos",null,null,null,"Deducciones "]
[]
[null,"031","DEVENGADO",null,null,null,null,null,null,null,null,null,{"$f":"#REF!","v":{"$error":"#REF!"}}]
[null,"033","BONO ACUERDO GUBERNATIVO 66-2000",null,null,null,null,null,null,null,null,null,{"$f":"#REF!","v":{"$error":"#REF!"}}]
[null,"201","I.G.S.S",null,null,null,null,null,null,null,null,null,null,null,null,null,{"$f":"#REF!","v":{"$error":"#REF!"}}]
[null,"118","MONTEPÍO",null,null,null,null,null,null,null,null,null,null,null,null,null,0]
[null,"211","RETENCIONES JUDICIALES",null,null,null,null,null,null,null,null,null,null,null,null,null,{"$f":"#REF!","v":{"$error":"#REF!"}}]
[null,null,null,null,null,null,null,null,null,null,"Total  :",null,{"$f":"SUM(M1221:O1225)","v":{"$error":"#REF!"}},null,null,null,{"$f":"SUM(Q1223:S1225)","v":{"$error":"#REF!"}}]
[null,null,null,null,null,null,null,null,null,null,"Liquido :",null,{"$f":"M1226-Q1226","v":{"$error":"#REF!"}}]
[]
[]
[]
[]
[]
[]
[]
[]
["María José Ceballos López",null,null,null,null,null,null,null,null,null,null,null,{"$f":"C1215","v":{"$error":"#REF!"}}]
["Encargada de Nómina",null,null,null,null,null,null,null,null,null,null,null,{"$f":"P1216","v":{"$error":"#REF!"}}]
["AMSA ",null,null,null,null,null,null,null,null,null,null,null,"AMSA"]
[]
[]
[]
[]
[]
[]
[]
[]
["GOBIERNO DE LA REPÚBLICA DE GUATEMALA"]
["AUTORIDAD PARA EL MANEJO SUSTENTABLE DE LA CUENCA Y DEL LAGO DE AMATITLÁN"]
[]
[]
[{"$f":"A1212","v":"Boleta de Liquidación Mensual Renglón 031 \"Jornales\"   Correspondiente al mes de octubre 2015"}]
[{"$f":"A1213","v":{"$error":"#REF!"}}]
[]
["Empleado:",null,{"$f":"C1215","v":{"$error":"#REF!"}},null,null,null,null,null,null,null,"Certificación No.",null,null,{"$f":"N1215","v":19},null,"Fecha:",null,{"$f":"R1215","v":"2014-08-31"}]
["Contrato:",null,{"$f":"C1216","v":{"$error":"#REF!"}},null,null,"Puesto Funcional:",null,null,{"$f":"I1216","v":{"$error":"#REF!"}},null,null,null,"Titulo Jornal:",null,null,{"$f":"P1216","v":{"$error":"#REF!"}}]
["Cuenta / Banco:",null,null,{"$f":"D1217","v":{"$error":"#REF!"}},null,"Banco de Desarrollo Rural, S.A.",null,null,null,null,"Jornal Diario:",null,null,{"$f":"N1217","v":{"$error":"#REF!"}},null,"Días Trabajados:",null,null,{"$f":"S1217","v":{"$error":"#REF!"}}]
[]
[null,null,null,null,null,null,null,null,null,null,null,null,"Ingresos",null,null,null,"Deducciones "]
[]
[null,"031","DEVENGADO",null,null,null,null,null,null,null,null,null,{"$f":"M1221","v":{"$error":"#REF!"}}]
[null,"033","BONO ACUERDO GUBERNATIVO 66-2000",null,null,null,null,null,null,null,null,null,{"$f":"M1222","v":{"$error":"#REF!"}}]
[null,"201","I.G.S.S",null,null,null,null,null,null,null,null,null,null,null,null,null,{"$f":"Q1223","v":{"$error":"#REF!"}}]
[null,"118","MONTEPÍO",null,null,null,null,null,null,null,null,null,null,null,null,null,{"$f":"Q1224","v":0}]
[null,"211","RETENCIONES JUDICIALES",null,null,null,null,null,null,null,null,null,null,null,null,null,{"$f":"Q1225","v":{"$error":"#REF!"}}]
[null,null,null,null,null,null,null,null,null,null,"Total  :",null,{"$f":"SUM(M1260:O1264)","v":{"$error":"#REF!"}},null,null,null,{"$f":"SUM(Q1262:S1264)","v":{"$error":"#REF!"}}]
[null,null,null,null,null,null,null,null,null,null,"Liquido :",null,{"$f":"M1265-Q1265","v":{"$error":"#REF!"}}]
[]
[]
[]
[]
[]
[]
[]
[]
[{"$f":"A1236","v":"María José Ceballos López"},null,null,null,null,null,null,null,null,null,null,null,{"$f":"C1254","v":{"$error":"#REF!"}}]
[{"$f":"A1237","v":"Encargada de Nómina"},null,null,null,null,null,null,null,null,null,null,null,{"$f":"P1255","v":{"$error":"#REF!"}}]
[{"$f":"A1238","v":"AMSA "},null,null,null,null,null,null,null,null,null,null,null,"AMSA"]
[]
["GOBIERNO DE LA REPÚBLICA DE GUATEMALA"]
["AUTORIDAD PARA EL MANEJO SUSTENTABLE DE LA CUENCA Y DEL LAGO DE AMATITLÁN"]
[]
[]
[{"$f":"A1212","v":"Boleta de Liquidación Mensual Renglón 031 \"Jornales\"   Correspondiente al mes de octubre 2015"}]
[{"$f":"A1213","v":{"$error":"#REF!"}}]
[]
["Empleado:",null,{"$f":"#REF!","v":{"$error":"#REF!"}},null,null,null,null,null,null,null,"Certificación No.",null,null,{"$f":"N1215+1","v":20},null,"Fecha:",null,{"$f":"R221","v":"2014-09-30"}]
["Contrato:",null,{"$f":"#REF!","v":{"$error":"#REF!"}},null,null,"Puesto Funcional:",null,null,{"$f":"#REF!","v":{"$error":"#REF!"}},null,null,null,"Titulo Jornal:",null,null,{"$f":"#REF!","v":{"$error":"#REF!"}}]
["Cuenta / Banco:",null,null,{"$f":"#REF!","v":{"$error":"#REF!"}},null,"Banco de Desarrollo Rural, S.A.",null,null,null,null,"Jornal Diario:",null,null,{"$f":"#REF!","v":{"$error":"#REF!"}},null,"Días Trabajados:",null,null,{"$f":"#REF!","v":{"$error":"#REF!"}}]
[]
[null,null,null,null,null,null,null,null,null,null,null,null,"Ingresos",null,null,null,"Deducciones "]
[]
[null,"031","DEVENGADO",null,null,null,null,null,null,null,null,null,{"$f":"#REF!","v":{"$error":"#REF!"}}]
[null,"033","BONO ACUERDO GUBERNATIVO 66-2000",null,null,null,null,null,null,null,null,null,{"$f":"#REF!","v":{"$error":"#REF!"}}]
[null,"201","I.G.S.S",null,null,null,null,null,null,null,null,null,null,null,null,null,{"$f":"#REF!","v":{"$error":"#REF!"}}]
[null,"118","MONTEPÍO",null,null,null,null,null,null,null,null,null,null,null,null,null,0]
[null,"211","RETENCIONES JUDICIALES",null,null,null,null,null,null,null,null,null,null,null,null,null,{"$f":"#REF!","v":{"$error":"#REF!"}}]
[null,null,null,null,null,null,null,null,null,null,"Total  :",null,{"$f":"SUM(M1292:O1296)","v":{"$error":"#REF!"}},null,null,null,{"$f":"SUM(Q1294:S1296)","v":{"$error":"#REF!"}}]
[null,null,null,null,null,null,null,null,null,null,"Liquido :",null,{"$f":"M1297-Q1297","v":{"$error":"#REF!"}}]
[]
[]
[]
[]
[]
[]
[]
[]
["María José Ceballos López",null,null,null,null,null,null,null,null,null,null,null,{"$f":"C1286","v":{"$error":"#REF!"}}]
["Encargada de Nómina",null,null,null,null,null,null,null,null,null,null,null,{"$f":"P1287","v":{"$error":"#REF!"}}]
["AMSA ",null,null,null,null,null,null,null,null,null,null,null,"AMSA"]
[]
[]
[]
[]
[]
[]
[]
[]
["GOBIERNO DE LA REPÚBLICA DE GUATEMALA"]
["AUTORIDAD PARA EL MANEJO SUSTENTABLE DE LA CUENCA Y DEL LAGO DE AMATITLÁN"]
[]
[]
[{"$f":"A1283","v":"Boleta de Liquidación Mensual Renglón 031 \"Jornales\"   Correspondiente al mes de octubre 2015"}]
[{"$f":"A1284","v":{"$error":"#REF!"}}]
[]
["Empleado:",null,{"$f":"C1286","v":{"$error":"#REF!"}},null,null,null,null,null,null,null,"Certificación No.",null,null,{"$f":"N1286","v":20},null,"Fecha:",null,{"$f":"R1286","v":"2014-09-30"}]
["Contrato:",null,{"$f":"C1287","v":{"$error":"#REF!"}},null,null,"Puesto Funcional:",null,null,{"$f":"I1287","v":{"$error":"#REF!"}},null,null,null,"Titulo Jornal:",null,null,{"$f":"P1287","v":{"$error":"#REF!"}}]
["Cuenta / Banco:",null,null,{"$f":"D1288","v":{"$error":"#REF!"}},null,"Banco de Desarrollo Rural, S.A.",null,null,null,null,"Jornal Diario:",null,null,{"$f":"N1288","v":{"$error":"#REF!"}},null,"Días Trabajados:",null,null,{"$f":"S1288","v":{"$error":"#REF!"}}]
[]
[null,null,null,null,null,null,null,null,null,null,null,null,"Ingresos",null,null,null,"Deducciones "]
[]
[null,"031","DEVENGADO",null,null,null,null,null,null,null,null,null,{"$f":"M1292","v":{"$error":"#REF!"}}]
[null,"033","BONO ACUERDO GUBERNATIVO 66-2000",null,null,null,null,null,null,null,null,null,{"$f":"M1293","v":{"$error":"#REF!"}}]
[null,"201","I.G.S.S",null,null,null,null,null,null,null,null,null,null,null,null,null,{"$f":"Q1294","v":{"$error":"#REF!"}}]
[null,"118","MONTEPÍO",null,null,null,null,null,null,null,null,null,null,null,null,null,{"$f":"Q1295","v":0}]
[null,"211","RETENCIONES JUDICIALES",null,null,null,null,null,null,null,null,null,null,null,null,null,{"$f":"Q1296","v":{"$error":"#REF!"}}]
[null,null,null,null,null,null,null,null,null,null,"Total  :",null,{"$f":"SUM(M1331:O1335)","v":{"$error":"#REF!"}},null,null,null,{"$f":"SUM(Q1333:S1335)","v":{"$error":"#REF!"}}]
[null,null,null,null,null,null,null,null,null,null,"Liquido :",null,{"$f":"M1336-Q1336","v":{"$error":"#REF!"}}]
[]
[]
[]
[]
[]
[]
[]
[]
[{"$f":"A1307","v":"María José Ceballos López"},null,null,null,null,null,null,null,null,null,null,null,{"$f":"C1325","v":{"$error":"#REF!"}}]
[{"$f":"A1308","v":"Encargada de Nómina"},null,null,null,null,null,null,null,null,null,null,null,{"$f":"P1326","v":{"$error":"#REF!"}}]
[{"$f":"A1309","v":"AMSA "},null,null,null,null,null,null,null,null,null,null,null,"AMSA"]
[]
["GOBIERNO DE LA REPÚBLICA DE GUATEMALA"]
["AUTORIDAD PARA EL MANEJO SUSTENTABLE DE LA CUENCA Y DEL LAGO DE AMATITLÁN"]
[]
[]
[{"$f":"A1283","v":"Boleta de Liquidación Mensual Renglón 031 \"Jornales\"   Correspondiente al mes de octubre 2015"}]
[{"$f":"A1284","v":{"$error":"#REF!"}}]
[]
["Empleado:",null,{"$f":"#REF!","v":{"$error":"#REF!"}},null,null,null,null,null,null,null,"Certificación No.",null,null,{"$f":"N1286+1","v":21},null,"Fecha:",null,{"$f":"R292","v":"2014-08-31"}]
["Contrato:",null,{"$f":"#REF!","v":{"$error":"#REF!"}},null,null,"Puesto Funcional:",null,null,{"$f":"#REF!","v":{"$error":"#REF!"}},null,null,null,"Titulo Jornal:",null,null,{"$f":"#REF!","v":{"$error":"#REF!"}}]
["Cuenta / Banco:",null,null,{"$f":"#REF!","v":{"$error":"#REF!"}},null,"Banco de Desarrollo Rural, S.A.",null,null,null,null,"Jornal Diario:",null,null,{"$f":"#REF!","v":{"$error":"#REF!"}},null,"Días Trabajados:",null,null,{"$f":"#REF!","v":{"$error":"#REF!"}}]
[]
[null,null,null,null,null,null,null,null,null,null,null,null,"Ingresos",null,null,null,"Deducciones "]
[]
[null,"031","DEVENGADO",null,null,null,null,null,null,null,null,null,{"$f":"#REF!","v":{"$error":"#REF!"}}]
[null,"033","BONO ACUERDO GUBERNATIVO 66-2000",null,null,null,null,null,null,null,null,null,{"$f":"#REF!","v":{"$error":"#REF!"}}]
[null,"201","I.G.S.S",null,null,null,null,null,null,null,null,null,null,null,null,null,{"$f":"#REF!","v":{"$error":"#REF!"}}]
[null,"118","MONTEPÍO",null,null,null,null,null,null,null,null,null,null,null,null,null,0]
[null,"211","RETENCIONES JUDICIALES",null,null,null,null,null,null,null,null,null,null,null,null,null,{"$f":"#REF!","v":{"$error":"#REF!"}}]
[null,null,null,null,null,null,null,null,null,null,"Total  :",null,{"$f":"SUM(M1363:O1367)","v":{"$error":"#REF!"}},null,null,null,{"$f":"SUM(Q1365:S1367)","v":{"$error":"#REF!"}}]
[null,null,null,null,null,null,null,null,null,null,"Liquido :",null,{"$f":"M1368-Q1368","v":{"$error":"#REF!"}}]
[]
[]
[]
[]
[]
[]
[]
[]
["María José Ceballos López",null,null,null,null,null,null,null,null,null,null,null,{"$f":"C1357","v":{"$error":"#REF!"}}]
["Encargada de Nómina",null,null,null,null,null,null,null,null,null,null,null,{"$f":"P1358","v":{"$error":"#REF!"}}]
["AMSA ",null,null,null,null,null,null,null,null,null,null,null,"AMSA"]
[]
[]
[]
[]
[]
[]
[]
[]
["GOBIERNO DE LA REPÚBLICA DE GUATEMALA"]
["AUTORIDAD PARA EL MANEJO SUSTENTABLE DE LA CUENCA Y DEL LAGO DE AMATITLÁN"]
[]
[]
[{"$f":"A1354","v":"Boleta de Liquidación Mensual Renglón 031 \"Jornales\"   Correspondiente al mes de octubre 2015"}]
[{"$f":"A1355","v":{"$error":"#REF!"}}]
[]
["Empleado:",null,{"$f":"C1357","v":{"$error":"#REF!"}},null,null,null,null,null,null,null,"Certificación No.",null,null,{"$f":"N1357","v":21},null,"Fecha:",null,{"$f":"R1357","v":"2014-08-31"}]
["Contrato:",null,{"$f":"C1358","v":{"$error":"#REF!"}},null,null,"Puesto Funcional:",null,null,{"$f":"I1358","v":{"$error":"#REF!"}},null,null,null,"Titulo Jornal:",null,null,{"$f":"P1358","v":{"$error":"#REF!"}}]
["Cuenta / Banco:",null,null,{"$f":"D1359","v":{"$error":"#REF!"}},null,"Banco de Desarrollo Rural, S.A.",null,null,null,null,"Jornal Diario:",null,null,{"$f":"N1359","v":{"$error":"#REF!"}},null,"Días Trabajados:",null,null,{"$f":"S1359","v":{"$error":"#REF!"}}]
[]
[null,null,null,null,null,null,null,null,null,null,null,null,"Ingresos",null,null,null,"Deducciones "]
[]
[null,"031","DEVENGADO",null,null,null,null,null,null,null,null,null,{"$f":"M1363","v":{"$error":"#REF!"}}]
[null,"033","BONO ACUERDO GUBERNATIVO 66-2000",null,null,null,null,null,null,null,null,null,{"$f":"M1364","v":{"$error":"#REF!"}}]
[null,"201","I.G.S.S",null,null,null,null,null,null,null,null,null,null,null,null,null,{"$f":"Q1365","v":{"$error":"#REF!"}}]
[null,"118","MONTEPÍO",null,null,null,null,null,null,null,null,null,null,null,null,null,{"$f":"Q1366","v":0}]
[null,"211","RETENCIONES JUDICIALES",null,null,null,null,null,null,null,null,null,null,null,null,null,{"$f":"Q1367","v":{"$error":"#REF!"}}]
[null,null,null,null,null,null,null,null,null,null,"Total  :",null,{"$f":"SUM(M1402:O1406)","v":{"$error":"#REF!"}},null,null,null,{"$f":"SUM(Q1404:S1406)","v":{"$error":"#REF!"}}]
[null,null,null,null,null,null,null,null,null,null,"Liquido :",null,{"$f":"M1407-Q1407","v":{"$error":"#REF!"}}]
[]
[]
[]
[]
[]
[]
[]
[]
[{"$f":"A1378","v":"María José Ceballos López"},null,null,null,null,null,null,null,null,null,null,null,{"$f":"C1396","v":{"$error":"#REF!"}}]
[{"$f":"A1379","v":"Encargada de Nómina"},null,null,null,null,null,null,null,null,null,null,null,{"$f":"P1397","v":{"$error":"#REF!"}}]
[{"$f":"A1380","v":"AMSA "},null,null,null,null,null,null,null,null,null,null,null,"AMSA"]
[]
["GOBIERNO DE LA REPÚBLICA DE GUATEMALA"]
["AUTORIDAD PARA EL MANEJO SUSTENTABLE DE LA CUENCA Y DEL LAGO DE AMATITLÁN"]
[]
[]
[{"$f":"A1354","v":"Boleta de Liquidación Mensual Renglón 031 \"Jornales\"   Correspondiente al mes de octubre 2015"}]
[{"$f":"A1355","v":{"$error":"#REF!"}}]
[]
["Empleado:",null,{"$f":"#REF!","v":{"$error":"#REF!"}},null,null,null,null,null,null,null,"Certificación No.",null,null,{"$f":"N1357+1","v":22},null,"Fecha:",null,{"$f":"R363","v":"2015-08-31"}]
["Contrato:",null,{"$f":"#REF!","v":{"$error":"#REF!"}},null,null,"Puesto Funcional:",null,null,"Peón de Campo",null,null,null,"Titulo Jornal:",null,null,{"$f":"#REF!","v":{"$error":"#REF!"}}]
["Cuenta / Banco:",null,null,{"$f":"#REF!","v":{"$error":"#REF!"}},null,"Banco de Desarrollo Rural, S.A.",null,null,null,null,"Jornal Diario:",null,null,{"$f":"#REF!","v":{"$error":"#REF!"}},null,"Días Trabajados:",null,null,{"$f":"#REF!","v":{"$error":"#REF!"}}]
[]
[null,null,null,null,null,null,null,null,null,null,null,null,"Ingresos",null,null,null,"Deducciones "]
[]
[null,"031","DEVENGADO",null,null,null,null,null,null,null,null,null,{"$f":"#REF!","v":{"$error":"#REF!"}}]
[null,"033","BONO ACUERDO GUBERNATIVO 66-2000",null,null,null,null,null,null,null,null,null,{"$f":"#REF!","v":{"$error":"#REF!"}}]
[null,"201","I.G.S.S",null,null,null,null,null,null,null,null,null,null,null,null,null,{"$f":"#REF!","v":{"$error":"#REF!"}}]
[null,"118","MONTEPÍO",null,null,null,null,null,null,null,null,null,null,null,null,null,0]
[null,"211","RETENCIONES JUDICIALES",null,null,null,null,null,null,null,null,null,null,null,null,null,{"$f":"#REF!","v":{"$error":"#REF!"}}]
[null,null,null,null,null,null,null,null,null,null,"Total  :",null,{"$f":"SUM(M1434:O1438)","v":{"$error":"#REF!"}},null,null,null,{"$f":"SUM(Q1436:S1438)","v":{"$error":"#REF!"}}]
[null,null,null,null,null,null,null,null,null,null,"Liquido :",null,{"$f":"M1439-Q1439","v":{"$error":"#REF!"}}]
[]
[]
[]
[]
[]
[]
[]
[]
["María José Ceballos López",null,null,null,null,null,null,null,null,null,null,null,{"$f":"C1428","v":{"$error":"#REF!"}}]
["Encargada de Nómina",null,null,null,null,null,null,null,null,null,null,null,{"$f":"P1429","v":{"$error":"#REF!"}}]
["AMSA ",null,null,null,null,null,null,null,null,null,null,null,"AMSA"]
[]
[]
[]
[]
[]
[]
[]
[]
["GOBIERNO DE LA REPÚBLICA DE GUATEMALA"]
["AUTORIDAD PARA EL MANEJO SUSTENTABLE DE LA CUENCA Y DEL LAGO DE AMATITLÁN"]
[]
[]
[{"$f":"A1425","v":"Boleta de Liquidación Mensual Renglón 031 \"Jornales\"   Correspondiente al mes de octubre 2015"}]
[{"$f":"A1426","v":{"$error":"#REF!"}}]
[]
["Empleado:",null,{"$f":"C1428","v":{"$error":"#REF!"}},null,null,null,null,null,null,null,"Certificación No.",null,null,{"$f":"N1428","v":22},null,"Fecha:",null,{"$f":"R1428","v":"2015-08-31"}]
["Contrato:",null,{"$f":"C1429","v":{"$error":"#REF!"}},null,null,"Puesto Funcional:",null,null,{"$f":"I1429","v":"Peón de Campo"},null,null,null,"Titulo Jornal:",null,null,{"$f":"P1429","v":{"$error":"#REF!"}}]
["Cuenta / Banco:",null,null,{"$f":"D1430","v":{"$error":"#REF!"}},null,"Banco de Desarrollo Rural, S.A.",null,null,null,null,"Jornal Diario:",null,null,{"$f":"N1430","v":{"$error":"#REF!"}},null,"Días Trabajados:",null,null,{"$f":"S1430","v":{"$error":"#REF!"}}]
[]
[null,null,null,null,null,null,null,null,null,null,null,null,"Ingresos",null,null,null,"Deducciones "]
[]
[null,"031","DEVENGADO",null,null,null,null,null,null,null,null,null,{"$f":"M1434","v":{"$error":"#REF!"}}]
[null,"033","BONO ACUERDO GUBERNATIVO 66-2000",null,null,null,null,null,null,null,null,null,{"$f":"M1435","v":{"$error":"#REF!"}}]
[null,"201","I.G.S.S",null,null,null,null,null,null,null,null,null,null,null,null,null,{"$f":"Q1436","v":{"$error":"#REF!"}}]
[null,"118","MONTEPÍO",null,null,null,null,null,null,null,null,null,null,null,null,null,{"$f":"Q1437","v":0}]
[null,"211","RETENCIONES JUDICIALES",null,null,null,null,null,null,null,null,null,null,null,null,null,{"$f":"Q1438","v":{"$error":"#REF!"}}]
[null,null,null,null,null,null,null,null,null,null,"Total  :",null,{"$f":"SUM(M1473:O1477)","v":{"$error":"#REF!"}},null,null,null,{"$f":"SUM(Q1475:S1477)","v":{"$error":"#REF!"}}]
[null,null,null,null,null,null,null,null,null,null,"Liquido :",null,{"$f":"M1478-Q1478","v":{"$error":"#REF!"}}]
[]
[]
[]
[]
[]
[]
[]
[]
[{"$f":"A1449","v":"María José Ceballos López"},null,null,null,null,null,null,null,null,null,null,null,{"$f":"C1467","v":{"$error":"#REF!"}}]
[{"$f":"A1450","v":"Encargada de Nómina"},null,null,null,null,null,null,null,null,null,null,null,{"$f":"P1468","v":{"$error":"#REF!"}}]
[{"$f":"A1451","v":"AMSA "},null,null,null,null,null,null,null,null,null,null,null,"AMSA"]
[]
["GOBIERNO DE LA REPÚBLICA DE GUATEMALA"]
["AUTORIDAD PARA EL MANEJO SUSTENTABLE DE LA CUENCA Y DEL LAGO DE AMATITLÁN"]
[]
[]
[{"$f":"A1425","v":"Boleta de Liquidación Mensual Renglón 031 \"Jornales\"   Correspondiente al mes de octubre 2015"}]
[{"$f":"A1426","v":{"$error":"#REF!"}}]
[]
["Empleado:",null,{"$f":"#REF!","v":{"$error":"#REF!"}},null,null,null,null,null,null,null,"Certificación No.",null,null,{"$f":"N1428+1","v":23},null,"Fecha:",null,{"$f":"R434","v":"2014-08-31"}]
["Contrato:",null,{"$f":"#REF!","v":{"$error":"#REF!"}},null,null,"Puesto Funcional:",null,null,{"$f":"#REF!","v":{"$error":"#REF!"}},null,null,null,"Titulo Jornal:",null,null,{"$f":"#REF!","v":{"$error":"#REF!"}}]
["Cuenta / Banco:",null,null,{"$f":"#REF!","v":{"$error":"#REF!"}},null,"Banco de Desarrollo Rural, S.A.",null,null,null,null,"Jornal Diario:",null,null,{"$f":"#REF!","v":{"$error":"#REF!"}},null,"Días Trabajados:",null,null,{"$f":"#REF!","v":{"$error":"#REF!"}}]
[]
[null,null,null,null,null,null,null,null,null,null,null,null,"Ingresos",null,null,null,"Deducciones "]
[]
[null,"031","DEVENGADO",null,null,null,null,null,null,null,null,null,{"$f":"#REF!","v":{"$error":"#REF!"}}]
[null,"033","BONO ACUERDO GUBERNATIVO 66-2000",null,null,null,null,null,null,null,null,null,{"$f":"#REF!","v":{"$error":"#REF!"}}]
[null,"201","I.G.S.S",null,null,null,null,null,null,null,null,null,null,null,null,null,{"$f":"#REF!","v":{"$error":"#REF!"}}]
[null,"118","MONTEPÍO",null,null,null,null,null,null,null,null,null,null,null,null,null,0]
[null,"211","RETENCIONES JUDICIALES",null,null,null,null,null,null,null,null,null,null,null,null,null,{"$f":"#REF!","v":{"$error":"#REF!"}}]
[null,null,null,null,null,null,null,null,null,null,"Total  :",null,{"$f":"SUM(M1505:O1509)","v":{"$error":"#REF!"}},null,null,null,{"$f":"SUM(Q1507:S1509)","v":{"$error":"#REF!"}}]
[null,null,null,null,null,null,null,null,null,null,"Liquido :",null,{"$f":"M1510-Q1510","v":{"$error":"#REF!"}}]
[]
[]
[]
[]
[]
[]
[]
[]
["María José Ceballos López",null,null,null,null,null,null,null,null,null,null,null,{"$f":"C1499","v":{"$error":"#REF!"}}]
["Encargada de Nómina",null,null,null,null,null,null,null,null,null,null,null,{"$f":"P1500","v":{"$error":"#REF!"}}]
["AMSA ",null,null,null,null,null,null,null,null,null,null,null,"AMSA"]
[]
[]
[]
[]
[]
[]
[]
[]
["GOBIERNO DE LA REPÚBLICA DE GUATEMALA"]
["AUTORIDAD PARA EL MANEJO SUSTENTABLE DE LA CUENCA Y DEL LAGO DE AMATITLÁN"]
[]
[]
[{"$f":"A1496","v":"Boleta de Liquidación Mensual Renglón 031 \"Jornales\"   Correspondiente al mes de octubre 2015"}]
[{"$f":"A1497","v":{"$error":"#REF!"}}]
[]
["Empleado:",null,{"$f":"C1499","v":{"$error":"#REF!"}},null,null,null,null,null,null,null,"Certificación No.",null,null,{"$f":"N1499","v":23},null,"Fecha:",null,{"$f":"R1499","v":"2014-08-31"}]
["Contrato:",null,{"$f":"C1500","v":{"$error":"#REF!"}},null,null,"Puesto Funcional:",null,null,{"$f":"I1500","v":{"$error":"#REF!"}},null,null,null,"Titulo Jornal:",null,null,{"$f":"P1500","v":{"$error":"#REF!"}}]
["Cuenta / Banco:",null,null,{"$f":"D1501","v":{"$error":"#REF!"}},null,"Banco de Desarrollo Rural, S.A.",null,null,null,null,"Jornal Diario:",null,null,{"$f":"N1501","v":{"$error":"#REF!"}},null,"Días Trabajados:",null,null,{"$f":"S1501","v":{"$error":"#REF!"}}]
[]
[null,null,null,null,null,null,null,null,null,null,null,null,"Ingresos",null,null,null,"Deducciones "]
[]
[null,"031","DEVENGADO",null,null,null,null,null,null,null,null,null,{"$f":"M1505","v":{"$error":"#REF!"}}]
[null,"033","BONO ACUERDO GUBERNATIVO 66-2000",null,null,null,null,null,null,null,null,null,{"$f":"M1506","v":{"$error":"#REF!"}}]
[null,"201","I.G.S.S",null,null,null,null,null,null,null,null,null,null,null,null,null,{"$f":"Q1507","v":{"$error":"#REF!"}}]
[null,"118","MONTEPÍO",null,null,null,null,null,null,null,null,null,null,null,null,null,{"$f":"Q1508","v":0}]
[null,"211","RETENCIONES JUDICIALES",null,null,null,null,null,null,null,null,null,null,null,null,null,{"$f":"Q1509","v":{"$error":"#REF!"}}]
[null,null,null,null,null,null,null,null,null,null,"Total  :",null,{"$f":"SUM(M1544:O1548)","v":{"$error":"#REF!"}},null,null,null,{"$f":"SUM(Q1546:S1548)","v":{"$error":"#REF!"}}]
[null,null,null,null,null,null,null,null,null,null,"Liquido :",null,{"$f":"M1549-Q1549","v":{"$error":"#REF!"}}]
[]
[]
[]
[]
[]
[]
[]
[]
[{"$f":"A1520","v":"María José Ceballos López"},null,null,null,null,null,null,null,null,null,null,null,{"$f":"C1538","v":{"$error":"#REF!"}}]
[{"$f":"A1521","v":"Encargada de Nómina"},null,null,null,null,null,null,null,null,null,null,null,{"$f":"P1539","v":{"$error":"#REF!"}}]
[{"$f":"A1522","v":"AMSA "},null,null,null,null,null,null,null,null,null,null,null,"AMSA"]
[]
["GOBIERNO DE LA REPÚBLICA DE GUATEMALA"]
["AUTORIDAD PARA EL MANEJO SUSTENTABLE DE LA CUENCA Y DEL LAGO DE AMATITLÁN"]
[]
[]
[{"$f":"A1496","v":"Boleta de Liquidación Mensual Renglón 031 \"Jornales\"   Correspondiente al mes de octubre 2015"}]
[{"$f":"A1497","v":{"$error":"#REF!"}}]
[]
["Empleado:",null,{"$f":"#REF!","v":{"$error":"#REF!"}},null,null,null,null,null,null,null,"Certificación No.",null,null,{"$f":"N1499+1","v":24},null,"Fecha:",null,{"$f":"R8","v":"2014-08-31"}]
["Contrato:",null,{"$f":"#REF!","v":{"$error":"#REF!"}},null,null,"Puesto Funcional:",null,null,{"$f":"#REF!","v":{"$error":"#REF!"}},null,null,null,"Titulo Jornal:",null,null,{"$f":"#REF!","v":{"$error":"#REF!"}}]
["Cuenta / Banco:",null,null,{"$f":"#REF!","v":{"$error":"#REF!"}},null,"Banco de Desarrollo Rural, S.A.",null,null,null,null,"Jornal Diario:",null,null,{"$f":"#REF!","v":{"$error":"#REF!"}},null,"Días Trabajados:",null,null,{"$f":"#REF!","v":{"$error":"#REF!"}}]
[]
[null,null,null,null,null,null,null,null,null,null,null,null,"Ingresos",null,null,null,"Deducciones "]
[]
[null,"031","DEVENGADO",null,null,null,null,null,null,null,null,null,{"$f":"#REF!","v":{"$error":"#REF!"}}]
[null,"033","BONO ACUERDO GUBERNATIVO 66-2000",null,null,null,null,null,null,null,null,null,{"$f":"#REF!","v":{"$error":"#REF!"}}]
[null,"201","I.G.S.S",null,null,null,null,null,null,null,null,null,null,null,null,null,{"$f":"#REF!","v":{"$error":"#REF!"}}]
[null,"118","MONTEPÍO",null,null,null,null,null,null,null,null,null,null,null,null,null,0]
[null,"211","RETENCIONES JUDICIALES",null,null,null,null,null,null,null,null,null,null,null,null,null,{"$f":"#REF!","v":{"$error":"#REF!"}}]
[null,null,null,null,null,null,null,null,null,null,"Total  :",null,{"$f":"SUM(M1576:O1580)","v":{"$error":"#REF!"}},null,null,null,{"$f":"SUM(Q1578:S1580)","v":{"$error":"#REF!"}}]
[null,null,null,null,null,null,null,null,null,null,"Liquido :",null,{"$f":"M1581-Q1581","v":{"$error":"#REF!"}}]
[]
[]
[]
[]
[]
[]
[]
[]
["María José Ceballos López",null,null,null,null,null,null,null,null,null,null,null,{"$f":"C1570","v":{"$error":"#REF!"}}]
["Encargada de Nómina",null,null,null,null,null,null,null,null,null,null,null,{"$f":"P1571","v":{"$error":"#REF!"}}]
["AMSA ",null,null,null,null,null,null,null,null,null,null,null,"AMSA"]
[]
[]
[]
[]
[]
[]
[]
[]
["GOBIERNO DE LA REPÚBLICA DE GUATEMALA"]
["AUTORIDAD PARA EL MANEJO SUSTENTABLE DE LA CUENCA Y DEL LAGO DE AMATITLÁN"]
[]
[]
[{"$f":"A1567","v":"Boleta de Liquidación Mensual Renglón 031 \"Jornales\"   Correspondiente al mes de octubre 2015"}]
[{"$f":"A1568","v":{"$error":"#REF!"}}]
[]
["Empleado:",null,{"$f":"C1570","v":{"$error":"#REF!"}},null,null,null,null,null,null,null,"Certificación No.",null,null,{"$f":"N1570","v":24},null,"Fecha:",null,{"$f":"R1570","v":"2014-08-31"}]
["Contrato:",null,{"$f":"C1571","v":{"$error":"#REF!"}},null,null,"Puesto Funcional:",null,null,{"$f":"I1571","v":{"$error":"#REF!"}},null,null,null,"Titulo Jornal:",null,null,{"$f":"P1571","v":{"$error":"#REF!"}}]
["Cuenta / Banco:",null,null,{"$f":"D1572","v":{"$error":"#REF!"}},null,"Banco de Desarrollo Rural, S.A.",null,null,null,null,"Jornal Diario:",null,null,{"$f":"N1572","v":{"$error":"#REF!"}},null,"Días Trabajados:",null,null,{"$f":"S1572","v":{"$error":"#REF!"}}]
[]
[null,null,null,null,null,null,null,null,null,null,null,null,"Ingresos",null,null,null,"Deducciones "]
[]
[null,"031","DEVENGADO",null,null,null,null,null,null,null,null,null,{"$f":"M1576","v":{"$error":"#REF!"}}]
[null,"033","BONO ACUERDO GUBERNATIVO 66-2000",null,null,null,null,null,null,null,null,null,{"$f":"M1577","v":{"$error":"#REF!"}}]
[null,"201","I.G.S.S",null,null,null,null,null,null,null,null,null,null,null,null,null,{"$f":"Q1578","v":{"$error":"#REF!"}}]
[null,"118","MONTEPÍO",null,null,null,null,null,null,null,null,null,null,null,null,null,{"$f":"Q1579","v":0}]
[null,"211","RETENCIONES JUDICIALES",null,null,null,null,null,null,null,null,null,null,null,null,null,{"$f":"Q1580","v":{"$error":"#REF!"}}]
[null,null,null,null,null,null,null,null,null,null,"Total  :",null,{"$f":"SUM(M1615:O1619)","v":{"$error":"#REF!"}},null,null,null,{"$f":"SUM(Q1617:S1619)","v":{"$error":"#REF!"}}]
[null,null,null,null,null,null,null,null,null,null,"Liquido :",null,{"$f":"M1620-Q1620","v":{"$error":"#REF!"}}]
[]
[]
[]
[]
[]
[]
[]
[]
[{"$f":"A1591","v":"María José Ceballos López"},null,null,null,null,null,null,null,null,null,null,null,{"$f":"C1609","v":{"$error":"#REF!"}}]
[{"$f":"A1592","v":"Encargada de Nómina"},null,null,null,null,null,null,null,null,null,null,null,{"$f":"P1610","v":{"$error":"#REF!"}}]
[{"$f":"A1593","v":"AMSA "},null,null,null,null,null,null,null,null,null,null,null,"AMSA"]
[]
["GOBIERNO DE LA REPÚBLICA DE GUATEMALA"]
["AUTORIDAD PARA EL MANEJO SUSTENTABLE DE LA CUENCA Y DEL LAGO DE AMATITLÁN"]
[]
[]
[{"$f":"A1567","v":"Boleta de Liquidación Mensual Renglón 031 \"Jornales\"   Correspondiente al mes de octubre 2015"}]
[{"$f":"A1568","v":{"$error":"#REF!"}}]
[]
["Empleado:",null,{"$f":"#REF!","v":{"$error":"#REF!"}},null,null,null,null,null,null,null,"Certificación No.",null,null,{"$f":"N1570+1","v":25},null,"Fecha:",null,{"$f":"R576","v":"2014-08-31"}]
["Contrato:",null,{"$f":"#REF!","v":{"$error":"#REF!"}},null,null,"Puesto Funcional:",null,null,{"$f":"#REF!","v":{"$error":"#REF!"}},null,null,null,"Titulo Jornal:",null,null,{"$f":"#REF!","v":{"$error":"#REF!"}}]
["Cuenta / Banco:",null,null,{"$f":"#REF!","v":{"$error":"#REF!"}},null,"Banco de Desarrollo Rural, S.A.",null,null,null,null,"Jornal Diario:",null,null,{"$f":"#REF!","v":{"$error":"#REF!"}},null,"Días Trabajados:",null,null,{"$f":"#REF!","v":{"$error":"#REF!"}}]
[]
[null,null,null,null,null,null,null,null,null,null,null,null,"Ingresos",null,null,null,"Deducciones "]
[]
[null,"031","DEVENGADO",null,null,null,null,null,null,null,null,null,{"$f":"#REF!","v":{"$error":"#REF!"}}]
[null,"033","BONO ACUERDO GUBERNATIVO 66-2000",null,null,null,null,null,null,null,null,null,{"$f":"#REF!","v":{"$error":"#REF!"}}]
[null,"201","I.G.S.S",null,null,null,null,null,null,null,null,null,null,null,null,null,{"$f":"#REF!","v":{"$error":"#REF!"}}]
[null,"118","MONTEPÍO",null,null,null,null,null,null,null,null,null,null,null,null,null,0]
[null,"211","RETENCIONES JUDICIALES",null,null,null,null,null,null,null,null,null,null,null,null,null,{"$f":"#REF!","v":{"$error":"#REF!"}}]
[null,null,null,null,null,null,null,null,null,null,"Total  :",null,{"$f":"SUM(M1647:O1651)","v":{"$error":"#REF!"}},null,null,null,{"$f":"SUM(Q1649:S1651)","v":{"$error":"#REF!"}}]
[null,null,null,null,null,null,null,null,null,null,"Liquido :",null,{"$f":"M1652-Q1652","v":{"$error":"#REF!"}}]
[]
[]
[]
[]
[]
[]
[]
[]
["María José Ceballos López",null,null,null,null,null,null,null,null,null,null,null,{"$f":"C1641","v":{"$error":"#REF!"}}]
["Encargada de Nómina",null,null,null,null,null,null,null,null,null,null,null,{"$f":"P1642","v":{"$error":"#REF!"}}]
["AMSA ",null,null,null,null,null,null,null,null,null,null,null,"AMSA"]
[]
[]
[]
[]
[]
[]
[]
[]
["GOBIERNO DE LA REPÚBLICA DE GUATEMALA"]
["AUTORIDAD PARA EL MANEJO SUSTENTABLE DE LA CUENCA Y DEL LAGO DE AMATITLÁN"]
[]
[]
[{"$f":"A1638","v":"Boleta de Liquidación Mensual Renglón 031 \"Jornales\"   Correspondiente al mes de octubre 2015"}]
[{"$f":"A1639","v":{"$error":"#REF!"}}]
[]
["Empleado:",null,{"$f":"C1641","v":{"$error":"#REF!"}},null,null,null,null,null,null,null,"Certificación No.",null,null,{"$f":"N1641","v":25},null,"Fecha:",null,{"$f":"R1641","v":"2014-08-31"}]
["Contrato:",null,{"$f":"C1642","v":{"$error":"#REF!"}},null,null,"Puesto Funcional:",null,null,{"$f":"I1642","v":{"$error":"#REF!"}},null,null,null,"Titulo Jornal:",null,null,{"$f":"P1642","v":{"$error":"#REF!"}}]
["Cuenta / Banco:",null,null,{"$f":"D1643","v":{"$error":"#REF!"}},null,"Banco de Desarrollo Rural, S.A.",null,null,null,null,"Jornal Diario:",null,null,{"$f":"N1643","v":{"$error":"#REF!"}},null,"Días Trabajados:",null,null,{"$f":"S1643","v":{"$error":"#REF!"}}]
[]
[null,null,null,null,null,null,null,null,null,null,null,null,"Ingresos",null,null,null,"Deducciones "]
[]
[null,"031","DEVENGADO",null,null,null,null,null,null,null,null,null,{"$f":"M1647","v":{"$error":"#REF!"}}]
[null,"033","BONO ACUERDO GUBERNATIVO 66-2000",null,null,null,null,null,null,null,null,null,{"$f":"M1648","v":{"$error":"#REF!"}}]
[null,"201","I.G.S.S",null,null,null,null,null,null,null,null,null,null,null,null,null,{"$f":"Q1649","v":{"$error":"#REF!"}}]
[null,"118","MONTEPÍO",null,null,null,null,null,null,null,null,null,null,null,null,null,{"$f":"Q1650","v":0}]
[null,"211","RETENCIONES JUDICIALES",null,null,null,null,null,null,null,null,null,null,null,null,null,{"$f":"Q1651","v":{"$error":"#REF!"}}]
[null,null,null,null,null,null,null,null,null,null,"Total  :",null,{"$f":"SUM(M1686:O1690)","v":{"$error":"#REF!"}},null,null,null,{"$f":"SUM(Q1688:S1690)","v":{"$error":"#REF!"}}]
[null,null,null,null,null,null,null,null,null,null,"Liquido :",null,{"$f":"M1691-Q1691","v":{"$error":"#REF!"}}]
[]
[]
[]
[]
[]
[]
[]
[]
[{"$f":"A1662","v":"María José Ceballos López"},null,null,null,null,null,null,null,null,null,null,null,{"$f":"C1680","v":{"$error":"#REF!"}}]
[{"$f":"A1663","v":"Encargada de Nómina"},null,null,null,null,null,null,null,null,null,null,null,{"$f":"P1681","v":{"$error":"#REF!"}}]
[{"$f":"A1664","v":"AMSA "},null,null,null,null,null,null,null,null,null,null,null,"AMSA"]
[]
["GOBIERNO DE LA REPÚBLICA DE GUATEMALA"]
["AUTORIDAD PARA EL MANEJO SUSTENTABLE DE LA CUENCA Y DEL LAGO DE AMATITLÁN"]
[]
[]
[{"$f":"A1638","v":"Boleta de Liquidación Mensual Renglón 031 \"Jornales\"   Correspondiente al mes de octubre 2015"}]
[{"$f":"A1639","v":{"$error":"#REF!"}}]
[]
["Empleado:",null,{"$f":"#REF!","v":{"$error":"#REF!"}},null,null,null,null,null,null,null,"Certificación No.",null,null,{"$f":"N1641+1","v":26},null,"Fecha:",null,{"$f":"R647","v":"2014-08-31"}]
["Contrato:",null,{"$f":"#REF!","v":{"$error":"#REF!"}},null,null,"Puesto Funcional:",null,null,{"$f":"#REF!","v":{"$error":"#REF!"}},null,null,null,"Titulo Jornal:",null,null,{"$f":"#REF!","v":{"$error":"#REF!"}}]
["Cuenta / Banco:",null,null,{"$f":"#REF!","v":{"$error":"#REF!"}},null,"Banco de Desarrollo Rural, S.A.",null,null,null,null,"Jornal Diario:",null,null,{"$f":"#REF!","v":{"$error":"#REF!"}},null,"Días Trabajados:",null,null,{"$f":"#REF!","v":{"$error":"#REF!"}}]
[]
[null,null,null,null,null,null,null,null,null,null,null,null,"Ingresos",null,null,null,"Deducciones "]
[]
[null,"031","DEVENGADO",null,null,null,null,null,null,null,null,null,{"$f":"#REF!","v":{"$error":"#REF!"}}]
[null,"033","BONO ACUERDO GUBERNATIVO 66-2000",null,null,null,null,null,null,null,null,null,{"$f":"#REF!","v":{"$error":"#REF!"}}]
[null,"201","I.G.S.S",null,null,null,null,null,null,null,null,null,null,null,null,null,{"$f":"#REF!","v":{"$error":"#REF!"}}]
[null,"118","MONTEPÍO",null,null,null,null,null,null,null,null,null,null,null,null,null,0]
[null,"211","RETENCIONES JUDICIALES",null,null,null,null,null,null,null,null,null,null,null,null,null,{"$f":"#REF!","v":{"$error":"#REF!"}}]
[null,null,null,null,null,null,null,null,null,null,"Total  :",null,{"$f":"SUM(M1718:O1722)","v":{"$error":"#REF!"}},null,null,null,{"$f":"SUM(Q1720:S1722)","v":{"$error":"#REF!"}}]
[null,null,null,null,null,null,null,null,null,null,"Liquido :",null,{"$f":"M1723-Q1723","v":{"$error":"#REF!"}}]
[]
[]
[]
[]
[]
[]
[]
[]
["María José Ceballos López",null,null,null,null,null,null,null,null,null,null,null,{"$f":"C1712","v":{"$error":"#REF!"}}]
["Encargada de Nómina",null,null,null,null,null,null,null,null,null,null,null,{"$f":"P1713","v":{"$error":"#REF!"}}]
["AMSA ",null,null,null,null,null,null,null,null,null,null,null,"AMSA"]
[]
[]
[]
[]
[]
[]
[]
[]
["GOBIERNO DE LA REPÚBLICA DE GUATEMALA"]
["AUTORIDAD PARA EL MANEJO SUSTENTABLE DE LA CUENCA Y DEL LAGO DE AMATITLÁN"]
[]
[]
[{"$f":"A1709","v":"Boleta de Liquidación Mensual Renglón 031 \"Jornales\"   Correspondiente al mes de octubre 2015"}]
[{"$f":"A1710","v":{"$error":"#REF!"}}]
[]
["Empleado:",null,{"$f":"C1712","v":{"$error":"#REF!"}},null,null,null,null,null,null,null,"Certificación No.",null,null,{"$f":"N1712","v":26},null,"Fecha:",null,{"$f":"R1712","v":"2014-08-31"}]
["Contrato:",null,{"$f":"C1713","v":{"$error":"#REF!"}},null,null,"Puesto Funcional:",null,null,{"$f":"I1713","v":{"$error":"#REF!"}},null,null,null,"Titulo Jornal:",null,null,{"$f":"P1713","v":{"$error":"#REF!"}}]
["Cuenta / Banco:",null,null,{"$f":"D1714","v":{"$error":"#REF!"}},null,"Banco de Desarrollo Rural, S.A.",null,null,null,null,"Jornal Diario:",null,null,{"$f":"N1714","v":{"$error":"#REF!"}},null,"Días Trabajados:",null,null,{"$f":"S1714","v":{"$error":"#REF!"}}]
[]
[null,null,null,null,null,null,null,null,null,null,null,null,"Ingresos",null,null,null,"Deducciones "]
[]
[null,"031","DEVENGADO",null,null,null,null,null,null,null,null,null,{"$f":"M1718","v":{"$error":"#REF!"}}]
[null,"033","BONO ACUERDO GUBERNATIVO 66-2000",null,null,null,null,null,null,null,null,null,{"$f":"M1719","v":{"$error":"#REF!"}}]
[null,"201","I.G.S.S",null,null,null,null,null,null,null,null,null,null,null,null,null,{"$f":"Q1720","v":{"$error":"#REF!"}}]
[null,"118","MONTEPÍO",null,null,null,null,null,null,null,null,null,null,null,null,null,{"$f":"Q1721","v":0}]
[null,"211","RETENCIONES JUDICIALES",null,null,null,null,null,null,null,null,null,null,null,null,null,{"$f":"Q1722","v":{"$error":"#REF!"}}]
[null,null,null,null,null,null,null,null,null,null,"Total  :",null,{"$f":"SUM(M1757:O1761)","v":{"$error":"#REF!"}},null,null,null,{"$f":"SUM(Q1759:S1761)","v":{"$error":"#REF!"}}]
[null,null,null,null,null,null,null,null,null,null,"Liquido :",null,{"$f":"M1762-Q1762","v":{"$error":"#REF!"}}]
[]
[]
[]
[]
[]
[]
[]
[]
[{"$f":"A1733","v":"María José Ceballos López"},null,null,null,null,null,null,null,null,null,null,null,{"$f":"C1751","v":{"$error":"#REF!"}}]
[{"$f":"A1734","v":"Encargada de Nómina"},null,null,null,null,null,null,null,null,null,null,null,{"$f":"P1752","v":{"$error":"#REF!"}}]
[{"$f":"A1735","v":"AMSA "},null,null,null,null,null,null,null,null,null,null,null,"AMSA"]
[]
["GOBIERNO DE LA REPÚBLICA DE GUATEMALA"]
["AUTORIDAD PARA EL MANEJO SUSTENTABLE DE LA CUENCA Y DEL LAGO DE AMATITLÁN"]
[]
[]
[{"$f":"A1748","v":"Boleta de Liquidación Mensual Renglón 031 \"Jornales\"   Correspondiente al mes de octubre 2015"}]
[{"$f":"A1749","v":{"$error":"#REF!"}}]
[]
["Empleado:",null,{"$f":"#REF!","v":{"$error":"#REF!"}},null,null,null,null,null,null,null,"Certificación No.",null,null,{"$f":"N1712+1","v":27},null,"Fecha:",null,{"$f":"R789","v":"2014-08-31"}]
["Contrato:",null,{"$f":"#REF!","v":{"$error":"#REF!"}},null,null,"Puesto Funcional:",null,null,"Peón de Campo",null,null,null,"Titulo Jornal:",null,null,{"$f":"#REF!","v":{"$error":"#REF!"}}]
["Cuenta / Banco:",null,null,{"$f":"#REF!","v":{"$error":"#REF!"}},null,"Banco de Desarrollo Rural, S.A.",null,null,null,null,"Jornal Diario:",null,null,{"$f":"#REF!","v":{"$error":"#REF!"}},null,"Días Trabajados:",null,null,{"$f":"#REF!","v":{"$error":"#REF!"}}]
[]
[null,null,null,null,null,null,null,null,null,null,null,null,"Ingresos",null,null,null,"Deducciones "]
[]
[null,"031","DEVENGADO",null,null,null,null,null,null,null,null,null,{"$f":"#REF!","v":{"$error":"#REF!"}}]
[null,"033","BONO ACUERDO GUBERNATIVO 66-2000",null,null,null,null,null,null,null,null,null,{"$f":"#REF!","v":{"$error":"#REF!"}}]
[null,"201","I.G.S.S",null,null,null,null,null,null,null,null,null,null,null,null,null,{"$f":"#REF!","v":{"$error":"#REF!"}}]
[null,"118","MONTEPÍO",null,null,null,null,null,null,null,null,null,null,null,null,null,0]
[null,"211","RETENCIONES JUDICIALES",null,null,null,null,null,null,null,null,null,null,null,null,null,{"$f":"#REF!","v":{"$error":"#REF!"}}]
[null,null,null,null,null,null,null,null,null,null,"Total  :",null,{"$f":"SUM(M1789:O1793)","v":{"$error":"#REF!"}},null,null,null,{"$f":"SUM(Q1791:S1793)","v":{"$error":"#REF!"}}]
[null,null,null,null,null,null,null,null,null,null,"Liquido :",null,{"$f":"M1794-Q1794","v":{"$error":"#REF!"}}]
[]
[]
[]
[]
[]
[]
[]
[]
["María José Ceballos López",null,null,null,null,null,null,null,null,null,null,null,{"$f":"C1783","v":{"$error":"#REF!"}}]
["Encargada de Nómina",null,null,null,null,null,null,null,null,null,null,null,{"$f":"P1784","v":{"$error":"#REF!"}}]
["AMSA ",null,null,null,null,null,null,null,null,null,null,null,"AMSA"]
[]
[]
[]
[]
[]
[]
[]
[]
["GOBIERNO DE LA REPÚBLICA DE GUATEMALA"]
["AUTORIDAD PARA EL MANEJO SUSTENTABLE DE LA CUENCA Y DEL LAGO DE AMATITLÁN"]
[]
[]
[{"$f":"A1780","v":"Boleta de Liquidación Mensual Renglón 031 \"Jornales\"   Correspondiente al mes de octubre 2015"}]
[{"$f":"A1781","v":{"$error":"#REF!"}}]
[]
["Empleado:",null,{"$f":"C1783","v":{"$error":"#REF!"}},null,null,null,null,null,null,null,"Certificación No.",null,null,{"$f":"N1783","v":27},null,"Fecha:",null,{"$f":"R1783","v":"2014-08-31"}]
["Contrato:",null,{"$f":"C1784","v":{"$error":"#REF!"}},null,null,"Puesto Funcional:",null,null,{"$f":"I1784","v":"Peón de Campo"},null,null,null,"Titulo Jornal:",null,null,{"$f":"P1784","v":{"$error":"#REF!"}}]
["Cuenta / Banco:",null,null,{"$f":"D1785","v":{"$error":"#REF!"}},null,"Banco de Desarrollo Rural, S.A.",null,null,null,null,"Jornal Diario:",null,null,{"$f":"N1785","v":{"$error":"#REF!"}},null,"Días Trabajados:",null,null,{"$f":"S1785","v":{"$error":"#REF!"}}]
[]
[null,null,null,null,null,null,null,null,null,null,null,null,"Ingresos",null,null,null,"Deducciones "]
[]
[null,"031","DEVENGADO",null,null,null,null,null,null,null,null,null,{"$f":"M1789","v":{"$error":"#REF!"}}]
[null,"033","BONO ACUERDO GUBERNATIVO 66-2000",null,null,null,null,null,null,null,null,null,{"$f":"M1790","v":{"$error":"#REF!"}}]
[null,"201","I.G.S.S",null,null,null,null,null,null,null,null,null,null,null,null,null,{"$f":"Q1791","v":{"$error":"#REF!"}}]
[null,"118","MONTEPÍO",null,null,null,null,null,null,null,null,null,null,null,null,null,{"$f":"Q1792","v":0}]
[null,"211","RETENCIONES JUDICIALES",null,null,null,null,null,null,null,null,null,null,null,null,null,{"$f":"Q1793","v":{"$error":"#REF!"}}]
[null,null,null,null,null,null,null,null,null,null,"Total  :",null,{"$f":"SUM(M1828:O1832)","v":{"$error":"#REF!"}},null,null,null,{"$f":"SUM(Q1830:S1832)","v":{"$error":"#REF!"}}]
[null,null,null,null,null,null,null,null,null,null,"Liquido :",null,{"$f":"M1833-Q1833","v":{"$error":"#REF!"}}]
[]
[]
[]
[]
[]
[]
[]
[]
[{"$f":"A1804","v":"María José Ceballos López"},null,null,null,null,null,null,null,null,null,null,null,{"$f":"C1822","v":{"$error":"#REF!"}}]
[{"$f":"A1805","v":"Encargada de Nómina"},null,null,null,null,null,null,null,null,null,null,null,{"$f":"P1823","v":{"$error":"#REF!"}}]
[{"$f":"A1806","v":"AMSA "},null,null,null,null,null,null,null,null,null,null,null,"AMSA"]
[]
["GOBIERNO DE LA REPÚBLICA DE GUATEMALA"]
["AUTORIDAD PARA EL MANEJO SUSTENTABLE DE LA CUENCA Y DEL LAGO DE AMATITLÁN"]
[]
[]
[{"$f":"A1780","v":"Boleta de Liquidación Mensual Renglón 031 \"Jornales\"   Correspondiente al mes de octubre 2015"}]
[{"$f":"A1781","v":{"$error":"#REF!"}}]
[]
["Empleado:",null,{"$f":"#REF!","v":{"$error":"#REF!"}},null,null,null,null,null,null,null,"Certificación No.",null,null,{"$f":"N1783+1","v":28},null,"Fecha:",null,{"$f":"R860","v":"2014-08-31"}]
["Contrato:",null,{"$f":"#REF!","v":{"$error":"#REF!"}},null,null,"Puesto Funcional:",null,null,{"$f":"#REF!","v":{"$error":"#REF!"}},null,null,null,"Titulo Jornal:",null,null,{"$f":"#REF!","v":{"$error":"#REF!"}}]
["Cuenta / Banco:",null,null,{"$f":"#REF!","v":{"$error":"#REF!"}},null,"Banco de Desarrollo Rural, S.A.",null,null,null,null,"Jornal Diario:",null,null,{"$f":"#REF!","v":{"$error":"#REF!"}},null,"Días Trabajados:",null,null,{"$f":"#REF!","v":{"$error":"#REF!"}}]
[]
[null,null,null,null,null,null,null,null,null,null,null,null,"Ingresos",null,null,null,"Deducciones "]
[]
[null,"031","DEVENGADO",null,null,null,null,null,null,null,null,null,{"$f":"#REF!","v":{"$error":"#REF!"}}]
[null,"033","BONO ACUERDO GUBERNATIVO 66-2000",null,null,null,null,null,null,null,null,null,{"$f":"#REF!","v":{"$error":"#REF!"}}]
[null,"201","I.G.S.S",null,null,null,null,null,null,null,null,null,null,null,null,null,{"$f":"#REF!","v":{"$error":"#REF!"}}]
[null,"118","MONTEPÍO",null,null,null,null,null,null,null,null,null,null,null,null,null,0]
[null,"211","RETENCIONES JUDICIALES",null,null,null,null,null,null,null,null,null,null,null,null,null,{"$f":"#REF!","v":{"$error":"#REF!"}}]
[null,null,null,null,null,null,null,null,null,null,"Total  :",null,{"$f":"SUM(M1860:O1864)","v":{"$error":"#REF!"}},null,null,null,{"$f":"SUM(Q1862:S1864)","v":{"$error":"#REF!"}}]
[null,null,null,null,null,null,null,null,null,null,"Liquido :",null,{"$f":"M1865-Q1865","v":{"$error":"#REF!"}}]
[]
[]
[]
[]
[]
[]
[]
[]
["María José Ceballos López",null,null,null,null,null,null,null,null,null,null,null,{"$f":"C1854","v":{"$error":"#REF!"}}]
["Encargada de Nómina",null,null,null,null,null,null,null,null,null,null,null,{"$f":"P1855","v":{"$error":"#REF!"}}]
["AMSA ",null,null,null,null,null,null,null,null,null,null,null,"AMSA"]
[]
[]
[]
[]
[]
[]
[]
[]
["GOBIERNO DE LA REPÚBLICA DE GUATEMALA"]
["AUTORIDAD PARA EL MANEJO SUSTENTABLE DE LA CUENCA Y DEL LAGO DE AMATITLÁN"]
[]
[]
[{"$f":"A1851","v":"Boleta de Liquidación Mensual Renglón 031 \"Jornales\"   Correspondiente al mes de octubre 2015"}]
[{"$f":"A1852","v":{"$error":"#REF!"}}]
[]
["Empleado:",null,{"$f":"C1854","v":{"$error":"#REF!"}},null,null,null,null,null,null,null,"Certificación No.",null,null,{"$f":"N1854","v":28},null,"Fecha:",null,{"$f":"R1854","v":"2014-08-31"}]
["Contrato:",null,{"$f":"C1855","v":{"$error":"#REF!"}},null,null,"Puesto Funcional:",null,null,{"$f":"I1855","v":{"$error":"#REF!"}},null,null,null,"Titulo Jornal:",null,null,{"$f":"P1855","v":{"$error":"#REF!"}}]
["Cuenta / Banco:",null,null,{"$f":"D1856","v":{"$error":"#REF!"}},null,"Banco de Desarrollo Rural, S.A.",null,null,null,null,"Jornal Diario:",null,null,{"$f":"N1856","v":{"$error":"#REF!"}},null,"Días Trabajados:",null,null,{"$f":"S1856","v":{"$error":"#REF!"}}]
[]
[null,null,null,null,null,null,null,null,null,null,null,null,"Ingresos",null,null,null,"Deducciones "]
[]
[null,"031","DEVENGADO",null,null,null,null,null,null,null,null,null,{"$f":"M1860","v":{"$error":"#REF!"}}]
[null,"033","BONO ACUERDO GUBERNATIVO 66-2000",null,null,null,null,null,null,null,null,null,{"$f":"M1861","v":{"$error":"#REF!"}}]
[null,"201","I.G.S.S",null,null,null,null,null,null,null,null,null,null,null,null,null,{"$f":"Q1862","v":{"$error":"#REF!"}}]
[null,"118","MONTEPÍO",null,null,null,null,null,null,null,null,null,null,null,null,null,{"$f":"Q1863","v":0}]
[null,"211","RETENCIONES JUDICIALES",null,null,null,null,null,null,null,null,null,null,null,null,null,{"$f":"Q1864","v":{"$error":"#REF!"}}]
[null,null,null,null,null,null,null,null,null,null,"Total  :",null,{"$f":"SUM(M1899:O1903)","v":{"$error":"#REF!"}},null,null,null,{"$f":"SUM(Q1901:S1903)","v":{"$error":"#REF!"}}]
[null,null,null,null,null,null,null,null,null,null,"Liquido :",null,{"$f":"M1904-Q1904","v":{"$error":"#REF!"}}]
[]
[]
[]
[]
[]
[]
[]
[]
[{"$f":"A1875","v":"María José Ceballos López"},null,null,null,null,null,null,null,null,null,null,null,{"$f":"C1893","v":{"$error":"#REF!"}}]
[{"$f":"A1876","v":"Encargada de Nómina"},null,null,null,null,null,null,null,null,null,null,null,{"$f":"P1894","v":{"$error":"#REF!"}}]
[{"$f":"A1877","v":"AMSA "},null,null,null,null,null,null,null,null,null,null,null,"AMSA"]
[]
["GOBIERNO DE LA REPÚBLICA DE GUATEMALA"]
["AUTORIDAD PARA EL MANEJO SUSTENTABLE DE LA CUENCA Y DEL LAGO DE AMATITLÁN"]
[]
[]
[{"$f":"A1851","v":"Boleta de Liquidación Mensual Renglón 031 \"Jornales\"   Correspondiente al mes de octubre 2015"}]
[{"$f":"A1852","v":{"$error":"#REF!"}}]
[]
["Empleado:",null,{"$f":"#REF!","v":{"$error":"#REF!"}},null,null,null,null,null,null,null,"Certificación No.",null,null,{"$f":"N1854+1","v":29},null,"Fecha:",null,{"$f":"R931","v":"2015-10-31"}]
["Contrato:",null,{"$f":"#REF!","v":{"$error":"#REF!"}},null,null,"Puesto Funcional:",null,null,{"$f":"#REF!","v":{"$error":"#REF!"}},null,null,null,"Titulo Jornal:",null,null,{"$f":"#REF!","v":{"$error":"#REF!"}}]
["Cuenta / Banco:",null,null,{"$f":"#REF!","v":{"$error":"#REF!"}},null,"Banco de Desarrollo Rural, S.A.",null,null,null,null,"Jornal Diario:",null,null,{"$f":"#REF!","v":{"$error":"#REF!"}},null,"Días Trabajados:",null,null,{"$f":"#REF!","v":{"$error":"#REF!"}}]
[]
[null,null,null,null,null,null,null,null,null,null,null,null,"Ingresos",null,null,null,"Deducciones "]
[]
[null,"031","DEVENGADO",null,null,null,null,null,null,null,null,null,{"$f":"#REF!","v":{"$error":"#REF!"}}]
[null,"033","BONO ACUERDO GUBERNATIVO 66-2000",null,null,null,null,null,null,null,null,null,{"$f":"#REF!","v":{"$error":"#REF!"}}]
[null,"201","I.G.S.S",null,null,null,null,null,null,null,null,null,null,null,null,null,{"$f":"#REF!","v":{"$error":"#REF!"}}]
[null,"118","MONTEPÍO",null,null,null,null,null,null,null,null,null,null,null,null,null,0]
[null,"211","RETENCIONES JUDICIALES",null,null,null,null,null,null,null,null,null,null,null,null,null,{"$f":"#REF!","v":{"$error":"#REF!"}}]
[null,null,null,null,null,null,null,null,null,null,"Total  :",null,{"$f":"SUM(M1931:O1935)","v":{"$error":"#REF!"}},null,null,null,{"$f":"SUM(Q1933:S1935)","v":{"$error":"#REF!"}}]
[null,null,null,null,null,null,null,null,null,null,"Liquido :",null,{"$f":"M1936-Q1936","v":{"$error":"#REF!"}}]
[]
[]
[]
[]
[]
[]
[]
[]
["María José Ceballos López",null,null,null,null,null,null,null,null,null,null,null,{"$f":"C1925","v":{"$error":"#REF!"}}]
["Encargada de Nómina",null,null,null,null,null,null,null,null,null,null,null,{"$f":"P1926","v":{"$error":"#REF!"}}]
["AMSA ",null,null,null,null,null,null,null,null,null,null,null,"AMSA"]
[]
[]
[]
[]
[]
[]
[]
[]
["GOBIERNO DE LA REPÚBLICA DE GUATEMALA"]
["AUTORIDAD PARA EL MANEJO SUSTENTABLE DE LA CUENCA Y DEL LAGO DE AMATITLÁN"]
[]
[]
[{"$f":"A1922","v":"Boleta de Liquidación Mensual Renglón 031 \"Jornales\"   Correspondiente al mes de octubre 2015"}]
[{"$f":"A1923","v":{"$error":"#REF!"}}]
[]
["Empleado:",null,{"$f":"C1925","v":{"$error":"#REF!"}},null,null,null,null,null,null,null,"Certificación No.",null,null,{"$f":"N1925","v":29},null,"Fecha:",null,{"$f":"R1925","v":"2015-10-31"}]
["Contrato:",null,{"$f":"C1926","v":{"$error":"#REF!"}},null,null,"Puesto Funcional:",null,null,{"$f":"I1926","v":{"$error":"#REF!"}},null,null,null,"Titulo Jornal:",null,null,{"$f":"P1926","v":{"$error":"#REF!"}}]
["Cuenta / Banco:",null,null,{"$f":"D1927","v":{"$error":"#REF!"}},null,"Banco de Desarrollo Rural, S.A.",null,null,null,null,"Jornal Diario:",null,null,{"$f":"N1927","v":{"$error":"#REF!"}},null,"Días Trabajados:",null,null,{"$f":"S1927","v":{"$error":"#REF!"}}]
[]
[null,null,null,null,null,null,null,null,null,null,null,null,"Ingresos",null,null,null,"Deducciones "]
[]
[null,"031","DEVENGADO",null,null,null,null,null,null,null,null,null,{"$f":"M1931","v":{"$error":"#REF!"}}]
[null,"033","BONO ACUERDO GUBERNATIVO 66-2000",null,null,null,null,null,null,null,null,null,{"$f":"M1932","v":{"$error":"#REF!"}}]
[null,"201","I.G.S.S",null,null,null,null,null,null,null,null,null,null,null,null,null,{"$f":"Q1933","v":{"$error":"#REF!"}}]
[null,"118","MONTEPÍO",null,null,null,null,null,null,null,null,null,null,null,null,null,{"$f":"Q1934","v":0}]
[null,"211","RETENCIONES JUDICIALES",null,null,null,null,null,null,null,null,null,null,null,null,null,{"$f":"Q1935","v":{"$error":"#REF!"}}]
[null,null,null,null,null,null,null,null,null,null,"Total  :",null,{"$f":"SUM(M1970:O1974)","v":{"$error":"#REF!"}},null,null,null,{"$f":"SUM(Q1972:S1974)","v":{"$error":"#REF!"}}]
[null,null,null,null,null,null,null,null,null,null,"Liquido :",null,{"$f":"M1975-Q1975","v":{"$error":"#REF!"}}]
[]
[]
[]
[]
[]
[]
[]
[]
[{"$f":"A1946","v":"María José Ceballos López"},null,null,null,null,null,null,null,null,null,null,null,{"$f":"C1964","v":{"$error":"#REF!"}}]
[{"$f":"A1947","v":"Encargada de Nómina"},null,null,null,null,null,null,null,null,null,null,null,{"$f":"P1965","v":{"$error":"#REF!"}}]
[{"$f":"A1948","v":"AMSA "},null,null,null,null,null,null,null,null,null,null,null,"AMSA"]
[]
["GOBIERNO DE LA REPÚBLICA DE GUATEMALA"]
["AUTORIDAD PARA EL MANEJO SUSTENTABLE DE LA CUENCA Y DEL LAGO DE AMATITLÁN"]
[]
[]
[{"$f":"A1922","v":"Boleta de Liquidación Mensual Renglón 031 \"Jornales\"   Correspondiente al mes de octubre 2015"}]
[{"$f":"A1923","v":{"$error":"#REF!"}}]
[]
["Empleado:",null,{"$f":"#REF!","v":{"$error":"#REF!"}},null,null,null,null,null,null,null,"Certificación No.",null,null,{"$f":"N1925+1","v":30},null,"Fecha:",null,{"$f":"R1002","v":"2014-08-31"}]
["Contrato:",null,{"$f":"#REF!","v":{"$error":"#REF!"}},null,null,"Puesto Funcional:",null,null,{"$f":"#REF!","v":{"$error":"#REF!"}},null,null,null,"Titulo Jornal:",null,null,{"$f":"#REF!","v":{"$error":"#REF!"}}]
["Cuenta / Banco:",null,null,{"$f":"#REF!","v":{"$error":"#REF!"}},null,"Banco de Desarrollo Rural, S.A.",null,null,null,null,"Jornal Diario:",null,null,{"$f":"#REF!","v":{"$error":"#REF!"}},null,"Días Trabajados:",null,null,{"$f":"#REF!","v":{"$error":"#REF!"}}]
[]
[null,null,null,null,null,null,null,null,null,null,null,null,"Ingresos",null,null,null,"Deducciones "]
[]
[null,"031","DEVENGADO",null,null,null,null,null,null,null,null,null,{"$f":"#REF!","v":{"$error":"#REF!"}}]
[null,"033","BONO ACUERDO GUBERNATIVO 66-2000",null,null,null,null,null,null,null,null,null,{"$f":"#REF!","v":{"$error":"#REF!"}}]
[null,"201","I.G.S.S",null,null,null,null,null,null,null,null,null,null,null,null,null,{"$f":"#REF!","v":{"$error":"#REF!"}}]
[null,"118","MONTEPÍO",null,null,null,null,null,null,null,null,null,null,null,null,null,0]
[null,"211","RETENCIONES JUDICIALES",null,null,null,null,null,null,null,null,null,null,null,null,null,{"$f":"#REF!","v":{"$error":"#REF!"}}]
[null,null,null,null,null,null,null,null,null,null,"Total  :",null,{"$f":"SUM(M2002:O2006)","v":{"$error":"#REF!"}},null,null,null,{"$f":"SUM(Q2004:S2006)","v":{"$error":"#REF!"}}]
[null,null,null,null,null,null,null,null,null,null,"Liquido :",null,{"$f":"M2007-Q2007","v":{"$error":"#REF!"}}]
[]
[]
[]
[]
[]
[]
[]
[]
["María José Ceballos López",null,null,null,null,null,null,null,null,null,null,null,{"$f":"C1996","v":{"$error":"#REF!"}}]
["Encargada de Nómina",null,null,null,null,null,null,null,null,null,null,null,{"$f":"P1997","v":{"$error":"#REF!"}}]
["AMSA ",null,null,null,null,null,null,null,null,null,null,null,"AMSA"]
[]
[]
[]
[]
[]
[]
[]
[]
["GOBIERNO DE LA REPÚBLICA DE GUATEMALA"]
["AUTORIDAD PARA EL MANEJO SUSTENTABLE DE LA CUENCA Y DEL LAGO DE AMATITLÁN"]
[]
[]
[{"$f":"A1993","v":"Boleta de Liquidación Mensual Renglón 031 \"Jornales\"   Correspondiente al mes de octubre 2015"}]
[{"$f":"A1994","v":{"$error":"#REF!"}}]
[]
["Empleado:",null,{"$f":"C1996","v":{"$error":"#REF!"}},null,null,null,null,null,null,null,"Certificación No.",null,null,{"$f":"N1996","v":30},null,"Fecha:",null,{"$f":"R1996","v":"2014-08-31"}]
["Contrato:",null,{"$f":"C1997","v":{"$error":"#REF!"}},null,null,"Puesto Funcional:",null,null,{"$f":"I1997","v":{"$error":"#REF!"}},null,null,null,"Titulo Jornal:",null,null,{"$f":"P1997","v":{"$error":"#REF!"}}]
["Cuenta / Banco:",null,null,{"$f":"D1998","v":{"$error":"#REF!"}},null,"Banco de Desarrollo Rural, S.A.",null,null,null,null,"Jornal Diario:",null,null,{"$f":"N1998","v":{"$error":"#REF!"}},null,"Días Trabajados:",null,null,{"$f":"S1998","v":{"$error":"#REF!"}}]
[]
[null,null,null,null,null,null,null,null,null,null,null,null,"Ingresos",null,null,null,"Deducciones "]
[]
[null,"031","DEVENGADO",null,null,null,null,null,null,null,null,null,{"$f":"M2002","v":{"$error":"#REF!"}}]
[null,"033","BONO ACUERDO GUBERNATIVO 66-2000",null,null,null,null,null,null,null,null,null,{"$f":"M2003","v":{"$error":"#REF!"}}]
[null,"201","I.G.S.S",null,null,null,null,null,null,null,null,null,null,null,null,null,{"$f":"Q2004","v":{"$error":"#REF!"}}]
[null,"118","MONTEPÍO",null,null,null,null,null,null,null,null,null,null,null,null,null,{"$f":"Q2005","v":0}]
[null,"211","RETENCIONES JUDICIALES",null,null,null,null,null,null,null,null,null,null,null,null,null,{"$f":"Q2006","v":{"$error":"#REF!"}}]
[null,null,null,null,null,null,null,null,null,null,"Total  :",null,{"$f":"SUM(M2041:O2045)","v":{"$error":"#REF!"}},null,null,null,{"$f":"SUM(Q2043:S2045)","v":{"$error":"#REF!"}}]
[null,null,null,null,null,null,null,null,null,null,"Liquido :",null,{"$f":"M2046-Q2046","v":{"$error":"#REF!"}}]
[]
[]
[]
[]
[]
[]
[]
[]
[{"$f":"A2017","v":"María José Ceballos López"},null,null,null,null,null,null,null,null,null,null,null,{"$f":"C2035","v":{"$error":"#REF!"}}]
[{"$f":"A2018","v":"Encargada de Nómina"},null,null,null,null,null,null,null,null,null,null,null,{"$f":"P2036","v":{"$error":"#REF!"}}]
[{"$f":"A2019","v":"AMSA "},null,null,null,null,null,null,null,null,null,null,null,"AMSA"]
[]
["GOBIERNO DE LA REPÚBLICA DE GUATEMALA"]
["AUTORIDAD PARA EL MANEJO SUSTENTABLE DE LA CUENCA Y DEL LAGO DE AMATITLÁN"]
[]
[]
[{"$f":"A1993","v":"Boleta de Liquidación Mensual Renglón 031 \"Jornales\"   Correspondiente al mes de octubre 2015"}]
[{"$f":"A1994","v":{"$error":"#REF!"}}]
[]
["Empleado:",null,{"$f":"#REF!","v":{"$error":"#REF!"}},null,null,null,null,null,null,null,"Certificación No.",null,null,{"$f":"N1996+1","v":31},null,"Fecha:",null,{"$f":"R1073","v":"2014-08-31"}]
["Contrato:",null,{"$f":"#REF!","v":{"$error":"#REF!"}},null,null,"Puesto Funcional:",null,null,{"$f":"#REF!","v":{"$error":"#REF!"}},null,null,null,"Titulo Jornal:",null,null,{"$f":"#REF!","v":{"$error":"#REF!"}}]
["Cuenta / Banco:",null,null,{"$f":"#REF!","v":{"$error":"#REF!"}},null,"Banco de Desarrollo Rural, S.A.",null,null,null,null,"Jornal Diario:",null,null,{"$f":"#REF!","v":{"$error":"#REF!"}},null,"Días Trabajados:",null,null,{"$f":"#REF!","v":{"$error":"#REF!"}}]
[]
[null,null,null,null,null,null,null,null,null,null,null,null,"Ingresos",null,null,null,"Deducciones "]
[]
[null,"031","DEVENGADO",null,null,null,null,null,null,null,null,null,{"$f":"#REF!","v":{"$error":"#REF!"}}]
[null,"033","BONO ACUERDO GUBERNATIVO 66-2000",null,null,null,null,null,null,null,null,null,{"$f":"#REF!","v":{"$error":"#REF!"}}]
[null,"201","I.G.S.S",null,null,null,null,null,null,null,null,null,null,null,null,null,{"$f":"#REF!","v":{"$error":"#REF!"}}]
[null,"118","MONTEPÍO",null,null,null,null,null,null,null,null,null,null,null,null,null,0]
[null,"211","RETENCIONES JUDICIALES",null,null,null,null,null,null,null,null,null,null,null,null,null,{"$f":"#REF!","v":{"$error":"#REF!"}}]
[null,null,null,null,null,null,null,null,null,null,"Total  :",null,{"$f":"SUM(M2073:O2077)","v":{"$error":"#REF!"}},null,null,null,{"$f":"SUM(Q2075:S2077)","v":{"$error":"#REF!"}}]
[null,null,null,null,null,null,null,null,null,null,"Liquido :",null,{"$f":"M2078-Q2078","v":{"$error":"#REF!"}}]
[]
[]
[]
[]
[]
[]
[]
[]
["María José Ceballos López",null,null,null,null,null,null,null,null,null,null,null,{"$f":"C2067","v":{"$error":"#REF!"}}]
["Encargada de Nómina",null,null,null,null,null,null,null,null,null,null,null,{"$f":"P2068","v":{"$error":"#REF!"}}]
["AMSA ",null,null,null,null,null,null,null,null,null,null,null,"AMSA"]
[]
[]
[]
[]
[]
[]
[]
[]
["GOBIERNO DE LA REPÚBLICA DE GUATEMALA"]
["AUTORIDAD PARA EL MANEJO SUSTENTABLE DE LA CUENCA Y DEL LAGO DE AMATITLÁN"]
[]
[]
[{"$f":"A2064","v":"Boleta de Liquidación Mensual Renglón 031 \"Jornales\"   Correspondiente al mes de octubre 2015"}]
[{"$f":"A2065","v":{"$error":"#REF!"}}]
[]
["Empleado:",null,{"$f":"C2067","v":{"$error":"#REF!"}},null,null,null,null,null,null,null,"Certificación No.",null,null,{"$f":"N2067","v":31},null,"Fecha:",null,{"$f":"R2067","v":"2014-08-31"}]
["Contrato:",null,{"$f":"C2068","v":{"$error":"#REF!"}},null,null,"Puesto Funcional:",null,null,{"$f":"I2068","v":{"$error":"#REF!"}},null,null,null,"Titulo Jornal:",null,null,{"$f":"P2068","v":{"$error":"#REF!"}}]
["Cuenta / Banco:",null,null,{"$f":"D2069","v":{"$error":"#REF!"}},null,"Banco de Desarrollo Rural, S.A.",null,null,null,null,"Jornal Diario:",null,null,{"$f":"N2069","v":{"$error":"#REF!"}},null,"Días Trabajados:",null,null,{"$f":"S2069","v":{"$error":"#REF!"}}]
[]
[null,null,null,null,null,null,null,null,null,null,null,null,"Ingresos",null,null,null,"Deducciones "]
[]
[null,"031","DEVENGADO",null,null,null,null,null,null,null,null,null,{"$f":"M2073","v":{"$error":"#REF!"}}]
[null,"033","BONO ACUERDO GUBERNATIVO 66-2000",null,null,null,null,null,null,null,null,null,{"$f":"M2074","v":{"$error":"#REF!"}}]
[null,"201","I.G.S.S",null,null,null,null,null,null,null,null,null,null,null,null,null,{"$f":"Q2075","v":{"$error":"#REF!"}}]
[null,"118","MONTEPÍO",null,null,null,null,null,null,null,null,null,null,null,null,null,{"$f":"Q2076","v":0}]
[null,"211","RETENCIONES JUDICIALES",null,null,null,null,null,null,null,null,null,null,null,null,null,{"$f":"Q2077","v":{"$error":"#REF!"}}]
[null,null,null,null,null,null,null,null,null,null,"Total  :",null,{"$f":"SUM(M2112:O2116)","v":{"$error":"#REF!"}},null,null,null,{"$f":"SUM(Q2114:S2116)","v":{"$error":"#REF!"}}]
[null,null,null,null,null,null,null,null,null,null,"Liquido :",null,{"$f":"M2117-Q2117","v":{"$error":"#REF!"}}]
[]
[]
[]
[]
[]
[]
[]
[]
[{"$f":"A2088","v":"María José Ceballos López"},null,null,null,null,null,null,null,null,null,null,null,{"$f":"C2106","v":{"$error":"#REF!"}}]
[{"$f":"A2089","v":"Encargada de Nómina"},null,null,null,null,null,null,null,null,null,null,null,{"$f":"P2107","v":{"$error":"#REF!"}}]
[{"$f":"A2090","v":"AMSA "},null,null,null,null,null,null,null,null,null,null,null,"AMSA"]
[]
["GOBIERNO DE LA REPÚBLICA DE GUATEMALA"]
["AUTORIDAD PARA EL MANEJO SUSTENTABLE DE LA CUENCA Y DEL LAGO DE AMATITLÁN"]
[]
[]
[{"$f":"A2064","v":"Boleta de Liquidación Mensual Renglón 031 \"Jornales\"   Correspondiente al mes de octubre 2015"}]
[{"$f":"A2065","v":{"$error":"#REF!"}}]
[]
["Empleado:",null,{"$f":"#REF!","v":{"$error":"#REF!"}},null,null,null,null,null,null,null,"Certificación No.",null,null,{"$f":"N2067+1","v":32},null,"Fecha:",null,{"$f":"R1144","v":"2014-08-31"}]
["Contrato:",null,{"$f":"#REF!","v":{"$error":"#REF!"}},null,null,"Puesto Funcional:",null,null,{"$f":"#REF!","v":{"$error":"#REF!"}},null,null,null,"Titulo Jornal:",null,null,{"$f":"#REF!","v":{"$error":"#REF!"}}]
["Cuenta / Banco:",null,null,{"$f":"#REF!","v":{"$error":"#REF!"}},null,"Banco de Desarrollo Rural, S.A.",null,null,null,null,"Jornal Diario:",null,null,{"$f":"#REF!","v":{"$error":"#REF!"}},null,"Días Trabajados:",null,null,{"$f":"#REF!","v":{"$error":"#REF!"}}]
[]
[null,null,null,null,null,null,null,null,null,null,null,null,"Ingresos",null,null,null,"Deducciones "]
[]
[null,"031","DEVENGADO",null,null,null,null,null,null,null,null,null,{"$f":"#REF!","v":{"$error":"#REF!"}}]
[null,"033","BONO ACUERDO GUBERNATIVO 66-2000",null,null,null,null,null,null,null,null,null,{"$f":"#REF!","v":{"$error":"#REF!"}}]
[null,"201","I.G.S.S",null,null,null,null,null,null,null,null,null,null,null,null,null,{"$f":"#REF!","v":{"$error":"#REF!"}}]
[null,"118","MONTEPÍO",null,null,null,null,null,null,null,null,null,null,null,null,null,0]
[null,"211","RETENCIONES JUDICIALES",null,null,null,null,null,null,null,null,null,null,null,null,null,{"$f":"#REF!","v":{"$error":"#REF!"}}]
[null,null,null,null,null,null,null,null,null,null,"Total  :",null,{"$f":"SUM(M2144:O2148)","v":{"$error":"#REF!"}},null,null,null,{"$f":"SUM(Q2146:S2148)","v":{"$error":"#REF!"}}]
[null,null,null,null,null,null,null,null,null,null,"Liquido :",null,{"$f":"M2149-Q2149","v":{"$error":"#REF!"}}]
[]
[]
[]
[]
[]
[]
[]
[]
["María José Ceballos López",null,null,null,null,null,null,null,null,null,null,null,{"$f":"C2138","v":{"$error":"#REF!"}}]
["Encargada de Nómina",null,null,null,null,null,null,null,null,null,null,null,{"$f":"P2139","v":{"$error":"#REF!"}}]
["AMSA ",null,null,null,null,null,null,null,null,null,null,null,"AMSA"]
[]
[]
[]
[]
[]
[]
[]
[]
["GOBIERNO DE LA REPÚBLICA DE GUATEMALA"]
["AUTORIDAD PARA EL MANEJO SUSTENTABLE DE LA CUENCA Y DEL LAGO DE AMATITLÁN"]
[]
[]
[{"$f":"A2135","v":"Boleta de Liquidación Mensual Renglón 031 \"Jornales\"   Correspondiente al mes de octubre 2015"}]
[{"$f":"A2136","v":{"$error":"#REF!"}}]
[]
["Empleado:",null,{"$f":"C2138","v":{"$error":"#REF!"}},null,null,null,null,null,null,null,"Certificación No.",null,null,{"$f":"N2138","v":32},null,"Fecha:",null,{"$f":"R2138","v":"2014-08-31"}]
["Contrato:",null,{"$f":"C2139","v":{"$error":"#REF!"}},null,null,"Puesto Funcional:",null,null,{"$f":"I2139","v":{"$error":"#REF!"}},null,null,null,"Titulo Jornal:",null,null,{"$f":"P2139","v":{"$error":"#REF!"}}]
["Cuenta / Banco:",null,null,{"$f":"D2140","v":{"$error":"#REF!"}},null,"Banco de Desarrollo Rural, S.A.",null,null,null,null,"Jornal Diario:",null,null,{"$f":"N2140","v":{"$error":"#REF!"}},null,"Días Trabajados:",null,null,{"$f":"S2140","v":{"$error":"#REF!"}}]
[]
[null,null,null,null,null,null,null,null,null,null,null,null,"Ingresos",null,null,null,"Deducciones "]
[]
[null,"031","DEVENGADO",null,null,null,null,null,null,null,null,null,{"$f":"M2144","v":{"$error":"#REF!"}}]
[null,"033","BONO ACUERDO GUBERNATIVO 66-2000",null,null,null,null,null,null,null,null,null,{"$f":"M2145","v":{"$error":"#REF!"}}]
[null,"201","I.G.S.S",null,null,null,null,null,null,null,null,null,null,null,null,null,{"$f":"Q2146","v":{"$error":"#REF!"}}]
[null,"118","MONTEPÍO",null,null,null,null,null,null,null,null,null,null,null,null,null,{"$f":"Q2147","v":0}]
[null,"211","RETENCIONES JUDICIALES",null,null,null,null,null,null,null,null,null,null,null,null,null,{"$f":"Q2148","v":{"$error":"#REF!"}}]
[null,null,null,null,null,null,null,null,null,null,"Total  :",null,{"$f":"SUM(M2183:O2187)","v":{"$error":"#REF!"}},null,null,null,{"$f":"SUM(Q2185:S2187)","v":{"$error":"#REF!"}}]
[null,null,null,null,null,null,null,null,null,null,"Liquido :",null,{"$f":"M2188-Q2188","v":{"$error":"#REF!"}}]
[]
[]
[]
[]
[]
[]
[]
[]
[{"$f":"A2159","v":"María José Ceballos López"},null,null,null,null,null,null,null,null,null,null,null,{"$f":"C2177","v":{"$error":"#REF!"}}]
[{"$f":"A2160","v":"Encargada de Nómina"},null,null,null,null,null,null,null,null,null,null,null,{"$f":"P2178","v":{"$error":"#REF!"}}]
[{"$f":"A2161","v":"AMSA "},null,null,null,null,null,null,null,null,null,null,null,"AMSA"]
[]
["GOBIERNO DE LA REPÚBLICA DE GUATEMALA"]
["AUTORIDAD PARA EL MANEJO SUSTENTABLE DE LA CUENCA Y DEL LAGO DE AMATITLÁN"]
[]
[]
[{"$f":"A2135","v":"Boleta de Liquidación Mensual Renglón 031 \"Jornales\"   Correspondiente al mes de octubre 2015"}]
[{"$f":"A2136","v":{"$error":"#REF!"}}]
[]
["Empleado:",null,{"$f":"#REF!","v":{"$error":"#REF!"}},null,null,null,null,null,null,null,"Certificación No.",null,null,{"$f":"N2138+1","v":33},null,"Fecha:",null,{"$f":"R1215","v":"2014-08-31"}]
["Contrato:",null,{"$f":"#REF!","v":{"$error":"#REF!"}},null,null,"Puesto Funcional:",null,null,{"$f":"#REF!","v":{"$error":"#REF!"}},null,null,null,"Titulo Jornal:",null,null,{"$f":"#REF!","v":{"$error":"#REF!"}}]
["Cuenta / Banco:",null,null,{"$f":"#REF!","v":{"$error":"#REF!"}},null,"Banco de Desarrollo Rural, S.A.",null,null,null,null,"Jornal Diario:",null,null,{"$f":"#REF!","v":{"$error":"#REF!"}},null,"Días Trabajados:",null,null,{"$f":"#REF!","v":{"$error":"#REF!"}}]
[]
[null,null,null,null,null,null,null,null,null,null,null,null,"Ingresos",null,null,null,"Deducciones "]
[]
[null,"031","DEVENGADO",null,null,null,null,null,null,null,null,null,{"$f":"#REF!","v":{"$error":"#REF!"}}]
[null,"033","BONO ACUERDO GUBERNATIVO 66-2000",null,null,null,null,null,null,null,null,null,{"$f":"#REF!","v":{"$error":"#REF!"}}]
[null,"201","I.G.S.S",null,null,null,null,null,null,null,null,null,null,null,null,null,{"$f":"#REF!","v":{"$error":"#REF!"}}]
[null,"118","MONTEPÍO",null,null,null,null,null,null,null,null,null,null,null,null,null,0]
[null,"211","RETENCIONES JUDICIALES",null,null,null,null,null,null,null,null,null,null,null,null,null,{"$f":"#REF!","v":{"$error":"#REF!"}}]
[null,null,null,null,null,null,null,null,null,null,"Total  :",null,{"$f":"SUM(M2215:O2219)","v":{"$error":"#REF!"}},null,null,null,{"$f":"SUM(Q2217:S2219)","v":{"$error":"#REF!"}}]
[null,null,null,null,null,null,null,null,null,null,"Liquido :",null,{"$f":"M2220-Q2220","v":{"$error":"#REF!"}}]
[]
[]
[]
[]
[]
[]
[]
[]
["María José Ceballos López",null,null,null,null,null,null,null,null,null,null,null,{"$f":"C2209","v":{"$error":"#REF!"}}]
["Encargada de Nómina",null,null,null,null,null,null,null,null,null,null,null,{"$f":"P2210","v":{"$error":"#REF!"}}]
["AMSA ",null,null,null,null,null,null,null,null,null,null,null,"AMSA"]
[]
[]
[]
[]
[]
[]
[]
[]
["GOBIERNO DE LA REPÚBLICA DE GUATEMALA"]
["AUTORIDAD PARA EL MANEJO SUSTENTABLE DE LA CUENCA Y DEL LAGO DE AMATITLÁN"]
[]
[]
[{"$f":"A2206","v":"Boleta de Liquidación Mensual Renglón 031 \"Jornales\"   Correspondiente al mes de octubre 2015"}]
[{"$f":"A2207","v":{"$error":"#REF!"}}]
[]
["Empleado:",null,{"$f":"C2209","v":{"$error":"#REF!"}},null,null,null,null,null,null,null,"Certificación No.",null,null,{"$f":"N2209","v":33},null,"Fecha:",null,{"$f":"R2209","v":"2014-08-31"}]
["Contrato:",null,{"$f":"C2210","v":{"$error":"#REF!"}},null,null,"Puesto Funcional:",null,null,{"$f":"I2210","v":{"$error":"#REF!"}},null,null,null,"Titulo Jornal:",null,null,{"$f":"P2210","v":{"$error":"#REF!"}}]
["Cuenta / Banco:",null,null,{"$f":"D2211","v":{"$error":"#REF!"}},null,"Banco de Desarrollo Rural, S.A.",null,null,null,null,"Jornal Diario:",null,null,{"$f":"N2211","v":{"$error":"#REF!"}},null,"Días Trabajados:",null,null,{"$f":"S2211","v":{"$error":"#REF!"}}]
[]
[null,null,null,null,null,null,null,null,null,null,null,null,"Ingresos",null,null,null,"Deducciones "]
[]
[null,"031","DEVENGADO",null,null,null,null,null,null,null,null,null,{"$f":"M2215","v":{"$error":"#REF!"}}]
[null,"033","BONO ACUERDO GUBERNATIVO 66-2000",null,null,null,null,null,null,null,null,null,{"$f":"M2216","v":{"$error":"#REF!"}}]
[null,"201","I.G.S.S",null,null,null,null,null,null,null,null,null,null,null,null,null,{"$f":"Q2217","v":{"$error":"#REF!"}}]
[null,"118","MONTEPÍO",null,null,null,null,null,null,null,null,null,null,null,null,null,{"$f":"Q2218","v":0}]
[null,"211","RETENCIONES JUDICIALES",null,null,null,null,null,null,null,null,null,null,null,null,null,{"$f":"Q2219","v":{"$error":"#REF!"}}]
[null,null,null,null,null,null,null,null,null,null,"Total  :",null,{"$f":"SUM(M2254:O2258)","v":{"$error":"#REF!"}},null,null,null,{"$f":"SUM(Q2256:S2258)","v":{"$error":"#REF!"}}]
[null,null,null,null,null,null,null,null,null,null,"Liquido :",null,{"$f":"M2259-Q2259","v":{"$error":"#REF!"}}]
[]
[]
[]
[]
[]
[]
[]
[]
[{"$f":"A2230","v":"María José Ceballos López"},null,null,null,null,null,null,null,null,null,null,null,{"$f":"C2248","v":{"$error":"#REF!"}}]
[{"$f":"A2231","v":"Encargada de Nómina"},null,null,null,null,null,null,null,null,null,null,null,{"$f":"P2249","v":{"$error":"#REF!"}}]
[{"$f":"A2232","v":"AMSA "},null,null,null,null,null,null,null,null,null,null,null,"AMSA"]
[]
["GOBIERNO DE LA REPÚBLICA DE GUATEMALA"]
["AUTORIDAD PARA EL MANEJO SUSTENTABLE DE LA CUENCA Y DEL LAGO DE AMATITLÁN"]
[]
[]
[{"$f":"A2206","v":"Boleta de Liquidación Mensual Renglón 031 \"Jornales\"   Correspondiente al mes de octubre 2015"}]
[{"$f":"A2207","v":{"$error":"#REF!"}}]
[]
["Empleado:",null,{"$f":"#REF!","v":{"$error":"#REF!"}},null,null,null,null,null,null,null,"Certificación No.",null,null,{"$f":"N2209+1","v":34},null,"Fecha:",null,{"$f":"R1286","v":"2014-09-30"}]
["Contrato:",null,{"$f":"#REF!","v":{"$error":"#REF!"}},null,null,"Puesto Funcional:",null,null,{"$f":"#REF!","v":{"$error":"#REF!"}},null,null,null,"Titulo Jornal:",null,null,{"$f":"#REF!","v":{"$error":"#REF!"}}]
["Cuenta / Banco:",null,null,{"$f":"#REF!","v":{"$error":"#REF!"}},null,"Banco de Desarrollo Rural, S.A.",null,null,null,null,"Jornal Diario:",null,null,{"$f":"#REF!","v":{"$error":"#REF!"}},null,"Días Trabajados:",null,null,{"$f":"#REF!","v":{"$error":"#REF!"}}]
[]
[null,null,null,null,null,null,null,null,null,null,null,null,"Ingresos",null,null,null,"Deducciones "]
[]
[null,"031","DEVENGADO",null,null,null,null,null,null,null,null,null,{"$f":"#REF!","v":{"$error":"#REF!"}}]
[null,"033","BONO ACUERDO GUBERNATIVO 66-2000",null,null,null,null,null,null,null,null,null,{"$f":"#REF!","v":{"$error":"#REF!"}}]
[null,"201","I.G.S.S",null,null,null,null,null,null,null,null,null,null,null,null,null,{"$f":"#REF!","v":{"$error":"#REF!"}}]
[null,"118","MONTEPÍO",null,null,null,null,null,null,null,null,null,null,null,null,null,0]
[null,"211","RETENCIONES JUDICIALES",null,null,null,null,null,null,null,null,null,null,null,null,null,{"$f":"#REF!","v":{"$error":"#REF!"}}]
[null,null,null,null,null,null,null,null,null,null,"Total  :",null,{"$f":"SUM(M2286:O2290)","v":{"$error":"#REF!"}},null,null,null,{"$f":"SUM(Q2288:S2290)","v":{"$error":"#REF!"}}]
[null,null,null,null,null,null,null,null,null,null,"Liquido :",null,{"$f":"M2291-Q2291","v":{"$error":"#REF!"}}]
[]
[]
[]
[]
[]
[]
[]
[]
["María José Ceballos López",null,null,null,null,null,null,null,null,null,null,null,{"$f":"C2280","v":{"$error":"#REF!"}}]
["Encargada de Nómina",null,null,null,null,null,null,null,null,null,null,null,{"$f":"P2281","v":{"$error":"#REF!"}}]
["AMSA ",null,null,null,null,null,null,null,null,null,null,null,"AMSA"]
[]
[]
[]
[]
[]
[]
[]
[]
["GOBIERNO DE LA REPÚBLICA DE GUATEMALA"]
["AUTORIDAD PARA EL MANEJO SUSTENTABLE DE LA CUENCA Y DEL LAGO DE AMATITLÁN"]
[]
[]
[{"$f":"A2277","v":"Boleta de Liquidación Mensual Renglón 031 \"Jornales\"   Correspondiente al mes de octubre 2015"}]
[{"$f":"A2278","v":{"$error":"#REF!"}}]
[]
["Empleado:",null,{"$f":"C2280","v":{"$error":"#REF!"}},null,null,null,null,null,null,null,"Certificación No.",null,null,{"$f":"N2280","v":34},null,"Fecha:",null,{"$f":"R2280","v":"2014-09-30"}]
["Contrato:",null,{"$f":"C2281","v":{"$error":"#REF!"}},null,null,"Puesto Funcional:",null,null,{"$f":"I2281","v":{"$error":"#REF!"}},null,null,null,"Titulo Jornal:",null,null,{"$f":"P2281","v":{"$error":"#REF!"}}]
["Cuenta / Banco:",null,null,{"$f":"D2282","v":{"$error":"#REF!"}},null,"Banco de Desarrollo Rural, S.A.",null,null,null,null,"Jornal Diario:",null,null,{"$f":"N2282","v":{"$error":"#REF!"}},null,"Días Trabajados:",null,null,{"$f":"S2282","v":{"$error":"#REF!"}}]
[]
[null,null,null,null,null,null,null,null,null,null,null,null,"Ingresos",null,null,null,"Deducciones "]
[]
[null,"031","DEVENGADO",null,null,null,null,null,null,null,null,null,{"$f":"M2286","v":{"$error":"#REF!"}}]
[null,"033","BONO ACUERDO GUBERNATIVO 66-2000",null,null,null,null,null,null,null,null,null,{"$f":"M2287","v":{"$error":"#REF!"}}]
[null,"201","I.G.S.S",null,null,null,null,null,null,null,null,null,null,null,null,null,{"$f":"Q2288","v":{"$error":"#REF!"}}]
[null,"118","MONTEPÍO",null,null,null,null,null,null,null,null,null,null,null,null,null,{"$f":"Q2289","v":0}]
[null,"211","RETENCIONES JUDICIALES",null,null,null,null,null,null,null,null,null,null,null,null,null,{"$f":"Q2290","v":{"$error":"#REF!"}}]
[null,null,null,null,null,null,null,null,null,null,"Total  :",null,{"$f":"SUM(M2325:O2329)","v":{"$error":"#REF!"}},null,null,null,{"$f":"SUM(Q2327:S2329)","v":{"$error":"#REF!"}}]
[null,null,null,null,null,null,null,null,null,null,"Liquido :",null,{"$f":"M2330-Q2330","v":{"$error":"#REF!"}}]
[]
[]
[]
[]
[]
[]
[]
[]
[{"$f":"A2301","v":"María José Ceballos López"},null,null,null,null,null,null,null,null,null,null,null,{"$f":"C2319","v":{"$error":"#REF!"}}]
[{"$f":"A2302","v":"Encargada de Nómina"},null,null,null,null,null,null,null,null,null,null,null,{"$f":"P2320","v":{"$error":"#REF!"}}]
[{"$f":"A2303","v":"AMSA "},null,null,null,null,null,null,null,null,null,null,null,"AMSA"]
[]
["GOBIERNO DE LA REPÚBLICA DE GUATEMALA"]
["AUTORIDAD PARA EL MANEJO SUSTENTABLE DE LA CUENCA Y DEL LAGO DE AMATITLÁN"]
[]
[]
[{"$f":"A2277","v":"Boleta de Liquidación Mensual Renglón 031 \"Jornales\"   Correspondiente al mes de octubre 2015"}]
[{"$f":"A2278","v":{"$error":"#REF!"}}]
[]
["Empleado:",null,{"$f":"#REF!","v":{"$error":"#REF!"}},null,null,null,null,null,null,null,"Certificación No.",null,null,{"$f":"N2280+1","v":35},null,"Fecha:",null,{"$f":"R1357","v":"2014-08-31"}]
["Contrato:",null,{"$f":"#REF!","v":{"$error":"#REF!"}},null,null,"Puesto Funcional:",null,null,{"$f":"#REF!","v":{"$error":"#REF!"}},null,null,null,"Titulo Jornal:",null,null,{"$f":"#REF!","v":{"$error":"#REF!"}}]
["Cuenta / Banco:",null,null,{"$f":"#REF!","v":{"$error":"#REF!"}},null,"Banco de Desarrollo Rural, S.A.",null,null,null,null,"Jornal Diario:",null,null,{"$f":"#REF!","v":{"$error":"#REF!"}},null,"Días Trabajados:",null,null,{"$f":"#REF!","v":{"$error":"#REF!"}}]
[]
[null,null,null,null,null,null,null,null,null,null,null,null,"Ingresos",null,null,null,"Deducciones "]
[]
[null,"031","DEVENGADO",null,null,null,null,null,null,null,null,null,{"$f":"#REF!","v":{"$error":"#REF!"}}]
[null,"033","BONO ACUERDO GUBERNATIVO 66-2000",null,null,null,null,null,null,null,null,null,{"$f":"#REF!","v":{"$error":"#REF!"}}]
[null,"201","I.G.S.S",null,null,null,null,null,null,null,null,null,null,null,null,null,{"$f":"#REF!","v":{"$error":"#REF!"}}]
[null,"118","MONTEPÍO",null,null,null,null,null,null,null,null,null,null,null,null,null,0]
[null,"211","RETENCIONES JUDICIALES",null,null,null,null,null,null,null,null,null,null,null,null,null,{"$f":"#REF!","v":{"$error":"#REF!"}}]
[null,null,null,null,null,null,null,null,null,null,"Total  :",null,{"$f":"SUM(M2357:O2361)","v":{"$error":"#REF!"}},null,null,null,{"$f":"SUM(Q2359:S2361)","v":{"$error":"#REF!"}}]
[null,null,null,null,null,null,null,null,null,null,"Liquido :",null,{"$f":"M2362-Q2362","v":{"$error":"#REF!"}}]
[]
[]
[]
[]
[]
[]
[]
[]
["María José Ceballos López",null,null,null,null,null,null,null,null,null,null,null,{"$f":"C2351","v":{"$error":"#REF!"}}]
["Encargada de Nómina",null,null,null,null,null,null,null,null,null,null,null,{"$f":"P2352","v":{"$error":"#REF!"}}]
["AMSA ",null,null,null,null,null,null,null,null,null,null,null,"AMSA"]
[]
[]
[]
[]
[]
[]
[]
[]
["GOBIERNO DE LA REPÚBLICA DE GUATEMALA"]
["AUTORIDAD PARA EL MANEJO SUSTENTABLE DE LA CUENCA Y DEL LAGO DE AMATITLÁN"]
[]
[]
[{"$f":"A2348","v":"Boleta de Liquidación Mensual Renglón 031 \"Jornales\"   Correspondiente al mes de octubre 2015"}]
[{"$f":"A2349","v":{"$error":"#REF!"}}]
[]
["Empleado:",null,{"$f":"C2351","v":{"$error":"#REF!"}},null,null,null,null,null,null,null,"Certificación No.",null,null,{"$f":"N2351","v":35},null,"Fecha:",null,{"$f":"R2351","v":"2014-08-31"}]
["Contrato:",null,{"$f":"C2352","v":{"$error":"#REF!"}},null,null,"Puesto Funcional:",null,null,{"$f":"I2352","v":{"$error":"#REF!"}},null,null,null,"Titulo Jornal:",null,null,{"$f":"P2352","v":{"$error":"#REF!"}}]
["Cuenta / Banco:",null,null,{"$f":"D2353","v":{"$error":"#REF!"}},null,"Banco de Desarrollo Rural, S.A.",null,null,null,null,"Jornal Diario:",null,null,{"$f":"N2353","v":{"$error":"#REF!"}},null,"Días Trabajados:",null,null,{"$f":"S2353","v":{"$error":"#REF!"}}]
[]
[null,null,null,null,null,null,null,null,null,null,null,null,"Ingresos",null,null,null,"Deducciones "]
[]
[null,"031","DEVENGADO",null,null,null,null,null,null,null,null,null,{"$f":"M2357","v":{"$error":"#REF!"}}]
[null,"033","BONO ACUERDO GUBERNATIVO 66-2000",null,null,null,null,null,null,null,null,null,{"$f":"M2358","v":{"$error":"#REF!"}}]
[null,"201","I.G.S.S",null,null,null,null,null,null,null,null,null,null,null,null,null,{"$f":"Q2359","v":{"$error":"#REF!"}}]
[null,"118","MONTEPÍO",null,null,null,null,null,null,null,null,null,null,null,null,null,{"$f":"Q2360","v":0}]
[null,"211","RETENCIONES JUDICIALES",null,null,null,null,null,null,null,null,null,null,null,null,null,{"$f":"Q2361","v":{"$error":"#REF!"}}]
[null,null,null,null,null,null,null,null,null,null,"Total  :",null,{"$f":"SUM(M2396:O2400)","v":{"$error":"#REF!"}},null,null,null,{"$f":"SUM(Q2398:S2400)","v":{"$error":"#REF!"}}]
[null,null,null,null,null,null,null,null,null,null,"Liquido :",null,{"$f":"M2401-Q2401","v":{"$error":"#REF!"}}]
[]
[]
[]
[]
[]
[]
[]
[]
[{"$f":"A2372","v":"María José Ceballos López"},null,null,null,null,null,null,null,null,null,null,null,{"$f":"C2390","v":{"$error":"#REF!"}}]
[{"$f":"A2373","v":"Encargada de Nómina"},null,null,null,null,null,null,null,null,null,null,null,{"$f":"P2391","v":{"$error":"#REF!"}}]
[{"$f":"A2374","v":"AMSA "},null,null,null,null,null,null,null,null,null,null,null,"AMSA"]
[]
["GOBIERNO DE LA REPÚBLICA DE GUATEMALA"]
["AUTORIDAD PARA EL MANEJO SUSTENTABLE DE LA CUENCA Y DEL LAGO DE AMATITLÁN"]
[]
[]
[{"$f":"A2348","v":"Boleta de Liquidación Mensual Renglón 031 \"Jornales\"   Correspondiente al mes de octubre 2015"}]
[{"$f":"A2349","v":{"$error":"#REF!"}}]
[]
["Empleado:",null,{"$f":"#REF!","v":{"$error":"#REF!"}},null,null,null,null,null,null,null,"Certificación No.",null,null,{"$f":"N2351+1","v":36},null,"Fecha:",null,{"$f":"R1428","v":"2015-08-31"}]
["Contrato:",null,{"$f":"#REF!","v":{"$error":"#REF!"}},null,null,"Puesto Funcional:",null,null,{"$f":"#REF!","v":{"$error":"#REF!"}},null,null,null,"Titulo Jornal:",null,null,{"$f":"#REF!","v":{"$error":"#REF!"}}]
["Cuenta / Banco:",null,null,{"$f":"#REF!","v":{"$error":"#REF!"}},null,"Banco de Desarrollo Rural, S.A.",null,null,null,null,"Jornal Diario:",null,null,{"$f":"#REF!","v":{"$error":"#REF!"}},null,"Días Trabajados:",null,null,{"$f":"#REF!","v":{"$error":"#REF!"}}]
[]
[null,null,null,null,null,null,null,null,null,null,null,null,"Ingresos",null,null,null,"Deducciones "]
[]
[null,"031","DEVENGADO",null,null,null,null,null,null,null,null,null,{"$f":"#REF!","v":{"$error":"#REF!"}}]
[null,"033","BONO ACUERDO GUBERNATIVO 66-2000",null,null,null,null,null,null,null,null,null,{"$f":"#REF!","v":{"$error":"#REF!"}}]
[null,"201","I.G.S.S",null,null,null,null,null,null,null,null,null,null,null,null,null,{"$f":"#REF!","v":{"$error":"#REF!"}}]
[null,"118","MONTEPÍO",null,null,null,null,null,null,null,null,null,null,null,null,null,0]
[null,"211","RETENCIONES JUDICIALES",null,null,null,null,null,null,null,null,null,null,null,null,null,{"$f":"#REF!","v":{"$error":"#REF!"}}]
[null,null,null,null,null,null,null,null,null,null,"Total  :",null,{"$f":"SUM(M2428:O2432)","v":{"$error":"#REF!"}},null,null,null,{"$f":"SUM(Q2430:S2432)","v":{"$error":"#REF!"}}]
[null,null,null,null,null,null,null,null,null,null,"Liquido :",null,{"$f":"M2433-Q2433","v":{"$error":"#REF!"}}]
[]
[]
[]
[]
[]
[]
[]
[]
["María José Ceballos López",null,null,null,null,null,null,null,null,null,null,null,{"$f":"C2422","v":{"$error":"#REF!"}}]
["Encargada de Nómina",null,null,null,null,null,null,null,null,null,null,null,{"$f":"P2423","v":{"$error":"#REF!"}}]
["AMSA ",null,null,null,null,null,null,null,null,null,null,null,"AMSA"]
[]
[]
[]
[]
[]
[]
[]
[]
["GOBIERNO DE LA REPÚBLICA DE GUATEMALA"]
["AUTORIDAD PARA EL MANEJO SUSTENTABLE DE LA CUENCA Y DEL LAGO DE AMATITLÁN"]
[]
[]
[{"$f":"A2419","v":"Boleta de Liquidación Mensual Renglón 031 \"Jornales\"   Correspondiente al mes de octubre 2015"}]
[{"$f":"A2420","v":{"$error":"#REF!"}}]
[]
["Empleado:",null,{"$f":"C2422","v":{"$error":"#REF!"}},null,null,null,null,null,null,null,"Certificación No.",null,null,{"$f":"N2422","v":36},null,"Fecha:",null,{"$f":"R2422","v":"2015-08-31"}]
["Contrato:",null,{"$f":"C2423","v":{"$error":"#REF!"}},null,null,"Puesto Funcional:",null,null,{"$f":"I2423","v":{"$error":"#REF!"}},null,null,null,"Titulo Jornal:",null,null,{"$f":"P2423","v":{"$error":"#REF!"}}]
["Cuenta / Banco:",null,null,{"$f":"D2424","v":{"$error":"#REF!"}},null,"Banco de Desarrollo Rural, S.A.",null,null,null,null,"Jornal Diario:",null,null,{"$f":"N2424","v":{"$error":"#REF!"}},null,"Días Trabajados:",null,null,{"$f":"S2424","v":{"$error":"#REF!"}}]
[]
[null,null,null,null,null,null,null,null,null,null,null,null,"Ingresos",null,null,null,"Deducciones "]
[]
[null,"031","DEVENGADO",null,null,null,null,null,null,null,null,null,{"$f":"M2428","v":{"$error":"#REF!"}}]
[null,"033","BONO ACUERDO GUBERNATIVO 66-2000",null,null,null,null,null,null,null,null,null,{"$f":"M2429","v":{"$error":"#REF!"}}]
[null,"201","I.G.S.S",null,null,null,null,null,null,null,null,null,null,null,null,null,{"$f":"Q2430","v":{"$error":"#REF!"}}]
[null,"118","MONTEPÍO",null,null,null,null,null,null,null,null,null,null,null,null,null,{"$f":"Q2431","v":0}]
[null,"211","RETENCIONES JUDICIALES",null,null,null,null,null,null,null,null,null,null,null,null,null,{"$f":"Q2432","v":{"$error":"#REF!"}}]
[null,null,null,null,null,null,null,null,null,null,"Total  :",null,{"$f":"SUM(M2467:O2471)","v":{"$error":"#REF!"}},null,null,null,{"$f":"SUM(Q2469:S2471)","v":{"$error":"#REF!"}}]
[null,null,null,null,null,null,null,null,null,null,"Liquido :",null,{"$f":"M2472-Q2472","v":{"$error":"#REF!"}}]
[]
[]
[]
[]
[]
[]
[]
[]
[{"$f":"A2443","v":"María José Ceballos López"},null,null,null,null,null,null,null,null,null,null,null,{"$f":"C2461","v":{"$error":"#REF!"}}]
[{"$f":"A2444","v":"Encargada de Nómina"},null,null,null,null,null,null,null,null,null,null,null,{"$f":"P2462","v":{"$error":"#REF!"}}]
[{"$f":"A2445","v":"AMSA "},null,null,null,null,null,null,null,null,null,null,null,"AMSA"]
[]
["GOBIERNO DE LA REPÚBLICA DE GUATEMALA"]
["AUTORIDAD PARA EL MANEJO SUSTENTABLE DE LA CUENCA Y DEL LAGO DE AMATITLÁN"]
[]
[]
[{"$f":"A2419","v":"Boleta de Liquidación Mensual Renglón 031 \"Jornales\"   Correspondiente al mes de octubre 2015"}]
[{"$f":"A2420","v":{"$error":"#REF!"}}]
[]
["Empleado:",null,{"$f":"#REF!","v":{"$error":"#REF!"}},null,null,null,null,null,null,null,"Certificación No.",null,null,{"$f":"N2422+1","v":37},null,"Fecha:",null,{"$f":"R1499","v":"2014-08-31"}]
["Contrato:",null,{"$f":"#REF!","v":{"$error":"#REF!"}},null,null,"Puesto Funcional:",null,null,{"$f":"#REF!","v":{"$error":"#REF!"}},null,null,null,"Titulo Jornal:",null,null,{"$f":"#REF!","v":{"$error":"#REF!"}}]
["Cuenta / Banco:",null,null,{"$f":"#REF!","v":{"$error":"#REF!"}},null,"Banco de Desarrollo Rural, S.A.",null,null,null,null,"Jornal Diario:",null,null,{"$f":"#REF!","v":{"$error":"#REF!"}},null,"Días Trabajados:",null,null,{"$f":"#REF!","v":{"$error":"#REF!"}}]
[]
[null,null,null,null,null,null,null,null,null,null,null,null,"Ingresos",null,null,null,"Deducciones "]
[]
[null,"031","DEVENGADO",null,null,null,null,null,null,null,null,null,{"$f":"#REF!","v":{"$error":"#REF!"}}]
[null,"033","BONO ACUERDO GUBERNATIVO 66-2000",null,null,null,null,null,null,null,null,null,{"$f":"#REF!","v":{"$error":"#REF!"}}]
[null,"201","I.G.S.S",null,null,null,null,null,null,null,null,null,null,null,null,null,{"$f":"#REF!","v":{"$error":"#REF!"}}]
[null,"118","MONTEPÍO",null,null,null,null,null,null,null,null,null,null,null,null,null,0]
[null,"211","RETENCIONES JUDICIALES",null,null,null,null,null,null,null,null,null,null,null,null,null,{"$f":"#REF!","v":{"$error":"#REF!"}}]
[null,null,null,null,null,null,null,null,null,null,"Total  :",null,{"$f":"SUM(M2499:O2503)","v":{"$error":"#REF!"}},null,null,null,{"$f":"SUM(Q2501:S2503)","v":{"$error":"#REF!"}}]
[null,null,null,null,null,null,null,null,null,null,"Liquido :",null,{"$f":"M2504-Q2504","v":{"$error":"#REF!"}}]
[]
[]
[]
[]
[]
[]
[]
[]
["María José Ceballos López",null,null,null,null,null,null,null,null,null,null,null,{"$f":"C2493","v":{"$error":"#REF!"}}]
["Encargada de Nómina",null,null,null,null,null,null,null,null,null,null,null,{"$f":"P2494","v":{"$error":"#REF!"}}]
["AMSA ",null,null,null,null,null,null,null,null,null,null,null,"AMSA"]
[]
[]
[]
[]
[]
[]
[]
[]
["GOBIERNO DE LA REPÚBLICA DE GUATEMALA"]
["AUTORIDAD PARA EL MANEJO SUSTENTABLE DE LA CUENCA Y DEL LAGO DE AMATITLÁN"]
[]
[]
[{"$f":"A2490","v":"Boleta de Liquidación Mensual Renglón 031 \"Jornales\"   Correspondiente al mes de octubre 2015"}]
[{"$f":"A2491","v":{"$error":"#REF!"}}]
[]
["Empleado:",null,{"$f":"C2493","v":{"$error":"#REF!"}},null,null,null,null,null,null,null,"Certificación No.",null,null,{"$f":"N2493","v":37},null,"Fecha:",null,{"$f":"R2493","v":"2014-08-31"}]
["Contrato:",null,{"$f":"C2494","v":{"$error":"#REF!"}},null,null,"Puesto Funcional:",null,null,{"$f":"I2494","v":{"$error":"#REF!"}},null,null,null,"Titulo Jornal:",null,null,{"$f":"P2494","v":{"$error":"#REF!"}}]
["Cuenta / Banco:",null,null,{"$f":"D2495","v":{"$error":"#REF!"}},null,"Banco de Desarrollo Rural, S.A.",null,null,null,null,"Jornal Diario:",null,null,{"$f":"N2495","v":{"$error":"#REF!"}},null,"Días Trabajados:",null,null,{"$f":"S2495","v":{"$error":"#REF!"}}]
[]
[null,null,null,null,null,null,null,null,null,null,null,null,"Ingresos",null,null,null,"Deducciones "]
[]
[null,"031","DEVENGADO",null,null,null,null,null,null,null,null,null,{"$f":"M2499","v":{"$error":"#REF!"}}]
[null,"033","BONO ACUERDO GUBERNATIVO 66-2000",null,null,null,null,null,null,null,null,null,{"$f":"M2500","v":{"$error":"#REF!"}}]
[null,"201","I.G.S.S",null,null,null,null,null,null,null,null,null,null,null,null,null,{"$f":"Q2501","v":{"$error":"#REF!"}}]
[null,"118","MONTEPÍO",null,null,null,null,null,null,null,null,null,null,null,null,null,{"$f":"Q2502","v":0}]
[null,"211","RETENCIONES JUDICIALES",null,null,null,null,null,null,null,null,null,null,null,null,null,{"$f":"Q2503","v":{"$error":"#REF!"}}]
[null,null,null,null,null,null,null,null,null,null,"Total  :",null,{"$f":"SUM(M2538:O2542)","v":{"$error":"#REF!"}},null,null,null,{"$f":"SUM(Q2540:S2542)","v":{"$error":"#REF!"}}]
[null,null,null,null,null,null,null,null,null,null,"Liquido :",null,{"$f":"M2543-Q2543","v":{"$error":"#REF!"}}]
[]
[]
[]
[]
[]
[]
[]
[]
[{"$f":"A2514","v":"María José Ceballos López"},null,null,null,null,null,null,null,null,null,null,null,{"$f":"C2532","v":{"$error":"#REF!"}}]
[{"$f":"A2515","v":"Encargada de Nómina"},null,null,null,null,null,null,null,null,null,null,null,{"$f":"P2533","v":{"$error":"#REF!"}}]
[{"$f":"A2516","v":"AMSA "},null,null,null,null,null,null,null,null,null,null,null,"AMSA"]
[]
["GOBIERNO DE LA REPÚBLICA DE GUATEMALA"]
["AUTORIDAD PARA EL MANEJO SUSTENTABLE DE LA CUENCA Y DEL LAGO DE AMATITLÁN"]
[]
[]
[{"$f":"A2490","v":"Boleta de Liquidación Mensual Renglón 031 \"Jornales\"   Correspondiente al mes de octubre 2015"}]
[{"$f":"A2491","v":{"$error":"#REF!"}}]
[]
["Empleado:",null,{"$f":"#REF!","v":{"$error":"#REF!"}},null,null,null,null,null,null,null,"Certificación No.",null,null,{"$f":"N2493+1","v":38},null,"Fecha:",null,{"$f":"R1570","v":"2014-08-31"}]
["Contrato:",null,{"$f":"#REF!","v":{"$error":"#REF!"}},null,null,"Puesto Funcional:",null,null,{"$f":"#REF!","v":{"$error":"#REF!"}},null,null,null,"Titulo Jornal:",null,null,{"$f":"#REF!","v":{"$error":"#REF!"}}]
["Cuenta / Banco:",null,null,{"$f":"#REF!","v":{"$error":"#REF!"}},null,"Banco de Desarrollo Rural, S.A.",null,null,null,null,"Jornal Diario:",null,null,{"$f":"#REF!","v":{"$error":"#REF!"}},null,"Días Trabajados:",null,null,{"$f":"#REF!","v":{"$error":"#REF!"}}]
[]
[null,null,null,null,null,null,null,null,null,null,null,null,"Ingresos",null,null,null,"Deducciones "]
[]
[null,"031","DEVENGADO",null,null,null,null,null,null,null,null,null,{"$f":"#REF!","v":{"$error":"#REF!"}}]
[null,"033","BONO ACUERDO GUBERNATIVO 66-2000",null,null,null,null,null,null,null,null,null,{"$f":"#REF!","v":{"$error":"#REF!"}}]
[null,"201","I.G.S.S",null,null,null,null,null,null,null,null,null,null,null,null,null,{"$f":"#REF!","v":{"$error":"#REF!"}}]
[null,"118","MONTEPÍO",null,null,null,null,null,null,null,null,null,null,null,null,null,0]
[null,"211","RETENCIONES JUDICIALES",null,null,null,null,null,null,null,null,null,null,null,null,null,{"$f":"#REF!","v":{"$error":"#REF!"}}]
[null,null,null,null,null,null,null,null,null,null,"Total  :",null,{"$f":"SUM(M2570:O2574)","v":{"$error":"#REF!"}},null,null,null,{"$f":"SUM(Q2572:S2574)","v":{"$error":"#REF!"}}]
[null,null,null,null,null,null,null,null,null,null,"Liquido :",null,{"$f":"M2575-Q2575","v":{"$error":"#REF!"}}]
[]
[]
[]
[]
[]
[]
[]
[]
["María José Ceballos López",null,null,null,null,null,null,null,null,null,null,null,{"$f":"C2564","v":{"$error":"#REF!"}}]
["Encargada de Nómina",null,null,null,null,null,null,null,null,null,null,null,{"$f":"P2565","v":{"$error":"#REF!"}}]
["AMSA ",null,null,null,null,null,null,null,null,null,null,null,"AMSA"]
[]
[]
[]
[]
[]
[]
[]
[]
["GOBIERNO DE LA REPÚBLICA DE GUATEMALA"]
["AUTORIDAD PARA EL MANEJO SUSTENTABLE DE LA CUENCA Y DEL LAGO DE AMATITLÁN"]
[]
[]
[{"$f":"A2561","v":"Boleta de Liquidación Mensual Renglón 031 \"Jornales\"   Correspondiente al mes de octubre 2015"}]
[{"$f":"A2562","v":{"$error":"#REF!"}}]
[]
["Empleado:",null,{"$f":"C2564","v":{"$error":"#REF!"}},null,null,null,null,null,null,null,"Certificación No.",null,null,{"$f":"N2564","v":38},null,"Fecha:",null,{"$f":"R2564","v":"2014-08-31"}]
["Contrato:",null,{"$f":"C2565","v":{"$error":"#REF!"}},null,null,"Puesto Funcional:",null,null,{"$f":"I2565","v":{"$error":"#REF!"}},null,null,null,"Titulo Jornal:",null,null,{"$f":"P2565","v":{"$error":"#REF!"}}]
["Cuenta / Banco:",null,null,{"$f":"D2566","v":{"$error":"#REF!"}},null,"Banco de Desarrollo Rural, S.A.",null,null,null,null,"Jornal Diario:",null,null,{"$f":"N2566","v":{"$error":"#REF!"}},null,"Días Trabajados:",null,null,{"$f":"S2566","v":{"$error":"#REF!"}}]
[]
[null,null,null,null,null,null,null,null,null,null,null,null,"Ingresos",null,null,null,"Deducciones "]
[]
[null,"031","DEVENGADO",null,null,null,null,null,null,null,null,null,{"$f":"M2570","v":{"$error":"#REF!"}}]
[null,"033","BONO ACUERDO GUBERNATIVO 66-2000",null,null,null,null,null,null,null,null,null,{"$f":"M2571","v":{"$error":"#REF!"}}]
[null,"201","I.G.S.S",null,null,null,null,null,null,null,null,null,null,null,null,null,{"$f":"Q2572","v":{"$error":"#REF!"}}]
[null,"118","MONTEPÍO",null,null,null,null,null,null,null,null,null,null,null,null,null,{"$f":"Q2573","v":0}]
[null,"211","RETENCIONES JUDICIALES",null,null,null,null,null,null,null,null,null,null,null,null,null,{"$f":"Q2574","v":{"$error":"#REF!"}}]
[null,null,null,null,null,null,null,null,null,null,"Total  :",null,{"$f":"SUM(M2609:O2613)","v":{"$error":"#REF!"}},null,null,null,{"$f":"SUM(Q2611:S2613)","v":{"$error":"#REF!"}}]
[null,null,null,null,null,null,null,null,null,null,"Liquido :",null,{"$f":"M2614-Q2614","v":{"$error":"#REF!"}}]
[]
[]
[]
[]
[]
[]
[]
[]
[{"$f":"A2585","v":"María José Ceballos López"},null,null,null,null,null,null,null,null,null,null,null,{"$f":"C2603","v":{"$error":"#REF!"}}]
[{"$f":"A2586","v":"Encargada de Nómina"},null,null,null,null,null,null,null,null,null,null,null,{"$f":"P2604","v":{"$error":"#REF!"}}]
[{"$f":"A2587","v":"AMSA "},null,null,null,null,null,null,null,null,null,null,null,"AMSA"]
[]
["GOBIERNO DE LA REPÚBLICA DE GUATEMALA"]
["AUTORIDAD PARA EL MANEJO SUSTENTABLE DE LA CUENCA Y DEL LAGO DE AMATITLÁN"]
[]
[]
[{"$f":"A2561","v":"Boleta de Liquidación Mensual Renglón 031 \"Jornales\"   Correspondiente al mes de octubre 2015"}]
[{"$f":"A2562","v":{"$error":"#REF!"}}]
[]
["Empleado:",null,{"$f":"#REF!","v":{"$error":"#REF!"}},null,null,null,null,null,null,null,"Certificación No.",null,null,{"$f":"N2564+1","v":39},null,"Fecha:",null,{"$f":"R1641","v":"2014-08-31"}]
["Contrato:",null,{"$f":"#REF!","v":{"$error":"#REF!"}},null,null,"Puesto Funcional:",null,null,"Peón de Campo",null,null,null,"Titulo Jornal:",null,null,{"$f":"#REF!","v":{"$error":"#REF!"}}]
["Cuenta / Banco:",null,null,{"$f":"#REF!","v":{"$error":"#REF!"}},null,"Banco de Desarrollo Rural, S.A.",null,null,null,null,"Jornal Diario:",null,null,{"$f":"#REF!","v":{"$error":"#REF!"}},null,"Días Trabajados:",null,null,{"$f":"#REF!","v":{"$error":"#REF!"}}]
[]
[null,null,null,null,null,null,null,null,null,null,null,null,"Ingresos",null,null,null,"Deducciones "]
[]
[null,"031","DEVENGADO",null,null,null,null,null,null,null,null,null,{"$f":"#REF!","v":{"$error":"#REF!"}}]
[null,"033","BONO ACUERDO GUBERNATIVO 66-2000",null,null,null,null,null,null,null,null,null,{"$f":"#REF!","v":{"$error":"#REF!"}}]
[null,"201","I.G.S.S",null,null,null,null,null,null,null,null,null,null,null,null,null,{"$f":"#REF!","v":{"$error":"#REF!"}}]
[null,"118","MONTEPÍO",null,null,null,null,null,null,null,null,null,null,null,null,null,0]
[null,"211","RETENCIONES JUDICIALES",null,null,null,null,null,null,null,null,null,null,null,null,null,{"$f":"#REF!","v":{"$error":"#REF!"}}]
[null,null,null,null,null,null,null,null,null,null,"Total  :",null,{"$f":"SUM(M2641:O2645)","v":{"$error":"#REF!"}},null,null,null,{"$f":"SUM(Q2643:S2645)","v":{"$error":"#REF!"}}]
[null,null,null,null,null,null,null,null,null,null,"Liquido :",null,{"$f":"M2646-Q2646","v":{"$error":"#REF!"}}]
[]
[]
[]
[]
[]
[]
[]
[]
["María José Ceballos López",null,null,null,null,null,null,null,null,null,null,null,{"$f":"C2635","v":{"$error":"#REF!"}}]
["Encargada de Nómina",null,null,null,null,null,null,null,null,null,null,null,{"$f":"P2636","v":{"$error":"#REF!"}}]
["AMSA ",null,null,null,null,null,null,null,null,null,null,null,"AMSA"]
[]
[]
[]
[]
[]
[]
[]
[]
["GOBIERNO DE LA REPÚBLICA DE GUATEMALA"]
["AUTORIDAD PARA EL MANEJO SUSTENTABLE DE LA CUENCA Y DEL LAGO DE AMATITLÁN"]
[]
[]
[{"$f":"A2632","v":"Boleta de Liquidación Mensual Renglón 031 \"Jornales\"   Correspondiente al mes de octubre 2015"}]
[{"$f":"A2633","v":{"$error":"#REF!"}}]
[]
["Empleado:",null,{"$f":"C2635","v":{"$error":"#REF!"}},null,null,null,null,null,null,null,"Certificación No.",null,null,{"$f":"N2635","v":39},null,"Fecha:",null,{"$f":"R2635","v":"2014-08-31"}]
["Contrato:",null,{"$f":"C2636","v":{"$error":"#REF!"}},null,null,"Puesto Funcional:",null,null,{"$f":"I2636","v":"Peón de Campo"},null,null,null,"Titulo Jornal:",null,null,{"$f":"P2636","v":{"$error":"#REF!"}}]
["Cuenta / Banco:",null,null,{"$f":"D2637","v":{"$error":"#REF!"}},null,"Banco de Desarrollo Rural, S.A.",null,null,null,null,"Jornal Diario:",null,null,{"$f":"N2637","v":{"$error":"#REF!"}},null,"Días Trabajados:",null,null,{"$f":"S2637","v":{"$error":"#REF!"}}]
[]
[null,null,null,null,null,null,null,null,null,null,null,null,"Ingresos",null,null,null,"Deducciones "]
[]
[null,"031","DEVENGADO",null,null,null,null,null,null,null,null,null,{"$f":"M2641","v":{"$error":"#REF!"}}]
[null,"033","BONO ACUERDO GUBERNATIVO 66-2000",null,null,null,null,null,null,null,null,null,{"$f":"M2642","v":{"$error":"#REF!"}}]
[null,"201","I.G.S.S",null,null,null,null,null,null,null,null,null,null,null,null,null,{"$f":"Q2643","v":{"$error":"#REF!"}}]
[null,"118","MONTEPÍO",null,null,null,null,null,null,null,null,null,null,null,null,null,{"$f":"Q2644","v":0}]
[null,"211","RETENCIONES JUDICIALES",null,null,null,null,null,null,null,null,null,null,null,null,null,{"$f":"Q2645","v":{"$error":"#REF!"}}]
[null,null,null,null,null,null,null,null,null,null,"Total  :",null,{"$f":"SUM(M2680:O2684)","v":{"$error":"#REF!"}},null,null,null,{"$f":"SUM(Q2682:S2684)","v":{"$error":"#REF!"}}]
[null,null,null,null,null,null,null,null,null,null,"Liquido :",null,{"$f":"M2685-Q2685","v":{"$error":"#REF!"}}]
[]
[]
[]
[]
[]
[]
[]
[]
[{"$f":"A2656","v":"María José Ceballos López"},null,null,null,null,null,null,null,null,null,null,null,{"$f":"C2674","v":{"$error":"#REF!"}}]
[{"$f":"A2657","v":"Encargada de Nómina"},null,null,null,null,null,null,null,null,null,null,null,{"$f":"P2675","v":{"$error":"#REF!"}}]
[{"$f":"A2658","v":"AMSA "},null,null,null,null,null,null,null,null,null,null,null,"AMSA"]
[]
["GOBIERNO DE LA REPÚBLICA DE GUATEMALA"]
["AUTORIDAD PARA EL MANEJO SUSTENTABLE DE LA CUENCA Y DEL LAGO DE AMATITLÁN"]
[]
[]
[{"$f":"A2632","v":"Boleta de Liquidación Mensual Renglón 031 \"Jornales\"   Correspondiente al mes de octubre 2015"}]
[{"$f":"A2633","v":{"$error":"#REF!"}}]
[]
["Empleado:",null,{"$f":"#REF!","v":{"$error":"#REF!"}},null,null,null,null,null,null,null,"Certificación No.",null,null,{"$f":"N2635+1","v":40},null,"Fecha:",null,{"$f":"R1712","v":"2014-08-31"}]
["Contrato:",null,{"$f":"#REF!","v":{"$error":"#REF!"}},null,null,"Puesto Funcional:",null,null,{"$f":"#REF!","v":{"$error":"#REF!"}},null,null,null,"Titulo Jornal:",null,null,{"$f":"#REF!","v":{"$error":"#REF!"}}]
["Cuenta / Banco:",null,null,{"$f":"#REF!","v":{"$error":"#REF!"}},null,"Banco de Desarrollo Rural, S.A.",null,null,null,null,"Jornal Diario:",null,null,{"$f":"#REF!","v":{"$error":"#REF!"}},null,"Días Trabajados:",null,null,{"$f":"#REF!","v":{"$error":"#REF!"}}]
[]
[null,null,null,null,null,null,null,null,null,null,null,null,"Ingresos",null,null,null,"Deducciones "]
[]
[null,"031","DEVENGADO",null,null,null,null,null,null,null,null,null,{"$f":"#REF!","v":{"$error":"#REF!"}}]
[null,"033","BONO ACUERDO GUBERNATIVO 66-2000",null,null,null,null,null,null,null,null,null,{"$f":"#REF!","v":{"$error":"#REF!"}}]
[null,"201","I.G.S.S",null,null,null,null,null,null,null,null,null,null,null,null,null,{"$f":"#REF!","v":{"$error":"#REF!"}}]
[null,"120","DECRETO 81-70",null,null,null,null,null,null,null,null,null,null,null,null,null,0]
[null,"118","MONTEPÍO",null,null,null,null,null,null,null,null,null,null,null,null,null,0]
[null,"211","RETENCIONES JUDICIALES",null,null,null,null,null,null,null,null,null,null,null,null,null,{"$f":"#REF!","v":{"$error":"#REF!"}}]
[null,null,null,null,null,null,null,null,null,null,"Total  :",null,{"$f":"SUM(M2712:O2717)","v":{"$error":"#REF!"}},null,null,null,{"$f":"SUM(Q2714:S2717)","v":{"$error":"#REF!"}}]
[null,null,null,null,null,null,null,null,null,null,"Liquido :",null,{"$f":"M2718-Q2718","v":{"$error":"#REF!"}}]
[]
[]
[]
[]
[]
[]
[]
[]
["María José Ceballos López",null,null,null,null,null,null,null,null,null,null,null,{"$f":"C2706","v":{"$error":"#REF!"}}]
["Encargada de Nómina",null,null,null,null,null,null,null,null,null,null,null,{"$f":"P2707","v":{"$error":"#REF!"}}]
["AMSA ",null,null,null,null,null,null,null,null,null,null,null,"AMSA"]
[]
[]
[]
[]
[]
[]
[]
["GOBIERNO DE LA REPÚBLICA DE GUATEMALA"]
["AUTORIDAD PARA EL MANEJO SUSTENTABLE DE LA CUENCA Y DEL LAGO DE AMATITLÁN"]
[]
[]
[{"$f":"A2703","v":"Boleta de Liquidación Mensual Renglón 031 \"Jornales\"   Correspondiente al mes de octubre 2015"}]
[{"$f":"A2704","v":{"$error":"#REF!"}}]
[]
["Empleado:",null,{"$f":"C2706","v":{"$error":"#REF!"}},null,null,null,null,null,null,null,"Certificación No.",null,null,{"$f":"N2706","v":40},null,"Fecha:",null,{"$f":"R2706","v":"2014-08-31"}]
["Contrato:",null,{"$f":"C2707","v":{"$error":"#REF!"}},null,null,"Puesto Funcional:",null,null,{"$f":"I2707","v":{"$error":"#REF!"}},null,null,null,"Titulo Jornal:",null,null,{"$f":"P2707","v":{"$error":"#REF!"}}]
["Cuenta / Banco:",null,null,{"$f":"D2708","v":{"$error":"#REF!"}},null,"Banco de Desarrollo Rural, S.A.",null,null,null,null,"Jornal Diario:",null,null,{"$f":"N2708","v":{"$error":"#REF!"}},null,"Días Trabajados:",null,null,{"$f":"S2708","v":{"$error":"#REF!"}}]
[]
[null,null,null,null,null,null,null,null,null,null,null,null,"Ingresos",null,null,null,"Deducciones "]
[]
[null,"031","DEVENGADO",null,null,null,null,null,null,null,null,null,{"$f":"M2712","v":{"$error":"#REF!"}}]
[null,"033","BONO ACUERDO GUBERNATIVO 66-2000",null,null,null,null,null,null,null,null,null,{"$f":"M2713","v":{"$error":"#REF!"}}]
[null,"201","I.G.S.S",null,null,null,null,null,null,null,null,null,null,null,null,null,{"$f":"Q2714","v":{"$error":"#REF!"}}]
[null,"120","DECRETO 81-70",null,null,null,null,null,null,null,null,null,null,null,null,null,0]
[null,"118","MONTEPÍO",null,null,null,null,null,null,null,null,null,null,null,null,null,{"$f":"Q2716","v":0}]
[null,"211","RETENCIONES JUDICIALES",null,null,null,null,null,null,null,null,null,null,null,null,null,{"$f":"Q2717","v":{"$error":"#REF!"}}]
[null,null,null,null,null,null,null,null,null,null,"Total  :",null,{"$f":"SUM(M2751:O2756)","v":{"$error":"#REF!"}},null,null,null,{"$f":"SUM(Q2753:S2756)","v":{"$error":"#REF!"}}]
[null,null,null,null,null,null,null,null,null,null,"Liquido :",null,{"$f":"M2757-Q2757","v":{"$error":"#REF!"}}]
[]
[]
[]
[]
[]
[]
[]
[{"$f":"A2728","v":"María José Ceballos López"},null,null,null,null,null,null,null,null,null,null,null,{"$f":"C2745","v":{"$error":"#REF!"}}]
[{"$f":"A2729","v":"Encargada de Nómina"},null,null,null,null,null,null,null,null,null,null,null,{"$f":"P2746","v":{"$error":"#REF!"}}]
[{"$f":"A2730","v":"AMSA "},null,null,null,null,null,null,null,null,null,null,null,"AMSA"]
[]
["GOBIERNO DE LA REPÚBLICA DE GUATEMALA"]
["AUTORIDAD PARA EL MANEJO SUSTENTABLE DE LA CUENCA Y DEL LAGO DE AMATITLÁN"]
[]
[]
[{"$f":"A2703","v":"Boleta de Liquidación Mensual Renglón 031 \"Jornales\"   Correspondiente al mes de octubre 2015"}]
[{"$f":"A2704","v":{"$error":"#REF!"}}]
[]
["Empleado:",null,{"$f":"#REF!","v":{"$error":"#REF!"}},null,null,null,null,null,null,null,"Certificación No.",null,null,{"$f":"N2706+1","v":41},null,"Fecha:",null,{"$f":"R8","v":"2014-08-31"}]
["Contrato:",null,{"$f":"#REF!","v":{"$error":"#REF!"}},null,null,"Puesto Funcional:",null,null,{"$f":"#REF!","v":{"$error":"#REF!"}},null,null,null,"Titulo Jornal:",null,null,{"$f":"#REF!","v":{"$error":"#REF!"}}]
["Cuenta / Banco:",null,null,{"$f":"#REF!","v":{"$error":"#REF!"}},null,"Banco de Desarrollo Rural, S.A.",null,null,null,null,"Jornal Diario:",null,null,{"$f":"#REF!","v":{"$error":"#REF!"}},null,"Días Trabajados:",null,null,{"$f":"#REF!","v":{"$error":"#REF!"}}]
[]
[null,null,null,null,null,null,null,null,null,null,null,null,"Ingresos",null,null,null,"Deducciones "]
[]
[null,"031","DEVENGADO",null,null,null,null,null,null,null,null,null,{"$f":"#REF!","v":{"$error":"#REF!"}}]
[null,"033","BONO ACUERDO GUBERNATIVO 66-2000",null,null,null,null,null,null,null,null,null,{"$f":"#REF!","v":{"$error":"#REF!"}}]
[null,"201","I.G.S.S",null,null,null,null,null,null,null,null,null,null,null,null,null,{"$f":"#REF!","v":{"$error":"#REF!"}}]
[null,"118","MONTEPÍO",null,null,null,null,null,null,null,null,null,null,null,null,null,0]
[null,"211","RETENCIONES JUDICIALES",null,null,null,null,null,null,null,null,null,null,null,null,null,{"$f":"#REF!","v":{"$error":"#REF!"}}]
[null,null,null,null,null,null,null,null,null,null,"Total  :",null,{"$f":"SUM(M2783:O2787)","v":{"$error":"#REF!"}},null,null,null,{"$f":"SUM(Q2785:S2787)","v":{"$error":"#REF!"}}]
[null,null,null,null,null,null,null,null,null,null,"Liquido :",null,{"$f":"M2788-Q2788","v":{"$error":"#REF!"}}]
[]
[]
[]
[]
[]
[]
[]
[]
["María José Ceballos López",null,null,null,null,null,null,null,null,null,null,null,{"$f":"C2777","v":{"$error":"#REF!"}}]
["Encargada de Nómina",null,null,null,null,null,null,null,null,null,null,null,{"$f":"P2778","v":{"$error":"#REF!"}}]
["AMSA ",null,null,null,null,null,null,null,null,null,null,null,"AMSA"]
[]
[]
[]
[]
[]
[]
[]
[]
["GOBIERNO DE LA REPÚBLICA DE GUATEMALA"]
["AUTORIDAD PARA EL MANEJO SUSTENTABLE DE LA CUENCA Y DEL LAGO DE AMATITLÁN"]
[]
[]
[{"$f":"A2774","v":"Boleta de Liquidación Mensual Renglón 031 \"Jornales\"   Correspondiente al mes de octubre 2015"}]
[{"$f":"A2775","v":{"$error":"#REF!"}}]
[]
["Empleado:",null,{"$f":"C2777","v":{"$error":"#REF!"}},null,null,null,null,null,null,null,"Certificación No.",null,null,{"$f":"N2777","v":41},null,"Fecha:",null,{"$f":"R2777","v":"2014-08-31"}]
["Contrato:",null,{"$f":"C2778","v":{"$error":"#REF!"}},null,null,"Puesto Funcional:",null,null,{"$f":"I2778","v":{"$error":"#REF!"}},null,null,null,"Titulo Jornal:",null,null,{"$f":"P2778","v":{"$error":"#REF!"}}]
["Cuenta / Banco:",null,null,{"$f":"D2779","v":{"$error":"#REF!"}},null,"Banco de Desarrollo Rural, S.A.",null,null,null,null,"Jornal Diario:",null,null,{"$f":"N2779","v":{"$error":"#REF!"}},null,"Días Trabajados:",null,null,{"$f":"S2779","v":{"$error":"#REF!"}}]
[]
[null,null,null,null,null,null,null,null,null,null,null,null,"Ingresos",null,null,null,"Deducciones "]
[]
[null,"031","DEVENGADO",null,null,null,null,null,null,null,null,null,{"$f":"M2783","v":{"$error":"#REF!"}}]
[null,"033","BONO ACUERDO GUBERNATIVO 66-2000",null,null,null,null,null,null,null,null,null,{"$f":"M2784","v":{"$error":"#REF!"}}]
[null,"201","I.G.S.S",null,null,null,null,null,null,null,null,null,null,null,null,null,{"$f":"Q2785","v":{"$error":"#REF!"}}]
[null,"118","MONTEPÍO",null,null,null,null,null,null,null,null,null,null,null,null,null,{"$f":"Q2786","v":0}]
[null,"211","RETENCIONES JUDICIALES",null,null,null,null,null,null,null,null,null,null,null,null,null,{"$f":"Q2787","v":{"$error":"#REF!"}}]
[null,null,null,null,null,null,null,null,null,null,"Total  :",null,{"$f":"SUM(M2822:O2826)","v":{"$error":"#REF!"}},null,null,null,{"$f":"SUM(Q2824:S2826)","v":{"$error":"#REF!"}}]
[null,null,null,null,null,null,null,null,null,null,"Liquido :",null,{"$f":"M2827-Q2827","v":{"$error":"#REF!"}}]
[]
[]
[]
[]
[]
[]
[]
[]
[{"$f":"A2798","v":"María José Ceballos López"},null,null,null,null,null,null,null,null,null,null,null,{"$f":"C2816","v":{"$error":"#REF!"}}]
[{"$f":"A2799","v":"Encargada de Nómina"},null,null,null,null,null,null,null,null,null,null,null,{"$f":"P2817","v":{"$error":"#REF!"}}]
[{"$f":"A2800","v":"AMSA "},null,null,null,null,null,null,null,null,null,null,null,"AMSA"]
[]
["GOBIERNO DE LA REPÚBLICA DE GUATEMALA"]
["AUTORIDAD PARA EL MANEJO SUSTENTABLE DE LA CUENCA Y DEL LAGO DE AMATITLÁN"]
[]
[]
[{"$f":"A2774","v":"Boleta de Liquidación Mensual Renglón 031 \"Jornales\"   Correspondiente al mes de octubre 2015"}]
[{"$f":"A2775","v":{"$error":"#REF!"}}]
[]
["Empleado:",null,{"$f":"#REF!","v":{"$error":"#REF!"}},null,null,null,null,null,null,null,"Certificación No.",null,null,{"$f":"N2777+1","v":42},null,"Fecha:",null,{"$f":"R1783","v":"2014-08-31"}]
["Contrato:",null,{"$f":"#REF!","v":{"$error":"#REF!"}},null,null,"Puesto Funcional:",null,null,{"$f":"#REF!","v":{"$error":"#REF!"}},null,null,null,"Titulo Jornal:",null,null,{"$f":"#REF!","v":{"$error":"#REF!"}}]
["Cuenta / Banco:",null,null,{"$f":"#REF!","v":{"$error":"#REF!"}},null,"Banco de Desarrollo Rural, S.A.",null,null,null,null,"Jornal Diario:",null,null,{"$f":"#REF!","v":{"$error":"#REF!"}},null,"Días Trabajados:",null,null,{"$f":"#REF!","v":{"$error":"#REF!"}}]
[]
[null,null,null,null,null,null,null,null,null,null,null,null,"Ingresos",null,null,null,"Deducciones "]
[]
[null,"031","DEVENGADO",null,null,null,null,null,null,null,null,null,{"$f":"#REF!","v":{"$error":"#REF!"}}]
[null,"033","BONO ACUERDO GUBERNATIVO 66-2000",null,null,null,null,null,null,null,null,null,{"$f":"#REF!","v":{"$error":"#REF!"}}]
[null,"201","I.G.S.S",null,null,null,null,null,null,null,null,null,null,null,null,null,{"$f":"#REF!","v":{"$error":"#REF!"}}]
[null,"118","MONTEPÍO",null,null,null,null,null,null,null,null,null,null,null,null,null,0]
[null,"211","RETENCIONES JUDICIALES",null,null,null,null,null,null,null,null,null,null,null,null,null,{"$f":"#REF!","v":{"$error":"#REF!"}}]
[null,null,null,null,null,null,null,null,null,null,"Total  :",null,{"$f":"SUM(M2854:O2858)","v":{"$error":"#REF!"}},null,null,null,{"$f":"SUM(Q2856:S2858)","v":{"$error":"#REF!"}}]
[null,null,null,null,null,null,null,null,null,null,"Liquido :",null,{"$f":"M2859-Q2859","v":{"$error":"#REF!"}}]
[]
[]
[]
[]
[]
[]
[]
[]
["María José Ceballos López",null,null,null,null,null,null,null,null,null,null,null,{"$f":"C2848","v":{"$error":"#REF!"}}]
["Encargada de Nómina",null,null,null,null,null,null,null,null,null,null,null,{"$f":"P2849","v":{"$error":"#REF!"}}]
["AMSA ",null,null,null,null,null,null,null,null,null,null,null,"AMSA"]
[]
[]
[]
[]
[]
[]
[]
[]
["GOBIERNO DE LA REPÚBLICA DE GUATEMALA"]
["AUTORIDAD PARA EL MANEJO SUSTENTABLE DE LA CUENCA Y DEL LAGO DE AMATITLÁN"]
[]
[]
[{"$f":"A2845","v":"Boleta de Liquidación Mensual Renglón 031 \"Jornales\"   Correspondiente al mes de octubre 2015"}]
[{"$f":"A2846","v":{"$error":"#REF!"}}]
[]
["Empleado:",null,{"$f":"C2848","v":{"$error":"#REF!"}},null,null,null,null,null,null,null,"Certificación No.",null,null,{"$f":"N2848","v":42},null,"Fecha:",null,{"$f":"R2848","v":"2014-08-31"}]
["Contrato:",null,{"$f":"C2849","v":{"$error":"#REF!"}},null,null,"Puesto Funcional:",null,null,{"$f":"I2849","v":{"$error":"#REF!"}},null,null,null,"Titulo Jornal:",null,null,{"$f":"P2849","v":{"$error":"#REF!"}}]
["Cuenta / Banco:",null,null,{"$f":"D2850","v":{"$error":"#REF!"}},null,"Banco de Desarrollo Rural, S.A.",null,null,null,null,"Jornal Diario:",null,null,{"$f":"N2850","v":{"$error":"#REF!"}},null,"Días Trabajados:",null,null,{"$f":"S2850","v":{"$error":"#REF!"}}]
[]
[null,null,null,null,null,null,null,null,null,null,null,null,"Ingresos",null,null,null,"Deducciones "]
[]
[null,"031","DEVENGADO",null,null,null,null,null,null,null,null,null,{"$f":"M2854","v":{"$error":"#REF!"}}]
[null,"033","BONO ACUERDO GUBERNATIVO 66-2000",null,null,null,null,null,null,null,null,null,{"$f":"M2855","v":{"$error":"#REF!"}}]
[null,"201","I.G.S.S",null,null,null,null,null,null,null,null,null,null,null,null,null,{"$f":"Q2856","v":{"$error":"#REF!"}}]
[null,"118","MONTEPÍO",null,null,null,null,null,null,null,null,null,null,null,null,null,{"$f":"Q2857","v":0}]
[null,"211","RETENCIONES JUDICIALES",null,null,null,null,null,null,null,null,null,null,null,null,null,{"$f":"Q2858","v":{"$error":"#REF!"}}]
[null,null,null,null,null,null,null,null,null,null,"Total  :",null,{"$f":"SUM(M2893:O2897)","v":{"$error":"#REF!"}},null,null,null,{"$f":"SUM(Q2895:S2897)","v":{"$error":"#REF!"}}]
[null,null,null,null,null,null,null,null,null,null,"Liquido :",null,{"$f":"M2898-Q2898","v":{"$error":"#REF!"}}]
[]
[]
[]
[]
[]
[]
[]
[]
[{"$f":"A2869","v":"María José Ceballos López"},null,null,null,null,null,null,null,null,null,null,null,{"$f":"C2887","v":{"$error":"#REF!"}}]
[{"$f":"A2870","v":"Encargada de Nómina"},null,null,null,null,null,null,null,null,null,null,null,{"$f":"P2888","v":{"$error":"#REF!"}}]
[{"$f":"A2871","v":"AMSA "},null,null,null,null,null,null,null,null,null,null,null,"AMSA"]
[]
["GOBIERNO DE LA REPÚBLICA DE GUATEMALA"]
["AUTORIDAD PARA EL MANEJO SUSTENTABLE DE LA CUENCA Y DEL LAGO DE AMATITLÁN"]
[]
[]
[{"$f":"A2845","v":"Boleta de Liquidación Mensual Renglón 031 \"Jornales\"   Correspondiente al mes de octubre 2015"}]
[{"$f":"A2846","v":{"$error":"#REF!"}}]
[]
["Empleado:",null,{"$f":"#REF!","v":{"$error":"#REF!"}},null,null,null,null,null,null,null,"Certificación No.",null,null,{"$f":"N2848+1","v":43},null,"Fecha:",null,{"$f":"R1854","v":"2014-08-31"}]
["Contrato:",null,{"$f":"#REF!","v":{"$error":"#REF!"}},null,null,"Puesto Funcional:",null,null,{"$f":"#REF!","v":{"$error":"#REF!"}},null,null,null,"Titulo Jornal:",null,null,{"$f":"#REF!","v":{"$error":"#REF!"}}]
["Cuenta / Banco:",null,null,{"$f":"#REF!","v":{"$error":"#REF!"}},null,"Banco de Desarrollo Rural, S.A.",null,null,null,null,"Jornal Diario:",null,null,{"$f":"#REF!","v":{"$error":"#REF!"}},null,"Días Trabajados:",null,null,{"$f":"#REF!","v":{"$error":"#REF!"}}]
[]
[null,null,null,null,null,null,null,null,null,null,null,null,"Ingresos",null,null,null,"Deducciones "]
[]
[null,"031","DEVENGADO",null,null,null,null,null,null,null,null,null,{"$f":"#REF!","v":{"$error":"#REF!"}}]
[null,"033","BONO ACUERDO GUBERNATIVO 66-2000",null,null,null,null,null,null,null,null,null,{"$f":"#REF!","v":{"$error":"#REF!"}}]
[null,"201","I.G.S.S",null,null,null,null,null,null,null,null,null,null,null,null,null,{"$f":"#REF!","v":{"$error":"#REF!"}}]
[null,"118","MONTEPÍO",null,null,null,null,null,null,null,null,null,null,null,null,null,0]
[null,"211","RETENCIONES JUDICIALES",null,null,null,null,null,null,null,null,null,null,null,null,null,{"$f":"#REF!","v":{"$error":"#REF!"}}]
[null,null,null,null,null,null,null,null,null,null,"Total  :",null,{"$f":"SUM(M2925:O2929)","v":{"$error":"#REF!"}},null,null,null,{"$f":"SUM(Q2927:S2929)","v":{"$error":"#REF!"}}]
[null,null,null,null,null,null,null,null,null,null,"Liquido :",null,{"$f":"M2930-Q2930","v":{"$error":"#REF!"}}]
[]
[]
[]
[]
[]
[]
[]
[]
["María José Ceballos López",null,null,null,null,null,null,null,null,null,null,null,{"$f":"C2919","v":{"$error":"#REF!"}}]
["Encargada de Nómina",null,null,null,null,null,null,null,null,null,null,null,{"$f":"P2920","v":{"$error":"#REF!"}}]
["AMSA ",null,null,null,null,null,null,null,null,null,null,null,"AMSA"]
[]
[]
[]
[]
[]
[]
[]
[]
["GOBIERNO DE LA REPÚBLICA DE GUATEMALA"]
["AUTORIDAD PARA EL MANEJO SUSTENTABLE DE LA CUENCA Y DEL LAGO DE AMATITLÁN"]
[]
[]
[{"$f":"A2916","v":"Boleta de Liquidación Mensual Renglón 031 \"Jornales\"   Correspondiente al mes de octubre 2015"}]
[{"$f":"A2917","v":{"$error":"#REF!"}}]
[]
["Empleado:",null,{"$f":"C2919","v":{"$error":"#REF!"}},null,null,null,null,null,null,null,"Certificación No.",null,null,{"$f":"N2919","v":43},null,"Fecha:",null,{"$f":"R2919","v":"2014-08-31"}]
["Contrato:",null,{"$f":"C2920","v":{"$error":"#REF!"}},null,null,"Puesto Funcional:",null,null,{"$f":"I2920","v":{"$error":"#REF!"}},null,null,null,"Titulo Jornal:",null,null,{"$f":"P2920","v":{"$error":"#REF!"}}]
["Cuenta / Banco:",null,null,{"$f":"D2921","v":{"$error":"#REF!"}},null,"Banco de Desarrollo Rural, S.A.",null,null,null,null,"Jornal Diario:",null,null,{"$f":"N2921","v":{"$error":"#REF!"}},null,"Días Trabajados:",null,null,{"$f":"S2921","v":{"$error":"#REF!"}}]
[]
[null,null,null,null,null,null,null,null,null,null,null,null,"Ingresos",null,null,null,"Deducciones "]
[]
[null,"031","DEVENGADO",null,null,null,null,null,null,null,null,null,{"$f":"M2925","v":{"$error":"#REF!"}}]
[null,"033","BONO ACUERDO GUBERNATIVO 66-2000",null,null,null,null,null,null,null,null,null,{"$f":"M2926","v":{"$error":"#REF!"}}]
[null,"201","I.G.S.S",null,null,null,null,null,null,null,null,null,null,null,null,null,{"$f":"Q2927","v":{"$error":"#REF!"}}]
[null,"118","MONTEPÍO",null,null,null,null,null,null,null,null,null,null,null,null,null,{"$f":"Q2928","v":0}]
[null,"211","RETENCIONES JUDICIALES",null,null,null,null,null,null,null,null,null,null,null,null,null,{"$f":"Q2929","v":{"$error":"#REF!"}}]
[null,null,null,null,null,null,null,null,null,null,"Total  :",null,{"$f":"SUM(M2964:O2968)","v":{"$error":"#REF!"}},null,null,null,{"$f":"SUM(Q2966:S2968)","v":{"$error":"#REF!"}}]
[null,null,null,null,null,null,null,null,null,null,"Liquido :",null,{"$f":"M2969-Q2969","v":{"$error":"#REF!"}}]
[]
[]
[]
[]
[]
[]
[]
[]
[{"$f":"A2940","v":"María José Ceballos López"},null,null,null,null,null,null,null,null,null,null,null,{"$f":"C2958","v":{"$error":"#REF!"}}]
[{"$f":"A2941","v":"Encargada de Nómina"},null,null,null,null,null,null,null,null,null,null,null,{"$f":"P2959","v":{"$error":"#REF!"}}]
[{"$f":"A2942","v":"AMSA "},null,null,null,null,null,null,null,null,null,null,null,"AMSA"]
[]
["GOBIERNO DE LA REPÚBLICA DE GUATEMALA"]
["AUTORIDAD PARA EL MANEJO SUSTENTABLE DE LA CUENCA Y DEL LAGO DE AMATITLÁN"]
[]
[]
[{"$f":"A2916","v":"Boleta de Liquidación Mensual Renglón 031 \"Jornales\"   Correspondiente al mes de octubre 2015"}]
[{"$f":"A2917","v":{"$error":"#REF!"}}]
[]
["Empleado:",null,{"$f":"#REF!","v":{"$error":"#REF!"}},null,null,null,null,null,null,null,"Certificación No.",null,null,{"$f":"N2919+1","v":44},null,"Fecha:",null,{"$f":"R1925","v":"2015-10-31"}]
["Contrato:",null,{"$f":"#REF!","v":{"$error":"#REF!"}},null,null,"Puesto Funcional:",null,null,{"$f":"#REF!","v":{"$error":"#REF!"}},null,null,null,"Titulo Jornal:",null,null,{"$f":"#REF!","v":{"$error":"#REF!"}}]
["Cuenta / Banco:",null,null,{"$f":"#REF!","v":{"$error":"#REF!"}},null,"Banco de Desarrollo Rural, S.A.",null,null,null,null,"Jornal Diario:",null,null,{"$f":"#REF!","v":{"$error":"#REF!"}},null,"Días Trabajados:",null,null,{"$f":"#REF!","v":{"$error":"#REF!"}}]
[]
[null,null,null,null,null,null,null,null,null,null,null,null,"Ingresos",null,null,null,"Deducciones "]
[]
[null,"031","DEVENGADO",null,null,null,null,null,null,null,null,null,{"$f":"#REF!","v":{"$error":"#REF!"}}]
[null,"033","BONO ACUERDO GUBERNATIVO 66-2000",null,null,null,null,null,null,null,null,null,{"$f":"#REF!","v":{"$error":"#REF!"}}]
[null,"201","I.G.S.S",null,null,null,null,null,null,null,null,null,null,null,null,null,{"$f":"#REF!","v":{"$error":"#REF!"}}]
[null,"118","MONTEPÍO",null,null,null,null,null,null,null,null,null,null,null,null,null,0]
[null,"211","RETENCIONES JUDICIALES",null,null,null,null,null,null,null,null,null,null,null,null,null,{"$f":"#REF!","v":{"$error":"#REF!"}}]
[null,null,null,null,null,null,null,null,null,null,"Total  :",null,{"$f":"SUM(M2996:O3000)","v":{"$error":"#REF!"}},null,null,null,{"$f":"SUM(Q2998:S3000)","v":{"$error":"#REF!"}}]
[null,null,null,null,null,null,null,null,null,null,"Liquido :",null,{"$f":"M3001-Q3001","v":{"$error":"#REF!"}}]
[]
[]
[]
[]
[]
[]
[]
[]
["María José Ceballos López",null,null,null,null,null,null,null,null,null,null,null,{"$f":"C2990","v":{"$error":"#REF!"}}]
["Encargada de Nómina",null,null,null,null,null,null,null,null,null,null,null,{"$f":"P2991","v":{"$error":"#REF!"}}]
["AMSA ",null,null,null,null,null,null,null,null,null,null,null,"AMSA"]
[]
[]
[]
[]
[]
[]
[]
[]
["GOBIERNO DE LA REPÚBLICA DE GUATEMALA"]
["AUTORIDAD PARA EL MANEJO SUSTENTABLE DE LA CUENCA Y DEL LAGO DE AMATITLÁN"]
[]
[]
[{"$f":"A2987","v":"Boleta de Liquidación Mensual Renglón 031 \"Jornales\"   Correspondiente al mes de octubre 2015"}]
[{"$f":"A2988","v":{"$error":"#REF!"}}]
[]
["Empleado:",null,{"$f":"C2990","v":{"$error":"#REF!"}},null,null,null,null,null,null,null,"Certificación No.",null,null,{"$f":"N2990","v":44},null,"Fecha:",null,{"$f":"R2990","v":"2015-10-31"}]
["Contrato:",null,{"$f":"C2991","v":{"$error":"#REF!"}},null,null,"Puesto Funcional:",null,null,{"$f":"I2991","v":{"$error":"#REF!"}},null,null,null,"Titulo Jornal:",null,null,{"$f":"P2991","v":{"$error":"#REF!"}}]
["Cuenta / Banco:",null,null,{"$f":"D2992","v":{"$error":"#REF!"}},null,"Banco de Desarrollo Rural, S.A.",null,null,null,null,"Jornal Diario:",null,null,{"$f":"N2992","v":{"$error":"#REF!"}},null,"Días Trabajados:",null,null,{"$f":"S2992","v":{"$error":"#REF!"}}]
[]
[null,null,null,null,null,null,null,null,null,null,null,null,"Ingresos",null,null,null,"Deducciones "]
[]
[null,"031","DEVENGADO",null,null,null,null,null,null,null,null,null,{"$f":"M2996","v":{"$error":"#REF!"}}]
[null,"033","BONO ACUERDO GUBERNATIVO 66-2000",null,null,null,null,null,null,null,null,null,{"$f":"M2997","v":{"$error":"#REF!"}}]
[null,"201","I.G.S.S",null,null,null,null,null,null,null,null,null,null,null,null,null,{"$f":"Q2998","v":{"$error":"#REF!"}}]
[null,"118","MONTEPÍO",null,null,null,null,null,null,null,null,null,null,null,null,null,{"$f":"Q2999","v":0}]
[null,"211","RETENCIONES JUDICIALES",null,null,null,null,null,null,null,null,null,null,null,null,null,{"$f":"Q3000","v":{"$error":"#REF!"}}]
[null,null,null,null,null,null,null,null,null,null,"Total  :",null,{"$f":"SUM(M3035:O3039)","v":{"$error":"#REF!"}},null,null,null,{"$f":"SUM(Q3037:S3039)","v":{"$error":"#REF!"}}]
[null,null,null,null,null,null,null,null,null,null,"Liquido :",null,{"$f":"M3040-Q3040","v":{"$error":"#REF!"}}]
[]
[]
[]
[]
[]
[]
[]
[]
[{"$f":"A3011","v":"María José Ceballos López"},null,null,null,null,null,null,null,null,null,null,null,{"$f":"C3029","v":{"$error":"#REF!"}}]
[{"$f":"A3012","v":"Encargada de Nómina"},null,null,null,null,null,null,null,null,null,null,null,{"$f":"P3030","v":{"$error":"#REF!"}}]
[{"$f":"A3013","v":"AMSA "},null,null,null,null,null,null,null,null,null,null,null,"AMSA"]
[]
["GOBIERNO DE LA REPÚBLICA DE GUATEMALA"]
["AUTORIDAD PARA EL MANEJO SUSTENTABLE DE LA CUENCA Y DEL LAGO DE AMATITLÁN"]
[]
[]
[{"$f":"A2987","v":"Boleta de Liquidación Mensual Renglón 031 \"Jornales\"   Correspondiente al mes de octubre 2015"}]
[{"$f":"A2988","v":{"$error":"#REF!"}}]
[]
["Empleado:",null,{"$f":"#REF!","v":{"$error":"#REF!"}},null,null,null,null,null,null,null,"Certificación No.",null,null,{"$f":"N2990+1","v":45},null,"Fecha:",null,{"$f":"R1996","v":"2014-08-31"}]
["Contrato:",null,{"$f":"#REF!","v":{"$error":"#REF!"}},null,null,"Puesto Funcional:",null,null,{"$f":"#REF!","v":{"$error":"#REF!"}},null,null,null,"Titulo Jornal:",null,null,{"$f":"#REF!","v":{"$error":"#REF!"}}]
["Cuenta / Banco:",null,null,{"$f":"#REF!","v":{"$error":"#REF!"}},null,"Banco de Desarrollo Rural, S.A.",null,null,null,null,"Jornal Diario:",null,null,{"$f":"#REF!","v":{"$error":"#REF!"}},null,"Días Trabajados:",null,null,{"$f":"#REF!","v":{"$error":"#REF!"}}]
[]
[null,null,null,null,null,null,null,null,null,null,null,null,"Ingresos",null,null,null,"Deducciones "]
[]
[null,"031","DEVENGADO",null,null,null,null,null,null,null,null,null,{"$f":"#REF!","v":{"$error":"#REF!"}}]
[null,"033","BONO ACUERDO GUBERNATIVO 66-2000",null,null,null,null,null,null,null,null,null,{"$f":"#REF!","v":{"$error":"#REF!"}}]
[null,"201","I.G.S.S",null,null,null,null,null,null,null,null,null,null,null,null,null,{"$f":"#REF!","v":{"$error":"#REF!"}}]
[null,"118","MONTEPÍO",null,null,null,null,null,null,null,null,null,null,null,null,null,0]
[null,"211","RETENCIONES JUDICIALES",null,null,null,null,null,null,null,null,null,null,null,null,null,{"$f":"#REF!","v":{"$error":"#REF!"}}]
[null,null,null,null,null,null,null,null,null,null,"Total  :",null,{"$f":"SUM(M3067:O3071)","v":{"$error":"#REF!"}},null,null,null,{"$f":"SUM(Q3069:S3071)","v":{"$error":"#REF!"}}]
[null,null,null,null,null,null,null,null,null,null,"Liquido :",null,{"$f":"M3072-Q3072","v":{"$error":"#REF!"}}]
[]
[]
[]
[]
[]
[]
[]
[]
["María José Ceballos López",null,null,null,null,null,null,null,null,null,null,null,{"$f":"C3061","v":{"$error":"#REF!"}}]
["Encargada de Nómina",null,null,null,null,null,null,null,null,null,null,null,{"$f":"P3062","v":{"$error":"#REF!"}}]
["AMSA ",null,null,null,null,null,null,null,null,null,null,null,"AMSA"]
[]
[]
[]
[]
[]
[]
[]
[]
["GOBIERNO DE LA REPÚBLICA DE GUATEMALA"]
["AUTORIDAD PARA EL MANEJO SUSTENTABLE DE LA CUENCA Y DEL LAGO DE AMATITLÁN"]
[]
[]
[{"$f":"A3058","v":"Boleta de Liquidación Mensual Renglón 031 \"Jornales\"   Correspondiente al mes de octubre 2015"}]
[{"$f":"A3059","v":{"$error":"#REF!"}}]
[]
["Empleado:",null,{"$f":"C3061","v":{"$error":"#REF!"}},null,null,null,null,null,null,null,"Certificación No.",null,null,{"$f":"N3061","v":45},null,"Fecha:",null,{"$f":"R3061","v":"2014-08-31"}]
["Contrato:",null,{"$f":"C3062","v":{"$error":"#REF!"}},null,null,"Puesto Funcional:",null,null,{"$f":"I3062","v":{"$error":"#REF!"}},null,null,null,"Titulo Jornal:",null,null,{"$f":"P3062","v":{"$error":"#REF!"}}]
["Cuenta / Banco:",null,null,{"$f":"D3063","v":{"$error":"#REF!"}},null,"Banco de Desarrollo Rural, S.A.",null,null,null,null,"Jornal Diario:",null,null,{"$f":"N3063","v":{"$error":"#REF!"}},null,"Días Trabajados:",null,null,{"$f":"S3063","v":{"$error":"#REF!"}}]
[]
[null,null,null,null,null,null,null,null,null,null,null,null,"Ingresos",null,null,null,"Deducciones "]
[]
[null,"031","DEVENGADO",null,null,null,null,null,null,null,null,null,{"$f":"M3067","v":{"$error":"#REF!"}}]
[null,"033","BONO ACUERDO GUBERNATIVO 66-2000",null,null,null,null,null,null,null,null,null,{"$f":"M3068","v":{"$error":"#REF!"}}]
[null,"201","I.G.S.S",null,null,null,null,null,null,null,null,null,null,null,null,null,{"$f":"Q3069","v":{"$error":"#REF!"}}]
[null,"118","MONTEPÍO",null,null,null,null,null,null,null,null,null,null,null,null,null,{"$f":"Q3070","v":0}]
[null,"211","RETENCIONES JUDICIALES",null,null,null,null,null,null,null,null,null,null,null,null,null,{"$f":"Q3071","v":{"$error":"#REF!"}}]
[null,null,null,null,null,null,null,null,null,null,"Total  :",null,{"$f":"SUM(M3106:O3110)","v":{"$error":"#REF!"}},null,null,null,{"$f":"SUM(Q3108:S3110)","v":{"$error":"#REF!"}}]
[null,null,null,null,null,null,null,null,null,null,"Liquido :",null,{"$f":"M3111-Q3111","v":{"$error":"#REF!"}}]
[]
[]
[]
[]
[]
[]
[]
[]
[{"$f":"A3082","v":"María José Ceballos López"},null,null,null,null,null,null,null,null,null,null,null,{"$f":"C3100","v":{"$error":"#REF!"}}]
[{"$f":"A3083","v":"Encargada de Nómina"},null,null,null,null,null,null,null,null,null,null,null,{"$f":"P3101","v":{"$error":"#REF!"}}]
[{"$f":"A3084","v":"AMSA "},null,null,null,null,null,null,null,null,null,null,null,"AMSA"]
[]
["GOBIERNO DE LA REPÚBLICA DE GUATEMALA"]
["AUTORIDAD PARA EL MANEJO SUSTENTABLE DE LA CUENCA Y DEL LAGO DE AMATITLÁN"]
[]
[]
[{"$f":"A3058","v":"Boleta de Liquidación Mensual Renglón 031 \"Jornales\"   Correspondiente al mes de octubre 2015"}]
[{"$f":"A3059","v":{"$error":"#REF!"}}]
[]
["Empleado:",null,{"$f":"#REF!","v":{"$error":"#REF!"}},null,null,null,null,null,null,null,"Certificación No.",null,null,{"$f":"N3061+1","v":46},null,"Fecha:",null,{"$f":"R2067","v":"2014-08-31"}]
["Contrato:",null,{"$f":"#REF!","v":{"$error":"#REF!"}},null,null,"Puesto Funcional:",null,null,{"$f":"#REF!","v":{"$error":"#REF!"}},null,null,null,"Titulo Jornal:",null,null,{"$f":"#REF!","v":{"$error":"#REF!"}}]
["Cuenta / Banco:",null,null,{"$f":"#REF!","v":{"$error":"#REF!"}},null,"Banco de Desarrollo Rural, S.A.",null,null,null,null,"Jornal Diario:",null,null,{"$f":"#REF!","v":{"$error":"#REF!"}},null,"Días Trabajados:",null,null,{"$f":"#REF!","v":{"$error":"#REF!"}}]
[]
[null,null,null,null,null,null,null,null,null,null,null,null,"Ingresos",null,null,null,"Deducciones "]
[]
[null,"031","DEVENGADO",null,null,null,null,null,null,null,null,null,{"$f":"#REF!","v":{"$error":"#REF!"}}]
[null,"033","BONO ACUERDO GUBERNATIVO 66-2000",null,null,null,null,null,null,null,null,null,{"$f":"#REF!","v":{"$error":"#REF!"}}]
[null,"201","I.G.S.S",null,null,null,null,null,null,null,null,null,null,null,null,null,{"$f":"#REF!","v":{"$error":"#REF!"}}]
[null,"118","MONTEPÍO",null,null,null,null,null,null,null,null,null,null,null,null,null,0]
[null,"211","RETENCIONES JUDICIALES",null,null,null,null,null,null,null,null,null,null,null,null,null,{"$f":"#REF!","v":{"$error":"#REF!"}}]
[null,null,null,null,null,null,null,null,null,null,"Total  :",null,{"$f":"SUM(M3138:O3142)","v":{"$error":"#REF!"}},null,null,null,{"$f":"SUM(Q3140:S3142)","v":{"$error":"#REF!"}}]
[null,null,null,null,null,null,null,null,null,null,"Liquido :",null,{"$f":"M3143-Q3143","v":{"$error":"#REF!"}}]
[]
[]
[]
[]
[]
[]
[]
[]
["María José Ceballos López",null,null,null,null,null,null,null,null,null,null,null,{"$f":"C3132","v":{"$error":"#REF!"}}]
["Encargada de Nómina",null,null,null,null,null,null,null,null,null,null,null,{"$f":"P3133","v":{"$error":"#REF!"}}]
["AMSA ",null,null,null,null,null,null,null,null,null,null,null,"AMSA"]
[]
[]
[]
[]
[]
[]
[]
[]
["GOBIERNO DE LA REPÚBLICA DE GUATEMALA"]
["AUTORIDAD PARA EL MANEJO SUSTENTABLE DE LA CUENCA Y DEL LAGO DE AMATITLÁN"]
[]
[]
[{"$f":"A3129","v":"Boleta de Liquidación Mensual Renglón 031 \"Jornales\"   Correspondiente al mes de octubre 2015"}]
[{"$f":"A3130","v":{"$error":"#REF!"}}]
[]
["Empleado:",null,{"$f":"C3132","v":{"$error":"#REF!"}},null,null,null,null,null,null,null,"Certificación No.",null,null,{"$f":"N3132","v":46},null,"Fecha:",null,{"$f":"R3132","v":"2014-08-31"}]
["Contrato:",null,{"$f":"C3133","v":{"$error":"#REF!"}},null,null,"Puesto Funcional:",null,null,{"$f":"I3133","v":{"$error":"#REF!"}},null,null,null,"Titulo Jornal:",null,null,{"$f":"P3133","v":{"$error":"#REF!"}}]
["Cuenta / Banco:",null,null,{"$f":"D3134","v":{"$error":"#REF!"}},null,"Banco de Desarrollo Rural, S.A.",null,null,null,null,"Jornal Diario:",null,null,{"$f":"N3134","v":{"$error":"#REF!"}},null,"Días Trabajados:",null,null,{"$f":"S3134","v":{"$error":"#REF!"}}]
[]
[null,null,null,null,null,null,null,null,null,null,null,null,"Ingresos",null,null,null,"Deducciones "]
[]
[null,"031","DEVENGADO",null,null,null,null,null,null,null,null,null,{"$f":"M3138","v":{"$error":"#REF!"}}]
[null,"033","BONO ACUERDO GUBERNATIVO 66-2000",null,null,null,null,null,null,null,null,null,{"$f":"M3139","v":{"$error":"#REF!"}}]
[null,"201","I.G.S.S",null,null,null,null,null,null,null,null,null,null,null,null,null,{"$f":"Q3140","v":{"$error":"#REF!"}}]
[null,"118","MONTEPÍO",null,null,null,null,null,null,null,null,null,null,null,null,null,{"$f":"Q3141","v":0}]
[null,"211","RETENCIONES JUDICIALES",null,null,null,null,null,null,null,null,null,null,null,null,null,{"$f":"Q3142","v":{"$error":"#REF!"}}]
[null,null,null,null,null,null,null,null,null,null,"Total  :",null,{"$f":"SUM(M3177:O3181)","v":{"$error":"#REF!"}},null,null,null,{"$f":"SUM(Q3179:S3181)","v":{"$error":"#REF!"}}]
[null,null,null,null,null,null,null,null,null,null,"Liquido :",null,{"$f":"M3182-Q3182","v":{"$error":"#REF!"}}]
[]
[]
[]
[]
[]
[]
[]
[]
[{"$f":"A3153","v":"María José Ceballos López"},null,null,null,null,null,null,null,null,null,null,null,{"$f":"C3171","v":{"$error":"#REF!"}}]
[{"$f":"A3154","v":"Encargada de Nómina"},null,null,null,null,null,null,null,null,null,null,null,{"$f":"P3172","v":{"$error":"#REF!"}}]
[{"$f":"A3155","v":"AMSA "},null,null,null,null,null,null,null,null,null,null,null,"AMSA"]
[]
["GOBIERNO DE LA REPÚBLICA DE GUATEMALA"]
["AUTORIDAD PARA EL MANEJO SUSTENTABLE DE LA CUENCA Y DEL LAGO DE AMATITLÁN"]
[]
[]
[{"$f":"A3129","v":"Boleta de Liquidación Mensual Renglón 031 \"Jornales\"   Correspondiente al mes de octubre 2015"}]
[{"$f":"A3130","v":{"$error":"#REF!"}}]
[]
["Empleado:",null,{"$f":"#REF!","v":{"$error":"#REF!"}},null,null,null,null,null,null,null,"Certificación No.",null,null,{"$f":"N3132+1","v":47},null,"Fecha:",null,{"$f":"R2138","v":"2014-08-31"}]
["Contrato:",null,{"$f":"#REF!","v":{"$error":"#REF!"}},null,null,"Puesto Funcional:",null,null,{"$f":"#REF!","v":{"$error":"#REF!"}},null,null,null,"Titulo Jornal:",null,null,{"$f":"#REF!","v":{"$error":"#REF!"}}]
["Cuenta / Banco:",null,null,{"$f":"#REF!","v":{"$error":"#REF!"}},null,"Banco de Desarrollo Rural, S.A.",null,null,null,null,"Jornal Diario:",null,null,{"$f":"#REF!","v":{"$error":"#REF!"}},null,"Días Trabajados:",null,null,{"$f":"#REF!","v":{"$error":"#REF!"}}]
[]
[null,null,null,null,null,null,null,null,null,null,null,null,"Ingresos",null,null,null,"Deducciones "]
[]
[null,"031","DEVENGADO",null,null,null,null,null,null,null,null,null,{"$f":"#REF!","v":{"$error":"#REF!"}}]
[null,"033","BONO ACUERDO GUBERNATIVO 66-2000",null,null,null,null,null,null,null,null,null,{"$f":"#REF!","v":{"$error":"#REF!"}}]
[null,"201","I.G.S.S",null,null,null,null,null,null,null,null,null,null,null,null,null,{"$f":"#REF!","v":{"$error":"#REF!"}}]
[null,"118","MONTEPÍO",null,null,null,null,null,null,null,null,null,null,null,null,null,0]
[null,"211","RETENCIONES JUDICIALES",null,null,null,null,null,null,null,null,null,null,null,null,null,{"$f":"#REF!","v":{"$error":"#REF!"}}]
[null,null,null,null,null,null,null,null,null,null,"Total  :",null,{"$f":"SUM(M3209:O3213)","v":{"$error":"#REF!"}},null,null,null,{"$f":"SUM(Q3211:S3213)","v":{"$error":"#REF!"}}]
[null,null,null,null,null,null,null,null,null,null,"Liquido :",null,{"$f":"M3214-Q3214","v":{"$error":"#REF!"}}]
[]
[]
[]
[]
[]
[]
[]
[]
["María José Ceballos López",null,null,null,null,null,null,null,null,null,null,null,{"$f":"C3203","v":{"$error":"#REF!"}}]
["Encargada de Nómina",null,null,null,null,null,null,null,null,null,null,null,{"$f":"P3204","v":{"$error":"#REF!"}}]
["AMSA ",null,null,null,null,null,null,null,null,null,null,null,"AMSA"]
[]
[]
[]
[]
[]
[]
[]
[]
["GOBIERNO DE LA REPÚBLICA DE GUATEMALA"]
["AUTORIDAD PARA EL MANEJO SUSTENTABLE DE LA CUENCA Y DEL LAGO DE AMATITLÁN"]
[]
[]
[{"$f":"A3200","v":"Boleta de Liquidación Mensual Renglón 031 \"Jornales\"   Correspondiente al mes de octubre 2015"}]
[{"$f":"A3201","v":{"$error":"#REF!"}}]
[]
["Empleado:",null,{"$f":"C3203","v":{"$error":"#REF!"}},null,null,null,null,null,null,null,"Certificación No.",null,null,{"$f":"N3203","v":47},null,"Fecha:",null,{"$f":"R3203","v":"2014-08-31"}]
["Contrato:",null,{"$f":"C3204","v":{"$error":"#REF!"}},null,null,"Puesto Funcional:",null,null,{"$f":"I3204","v":{"$error":"#REF!"}},null,null,null,"Titulo Jornal:",null,null,{"$f":"P3204","v":{"$error":"#REF!"}}]
["Cuenta / Banco:",null,null,{"$f":"D3205","v":{"$error":"#REF!"}},null,"Banco de Desarrollo Rural, S.A.",null,null,null,null,"Jornal Diario:",null,null,{"$f":"N3205","v":{"$error":"#REF!"}},null,"Días Trabajados:",null,null,{"$f":"S3205","v":{"$error":"#REF!"}}]
[]
[null,null,null,null,null,null,null,null,null,null,null,null,"Ingresos",null,null,null,"Deducciones "]
[]
[null,"031","DEVENGADO",null,null,null,null,null,null,null,null,null,{"$f":"M3209","v":{"$error":"#REF!"}}]
[null,"033","BONO ACUERDO GUBERNATIVO 66-2000",null,null,null,null,null,null,null,null,null,{"$f":"M3210","v":{"$error":"#REF!"}}]
[null,"201","I.G.S.S",null,null,null,null,null,null,null,null,null,null,null,null,null,{"$f":"Q3211","v":{"$error":"#REF!"}}]
[null,"118","MONTEPÍO",null,null,null,null,null,null,null,null,null,null,null,null,null,{"$f":"Q3212","v":0}]
[null,"211","RETENCIONES JUDICIALES",null,null,null,null,null,null,null,null,null,null,null,null,null,{"$f":"Q3213","v":{"$error":"#REF!"}}]
[null,null,null,null,null,null,null,null,null,null,"Total  :",null,{"$f":"SUM(M3248:O3252)","v":{"$error":"#REF!"}},null,null,null,{"$f":"SUM(Q3250:S3252)","v":{"$error":"#REF!"}}]
[null,null,null,null,null,null,null,null,null,null,"Liquido :",null,{"$f":"M3253-Q3253","v":{"$error":"#REF!"}}]
[]
[]
[]
[]
[]
[]
[]
[]
[{"$f":"A3224","v":"María José Ceballos López"},null,null,null,null,null,null,null,null,null,null,null,{"$f":"C3242","v":{"$error":"#REF!"}}]
[{"$f":"A3225","v":"Encargada de Nómina"},null,null,null,null,null,null,null,null,null,null,null,{"$f":"P3243","v":{"$error":"#REF!"}}]
[{"$f":"A3226","v":"AMSA "},null,null,null,null,null,null,null,null,null,null,null,"AMSA"]
[]
["GOBIERNO DE LA REPÚBLICA DE GUATEMALA"]
["AUTORIDAD PARA EL MANEJO SUSTENTABLE DE LA CUENCA Y DEL LAGO DE AMATITLÁN"]
[]
[]
[{"$f":"A3200","v":"Boleta de Liquidación Mensual Renglón 031 \"Jornales\"   Correspondiente al mes de octubre 2015"}]
[{"$f":"A3201","v":{"$error":"#REF!"}}]
[]
["Empleado:",null,{"$f":"#REF!","v":{"$error":"#REF!"}},null,null,null,null,null,null,null,"Certificación No.",null,null,{"$f":"N3203+1","v":48},null,"Fecha:",null,{"$f":"R2209","v":"2014-08-31"}]
["Contrato:",null,{"$f":"#REF!","v":{"$error":"#REF!"}},null,null,"Puesto Funcional:",null,null,{"$f":"#REF!","v":{"$error":"#REF!"}},null,null,null,"Titulo Jornal:",null,null,{"$f":"#REF!","v":{"$error":"#REF!"}}]
["Cuenta / Banco:",null,null,{"$f":"#REF!","v":{"$error":"#REF!"}},null,"Banco de Desarrollo Rural, S.A.",null,null,null,null,"Jornal Diario:",null,null,{"$f":"#REF!","v":{"$error":"#REF!"}},null,"Días Trabajados:",null,null,{"$f":"#REF!","v":{"$error":"#REF!"}}]
[]
[null,null,null,null,null,null,null,null,null,null,null,null,"Ingresos",null,null,null,"Deducciones "]
[]
[null,"031","DEVENGADO",null,null,null,null,null,null,null,null,null,{"$f":"#REF!","v":{"$error":"#REF!"}}]
[null,"033","BONO ACUERDO GUBERNATIVO 66-2000",null,null,null,null,null,null,null,null,null,{"$f":"#REF!","v":{"$error":"#REF!"}}]
[null,"201","I.G.S.S",null,null,null,null,null,null,null,null,null,null,null,null,null,{"$f":"#REF!","v":{"$error":"#REF!"}}]
[null,"120","DECRETO 81-70",null,null,null,null,null,null,null,null,null,null,null,null,null,0]
[null,"118","MONTEPÍO",null,null,null,null,null,null,null,null,null,null,null,null,null,0]
[null,"211","RETENCIONES JUDICIALES",null,null,null,null,null,null,null,null,null,null,null,null,null,{"$f":"#REF!","v":{"$error":"#REF!"}}]
[null,null,null,null,null,null,null,null,null,null,"Total  :",null,{"$f":"SUM(M3280:O3285)","v":{"$error":"#REF!"}},null,null,null,{"$f":"SUM(Q3282:S3285)","v":{"$error":"#REF!"}}]
[null,null,null,null,null,null,null,null,null,null,"Liquido :",null,{"$f":"M3286-Q3286","v":{"$error":"#REF!"}}]
[]
[]
[]
[]
[]
[]
[]
["María José Ceballos López",null,null,null,null,null,null,null,null,null,null,null,{"$f":"C3274","v":{"$error":"#REF!"}}]
["Encargada de Nómina",null,null,null,null,null,null,null,null,null,null,null,{"$f":"P3275","v":{"$error":"#REF!"}}]
["AMSA ",null,null,null,null,null,null,null,null,null,null,null,"AMSA"]
[]
[]
[]
[]
[]
[]
[]
[]
["GOBIERNO DE LA REPÚBLICA DE GUATEMALA"]
["AUTORIDAD PARA EL MANEJO SUSTENTABLE DE LA CUENCA Y DEL LAGO DE AMATITLÁN"]
[]
[]
[{"$f":"A3271","v":"Boleta de Liquidación Mensual Renglón 031 \"Jornales\"   Correspondiente al mes de octubre 2015"}]
[{"$f":"A3272","v":{"$error":"#REF!"}}]
[]
["Empleado:",null,{"$f":"C3274","v":{"$error":"#REF!"}},null,null,null,null,null,null,null,"Certificación No.",null,null,{"$f":"N3274","v":48},null,"Fecha:",null,{"$f":"R3274","v":"2014-08-31"}]
["Contrato:",null,{"$f":"C3275","v":{"$error":"#REF!"}},null,null,"Puesto Funcional:",null,null,{"$f":"I3275","v":{"$error":"#REF!"}},null,null,null,"Titulo Jornal:",null,null,{"$f":"P3275","v":{"$error":"#REF!"}}]
["Cuenta / Banco:",null,null,{"$f":"D3276","v":{"$error":"#REF!"}},null,"Banco de Desarrollo Rural, S.A.",null,null,null,null,"Jornal Diario:",null,null,{"$f":"N3276","v":{"$error":"#REF!"}},null,"Días Trabajados:",null,null,{"$f":"S3276","v":{"$error":"#REF!"}}]
[]
[null,null,null,null,null,null,null,null,null,null,null,null,"Ingresos",null,null,null,"Deducciones "]
[]
[null,"031","DEVENGADO",null,null,null,null,null,null,null,null,null,{"$f":"M3280","v":{"$error":"#REF!"}}]
[null,"033","BONO ACUERDO GUBERNATIVO 66-2000",null,null,null,null,null,null,null,null,null,{"$f":"M3281","v":{"$error":"#REF!"}}]
[null,"201","I.G.S.S",null,null,null,null,null,null,null,null,null,null,null,null,null,{"$f":"Q3282","v":{"$error":"#REF!"}}]
[null,"120","DECRETO 81-70",null,null,null,null,null,null,null,null,null,null,null,null,null,{"$f":"Q3283","v":0}]
[null,"118","MONTEPÍO",null,null,null,null,null,null,null,null,null,null,null,null,null,{"$f":"Q3284","v":0}]
[null,"211","RETENCIONES JUDICIALES",null,null,null,null,null,null,null,null,null,null,null,null,null,{"$f":"Q3285","v":{"$error":"#REF!"}}]
[null,null,null,null,null,null,null,null,null,null,"Total  :",null,{"$f":"SUM(M3319:O3324)","v":{"$error":"#REF!"}},null,null,null,{"$f":"SUM(Q3321:S3324)","v":{"$error":"#REF!"}}]
[null,null,null,null,null,null,null,null,null,null,"Liquido :",null,{"$f":"M3325-Q3325","v":{"$error":"#REF!"}}]
[]
[]
[]
[]
[]
[]
[]
[{"$f":"A3295","v":"María José Ceballos López"},null,null,null,null,null,null,null,null,null,null,null,{"$f":"C3313","v":{"$error":"#REF!"}}]
[{"$f":"A3296","v":"Encargada de Nómina"},null,null,null,null,null,null,null,null,null,null,null,{"$f":"P3314","v":{"$error":"#REF!"}}]
[{"$f":"A3297","v":"AMSA "},null,null,null,null,null,null,null,null,null,null,null,"AMSA"]
[]
["GOBIERNO DE LA REPÚBLICA DE GUATEMALA"]
["AUTORIDAD PARA EL MANEJO SUSTENTABLE DE LA CUENCA Y DEL LAGO DE AMATITLÁN"]
[]
[]
[{"$f":"A3271","v":"Boleta de Liquidación Mensual Renglón 031 \"Jornales\"   Correspondiente al mes de octubre 2015"}]
[{"$f":"A3272","v":{"$error":"#REF!"}}]
[]
["Empleado:",null,{"$f":"#REF!","v":{"$error":"#REF!"}},null,null,null,null,null,null,null,"Certificación No.",null,null,{"$f":"N3274+1","v":49},null,"Fecha:",null,{"$f":"R2280","v":"2014-09-30"}]
["Contrato:",null,{"$f":"#REF!","v":{"$error":"#REF!"}},null,null,"Puesto Funcional:",null,null,{"$f":"#REF!","v":{"$error":"#REF!"}},null,null,null,"Titulo Jornal:",null,null,{"$f":"#REF!","v":{"$error":"#REF!"}}]
["Cuenta / Banco:",null,null,{"$f":"#REF!","v":{"$error":"#REF!"}},null,"Banco de Desarrollo Rural, S.A.",null,null,null,null,"Jornal Diario:",null,null,{"$f":"#REF!","v":{"$error":"#REF!"}},null,"Días Trabajados:",null,null,{"$f":"#REF!","v":{"$error":"#REF!"}}]
[]
[null,null,null,null,null,null,null,null,null,null,null,null,"Ingresos",null,null,null,"Deducciones "]
[]
[null,"031","DEVENGADO",null,null,null,null,null,null,null,null,null,{"$f":"#REF!","v":{"$error":"#REF!"}}]
[null,"033","BONO ACUERDO GUBERNATIVO 66-2000",null,null,null,null,null,null,null,null,null,{"$f":"#REF!","v":{"$error":"#REF!"}}]
[null,"201","I.G.S.S",null,null,null,null,null,null,null,null,null,null,null,null,null,{"$f":"#REF!","v":{"$error":"#REF!"}}]
[null,"118","MONTEPÍO",null,null,null,null,null,null,null,null,null,null,null,null,null,0]
[null,"211","RETENCIONES JUDICIALES",null,null,null,null,null,null,null,null,null,null,null,null,null,{"$f":"#REF!","v":{"$error":"#REF!"}}]
[null,null,null,null,null,null,null,null,null,null,"Total  :",null,{"$f":"SUM(M3351:O3355)","v":{"$error":"#REF!"}},null,null,null,{"$f":"SUM(Q3353:S3355)","v":{"$error":"#REF!"}}]
[null,null,null,null,null,null,null,null,null,null,"Liquido :",null,{"$f":"M3356-Q3356","v":{"$error":"#REF!"}}]
[]
[]
[]
[]
[]
[]
[]
[]
["María José Ceballos López",null,null,null,null,null,null,null,null,null,null,null,{"$f":"C3345","v":{"$error":"#REF!"}}]
["Encargada de Nómina",null,null,null,null,null,null,null,null,null,null,null,{"$f":"P3346","v":{"$error":"#REF!"}}]
["AMSA ",null,null,null,null,null,null,null,null,null,null,null,"AMSA"]
[]
[]
[]
[]
[]
[]
[]
[]
["GOBIERNO DE LA REPÚBLICA DE GUATEMALA"]
["AUTORIDAD PARA EL MANEJO SUSTENTABLE DE LA CUENCA Y DEL LAGO DE AMATITLÁN"]
[]
[]
[{"$f":"A3342","v":"Boleta de Liquidación Mensual Renglón 031 \"Jornales\"   Correspondiente al mes de octubre 2015"}]
[{"$f":"A3343","v":{"$error":"#REF!"}}]
[]
["Empleado:",null,{"$f":"C3345","v":{"$error":"#REF!"}},null,null,null,null,null,null,null,"Certificación No.",null,null,{"$f":"N3345","v":49},null,"Fecha:",null,{"$f":"R3345","v":"2014-09-30"}]
["Contrato:",null,{"$f":"C3346","v":{"$error":"#REF!"}},null,null,"Puesto Funcional:",null,null,{"$f":"I3346","v":{"$error":"#REF!"}},null,null,null,"Titulo Jornal:",null,null,{"$f":"P3346","v":{"$error":"#REF!"}}]
["Cuenta / Banco:",null,null,{"$f":"D3347","v":{"$error":"#REF!"}},null,"Banco de Desarrollo Rural, S.A.",null,null,null,null,"Jornal Diario:",null,null,{"$f":"N3347","v":{"$error":"#REF!"}},null,"Días Trabajados:",null,null,{"$f":"S3347","v":{"$error":"#REF!"}}]
[]
[null,null,null,null,null,null,null,null,null,null,null,null,"Ingresos",null,null,null,"Deducciones "]
[]
[null,"031","DEVENGADO",null,null,null,null,null,null,null,null,null,{"$f":"M3351","v":{"$error":"#REF!"}}]
[null,"033","BONO ACUERDO GUBERNATIVO 66-2000",null,null,null,null,null,null,null,null,null,{"$f":"M3352","v":{"$error":"#REF!"}}]
[null,"201","I.G.S.S",null,null,null,null,null,null,null,null,null,null,null,null,null,{"$f":"Q3353","v":{"$error":"#REF!"}}]
[null,"118","MONTEPÍO",null,null,null,null,null,null,null,null,null,null,null,null,null,{"$f":"Q3354","v":0}]
[null,"211","RETENCIONES JUDICIALES",null,null,null,null,null,null,null,null,null,null,null,null,null,{"$f":"Q3355","v":{"$error":"#REF!"}}]
[null,null,null,null,null,null,null,null,null,null,"Total  :",null,{"$f":"SUM(M3390:O3394)","v":{"$error":"#REF!"}},null,null,null,{"$f":"SUM(Q3392:S3394)","v":{"$error":"#REF!"}}]
[null,null,null,null,null,null,null,null,null,null,"Liquido :",null,{"$f":"M3395-Q3395","v":{"$error":"#REF!"}}]
[]
[]
[]
[]
[]
[]
[]
[]
[{"$f":"A3366","v":"María José Ceballos López"},null,null,null,null,null,null,null,null,null,null,null,{"$f":"C3384","v":{"$error":"#REF!"}}]
[{"$f":"A3367","v":"Encargada de Nómina"},null,null,null,null,null,null,null,null,null,null,null,{"$f":"P3385","v":{"$error":"#REF!"}}]
[{"$f":"A3368","v":"AMSA "},null,null,null,null,null,null,null,null,null,null,null,"AMSA"]
[]
["GOBIERNO DE LA REPÚBLICA DE GUATEMALA"]
["AUTORIDAD PARA EL MANEJO SUSTENTABLE DE LA CUENCA Y DEL LAGO DE AMATITLÁN"]
[]
[]
[{"$f":"A3342","v":"Boleta de Liquidación Mensual Renglón 031 \"Jornales\"   Correspondiente al mes de octubre 2015"}]
[{"$f":"A3343","v":{"$error":"#REF!"}}]
[]
["Empleado:",null,{"$f":"#REF!","v":{"$error":"#REF!"}},null,null,null,null,null,null,null,"Certificación No.",null,null,{"$f":"N3345+1","v":50},null,"Fecha:",null,{"$f":"R2351","v":"2014-08-31"}]
["Contrato:",null,{"$f":"#REF!","v":{"$error":"#REF!"}},null,null,"Puesto Funcional:",null,null,{"$f":"#REF!","v":{"$error":"#REF!"}},null,null,null,"Titulo Jornal:",null,null,{"$f":"#REF!","v":{"$error":"#REF!"}}]
["Cuenta / Banco:",null,null,{"$f":"#REF!","v":{"$error":"#REF!"}},null,"Banco de Desarrollo Rural, S.A.",null,null,null,null,"Jornal Diario:",null,null,{"$f":"#REF!","v":{"$error":"#REF!"}},null,"Días Trabajados:",null,null,{"$f":"#REF!","v":{"$error":"#REF!"}}]
[]
[null,null,null,null,null,null,null,null,null,null,null,null,"Ingresos",null,null,null,"Deducciones "]
[]
[null,"031","DEVENGADO",null,null,null,null,null,null,null,null,null,{"$f":"#REF!","v":{"$error":"#REF!"}}]
[null,"033","BONO ACUERDO GUBERNATIVO 66-2000",null,null,null,null,null,null,null,null,null,{"$f":"#REF!","v":{"$error":"#REF!"}}]
[null,"201","I.G.S.S",null,null,null,null,null,null,null,null,null,null,null,null,null,{"$f":"#REF!","v":{"$error":"#REF!"}}]
[null,"118","MONTEPÍO",null,null,null,null,null,null,null,null,null,null,null,null,null,0]
[null,"211","RETENCIONES JUDICIALES",null,null,null,null,null,null,null,null,null,null,null,null,null,{"$f":"#REF!","v":{"$error":"#REF!"}}]
[null,null,null,null,null,null,null,null,null,null,"Total  :",null,{"$f":"SUM(M3422:O3426)","v":{"$error":"#REF!"}},null,null,null,{"$f":"SUM(Q3424:S3426)","v":{"$error":"#REF!"}}]
[null,null,null,null,null,null,null,null,null,null,"Liquido :",null,{"$f":"M3427-Q3427","v":{"$error":"#REF!"}}]
[]
[]
[]
[]
[]
[]
[]
[]
["María José Ceballos López",null,null,null,null,null,null,null,null,null,null,null,{"$f":"C3416","v":{"$error":"#REF!"}}]
["Encargada de Nómina",null,null,null,null,null,null,null,null,null,null,null,{"$f":"P3417","v":{"$error":"#REF!"}}]
["AMSA ",null,null,null,null,null,null,null,null,null,null,null,"AMSA"]
[]
[]
[]
[]
[]
[]
[]
[]
["GOBIERNO DE LA REPÚBLICA DE GUATEMALA"]
["AUTORIDAD PARA EL MANEJO SUSTENTABLE DE LA CUENCA Y DEL LAGO DE AMATITLÁN"]
[]
[]
[{"$f":"A3413","v":"Boleta de Liquidación Mensual Renglón 031 \"Jornales\"   Correspondiente al mes de octubre 2015"}]
[{"$f":"A3414","v":{"$error":"#REF!"}}]
[]
["Empleado:",null,{"$f":"C3416","v":{"$error":"#REF!"}},null,null,null,null,null,null,null,"Certificación No.",null,null,{"$f":"N3416","v":50},null,"Fecha:",null,{"$f":"R3416","v":"2014-08-31"}]
["Contrato:",null,{"$f":"C3417","v":{"$error":"#REF!"}},null,null,"Puesto Funcional:",null,null,{"$f":"I3417","v":{"$error":"#REF!"}},null,null,null,"Titulo Jornal:",null,null,{"$f":"P3417","v":{"$error":"#REF!"}}]
["Cuenta / Banco:",null,null,{"$f":"D3418","v":{"$error":"#REF!"}},null,"Banco de Desarrollo Rural, S.A.",null,null,null,null,"Jornal Diario:",null,null,{"$f":"N3418","v":{"$error":"#REF!"}},null,"Días Trabajados:",null,null,{"$f":"S3418","v":{"$error":"#REF!"}}]
[]
[null,null,null,null,null,null,null,null,null,null,null,null,"Ingresos",null,null,null,"Deducciones "]
[]
[null,"031","DEVENGADO",null,null,null,null,null,null,null,null,null,{"$f":"M3422","v":{"$error":"#REF!"}}]
[null,"033","BONO ACUERDO GUBERNATIVO 66-2000",null,null,null,null,null,null,null,null,null,{"$f":"M3423","v":{"$error":"#REF!"}}]
[null,"201","I.G.S.S",null,null,null,null,null,null,null,null,null,null,null,null,null,{"$f":"Q3424","v":{"$error":"#REF!"}}]
[null,"118","MONTEPÍO",null,null,null,null,null,null,null,null,null,null,null,null,null,{"$f":"Q3425","v":0}]
[null,"211","RETENCIONES JUDICIALES",null,null,null,null,null,null,null,null,null,null,null,null,null,{"$f":"Q3426","v":{"$error":"#REF!"}}]
[null,null,null,null,null,null,null,null,null,null,"Total  :",null,{"$f":"SUM(M3461:O3465)","v":{"$error":"#REF!"}},null,null,null,{"$f":"SUM(Q3463:S3465)","v":{"$error":"#REF!"}}]
[null,null,null,null,null,null,null,null,null,null,"Liquido :",null,{"$f":"M3466-Q3466","v":{"$error":"#REF!"}}]
[]
[]
[]
[]
[]
[]
[]
[]
[{"$f":"A3437","v":"María José Ceballos López"},null,null,null,null,null,null,null,null,null,null,null,{"$f":"C3455","v":{"$error":"#REF!"}}]
[{"$f":"A3438","v":"Encargada de Nómina"},null,null,null,null,null,null,null,null,null,null,null,{"$f":"P3456","v":{"$error":"#REF!"}}]
[{"$f":"A3439","v":"AMSA "},null,null,null,null,null,null,null,null,null,null,null,"AMSA"]
[]
["GOBIERNO DE LA REPÚBLICA DE GUATEMALA"]
["AUTORIDAD PARA EL MANEJO SUSTENTABLE DE LA CUENCA Y DEL LAGO DE AMATITLÁN"]
[]
[]
[{"$f":"A3413","v":"Boleta de Liquidación Mensual Renglón 031 \"Jornales\"   Correspondiente al mes de octubre 2015"}]
[{"$f":"A3414","v":{"$error":"#REF!"}}]
[]
["Empleado:",null,{"$f":"#REF!","v":{"$error":"#REF!"}},null,null,null,null,null,null,null,"Certificación No.",null,null,{"$f":"N3416+1","v":51},null,"Fecha:",null,{"$f":"R2422","v":"2015-08-31"}]
["Contrato:",null,{"$f":"#REF!","v":{"$error":"#REF!"}},null,null,"Puesto Funcional:",null,null,{"$f":"#REF!","v":{"$error":"#REF!"}},null,null,null,"Titulo Jornal:",null,null,{"$f":"#REF!","v":{"$error":"#REF!"}}]
["Cuenta / Banco:",null,null,{"$f":"#REF!","v":{"$error":"#REF!"}},null,"Banco de Desarrollo Rural, S.A.",null,null,null,null,"Jornal Diario:",null,null,{"$f":"#REF!","v":{"$error":"#REF!"}},null,"Días Trabajados:",null,null,{"$f":"#REF!","v":{"$error":"#REF!"}}]
[]
[null,null,null,null,null,null,null,null,null,null,null,null,"Ingresos",null,null,null,"Deducciones "]
[]
[null,"031","DEVENGADO",null,null,null,null,null,null,null,null,null,{"$f":"#REF!","v":{"$error":"#REF!"}}]
[null,"033","BONO ACUERDO GUBERNATIVO 66-2000",null,null,null,null,null,null,null,null,null,{"$f":"#REF!","v":{"$error":"#REF!"}}]
[null,"201","I.G.S.S",null,null,null,null,null,null,null,null,null,null,null,null,null,{"$f":"#REF!","v":{"$error":"#REF!"}}]
[null,"118","MONTEPÍO",null,null,null,null,null,null,null,null,null,null,null,null,null,0]
[null,"211","RETENCIONES JUDICIALES",null,null,null,null,null,null,null,null,null,null,null,null,null,{"$f":"#REF!","v":{"$error":"#REF!"}}]
[null,null,null,null,null,null,null,null,null,null,"Total  :",null,{"$f":"SUM(M3493:O3497)","v":{"$error":"#REF!"}},null,null,null,{"$f":"SUM(Q3495:S3497)","v":{"$error":"#REF!"}}]
[null,null,null,null,null,null,null,null,null,null,"Liquido :",null,{"$f":"M3498-Q3498","v":{"$error":"#REF!"}}]
[]
[]
[]
[]
[]
[]
[]
[]
["María José Ceballos López",null,null,null,null,null,null,null,null,null,null,null,{"$f":"C3487","v":{"$error":"#REF!"}}]
["Encargada de Nómina",null,null,null,null,null,null,null,null,null,null,null,{"$f":"P3488","v":{"$error":"#REF!"}}]
["AMSA ",null,null,null,null,null,null,null,null,null,null,null,"AMSA"]
[]
[]
[]
[]
[]
[]
[]
[]
["GOBIERNO DE LA REPÚBLICA DE GUATEMALA"]
["AUTORIDAD PARA EL MANEJO SUSTENTABLE DE LA CUENCA Y DEL LAGO DE AMATITLÁN"]
[]
[]
[{"$f":"A3484","v":"Boleta de Liquidación Mensual Renglón 031 \"Jornales\"   Correspondiente al mes de octubre 2015"}]
[{"$f":"A3485","v":{"$error":"#REF!"}}]
[]
["Empleado:",null,{"$f":"C3487","v":{"$error":"#REF!"}},null,null,null,null,null,null,null,"Certificación No.",null,null,{"$f":"N3487","v":51},null,"Fecha:",null,{"$f":"R3487","v":"2015-08-31"}]
["Contrato:",null,{"$f":"C3488","v":{"$error":"#REF!"}},null,null,"Puesto Funcional:",null,null,{"$f":"I3488","v":{"$error":"#REF!"}},null,null,null,"Titulo Jornal:",null,null,{"$f":"P3488","v":{"$error":"#REF!"}}]
["Cuenta / Banco:",null,null,{"$f":"D3489","v":{"$error":"#REF!"}},null,"Banco de Desarrollo Rural, S.A.",null,null,null,null,"Jornal Diario:",null,null,{"$f":"N3489","v":{"$error":"#REF!"}},null,"Días Trabajados:",null,null,{"$f":"S3489","v":{"$error":"#REF!"}}]
[]
[null,null,null,null,null,null,null,null,null,null,null,null,"Ingresos",null,null,null,"Deducciones "]
[]
[null,"031","DEVENGADO",null,null,null,null,null,null,null,null,null,{"$f":"M3493","v":{"$error":"#REF!"}}]
[null,"033","BONO ACUERDO GUBERNATIVO 66-2000",null,null,null,null,null,null,null,null,null,{"$f":"M3494","v":{"$error":"#REF!"}}]
[null,"201","I.G.S.S",null,null,null,null,null,null,null,null,null,null,null,null,null,{"$f":"Q3495","v":{"$error":"#REF!"}}]
[null,"118","MONTEPÍO",null,null,null,null,null,null,null,null,null,null,null,null,null,{"$f":"Q3496","v":0}]
[null,"211","RETENCIONES JUDICIALES",null,null,null,null,null,null,null,null,null,null,null,null,null,{"$f":"Q3497","v":{"$error":"#REF!"}}]
[null,null,null,null,null,null,null,null,null,null,"Total  :",null,{"$f":"SUM(M3532:O3536)","v":{"$error":"#REF!"}},null,null,null,{"$f":"SUM(Q3534:S3536)","v":{"$error":"#REF!"}}]
[null,null,null,null,null,null,null,null,null,null,"Liquido :",null,{"$f":"M3537-Q3537","v":{"$error":"#REF!"}}]
[]
[]
[]
[]
[]
[]
[]
[]
[{"$f":"A3508","v":"María José Ceballos López"},null,null,null,null,null,null,null,null,null,null,null,{"$f":"C3526","v":{"$error":"#REF!"}}]
[{"$f":"A3509","v":"Encargada de Nómina"},null,null,null,null,null,null,null,null,null,null,null,{"$f":"P3527","v":{"$error":"#REF!"}}]
[{"$f":"A3510","v":"AMSA "},null,null,null,null,null,null,null,null,null,null,null,"AMSA"]
[]
["GOBIERNO DE LA REPÚBLICA DE GUATEMALA"]
["AUTORIDAD PARA EL MANEJO SUSTENTABLE DE LA CUENCA Y DEL LAGO DE AMATITLÁN"]
[]
[]
[{"$f":"A3484","v":"Boleta de Liquidación Mensual Renglón 031 \"Jornales\"   Correspondiente al mes de octubre 2015"}]
[{"$f":"A3485","v":{"$error":"#REF!"}}]
[]
["Empleado:",null,{"$f":"#REF!","v":{"$error":"#REF!"}},null,null,null,null,null,null,null,"Certificación No.",null,null,{"$f":"N3487+1","v":52},null,"Fecha:",null,{"$f":"R2493","v":"2014-08-31"}]
["Contrato:",null,{"$f":"#REF!","v":{"$error":"#REF!"}},null,null,"Puesto Funcional:",null,null,{"$f":"#REF!","v":{"$error":"#REF!"}},null,null,null,"Titulo Jornal:",null,null,{"$f":"#REF!","v":{"$error":"#REF!"}}]
["Cuenta / Banco:",null,null,{"$f":"#REF!","v":{"$error":"#REF!"}},null,"Banco de Desarrollo Rural, S.A.",null,null,null,null,"Jornal Diario:",null,null,{"$f":"#REF!","v":{"$error":"#REF!"}},null,"Días Trabajados:",null,null,{"$f":"#REF!","v":{"$error":"#REF!"}}]
[]
[null,null,null,null,null,null,null,null,null,null,null,null,"Ingresos",null,null,null,"Deducciones "]
[]
[null,"031","DEVENGADO",null,null,null,null,null,null,null,null,null,{"$f":"#REF!","v":{"$error":"#REF!"}}]
[null,"033","BONO ACUERDO GUBERNATIVO 66-2000",null,null,null,null,null,null,null,null,null,{"$f":"#REF!","v":{"$error":"#REF!"}}]
[null,"201","I.G.S.S",null,null,null,null,null,null,null,null,null,null,null,null,null,{"$f":"#REF!","v":{"$error":"#REF!"}}]
[null,"118","MONTEPÍO",null,null,null,null,null,null,null,null,null,null,null,null,null,0]
[null,"211","RETENCIONES JUDICIALES",null,null,null,null,null,null,null,null,null,null,null,null,null,{"$f":"#REF!","v":{"$error":"#REF!"}}]
[null,null,null,null,null,null,null,null,null,null,"Total  :",null,{"$f":"SUM(M3564:O3568)","v":{"$error":"#REF!"}},null,null,null,{"$f":"SUM(Q3566:S3568)","v":{"$error":"#REF!"}}]
[null,null,null,null,null,null,null,null,null,null,"Liquido :",null,{"$f":"M3569-Q3569","v":{"$error":"#REF!"}}]
[]
[]
[]
[]
[]
[]
[]
[]
["María José Ceballos López",null,null,null,null,null,null,null,null,null,null,null,{"$f":"C3558","v":{"$error":"#REF!"}}]
["Encargada de Nómina",null,null,null,null,null,null,null,null,null,null,null,{"$f":"P3559","v":{"$error":"#REF!"}}]
["AMSA ",null,null,null,null,null,null,null,null,null,null,null,"AMSA"]
[]
[]
[]
[]
[]
[]
[]
[]
["GOBIERNO DE LA REPÚBLICA DE GUATEMALA"]
["AUTORIDAD PARA EL MANEJO SUSTENTABLE DE LA CUENCA Y DEL LAGO DE AMATITLÁN"]
[]
[]
[{"$f":"A3555","v":"Boleta de Liquidación Mensual Renglón 031 \"Jornales\"   Correspondiente al mes de octubre 2015"}]
[{"$f":"A3556","v":{"$error":"#REF!"}}]
[]
["Empleado:",null,{"$f":"C3558","v":{"$error":"#REF!"}},null,null,null,null,null,null,null,"Certificación No.",null,null,{"$f":"N3558","v":52},null,"Fecha:",null,{"$f":"R3558","v":"2014-08-31"}]
["Contrato:",null,{"$f":"C3559","v":{"$error":"#REF!"}},null,null,"Puesto Funcional:",null,null,{"$f":"I3559","v":{"$error":"#REF!"}},null,null,null,"Titulo Jornal:",null,null,{"$f":"P3559","v":{"$error":"#REF!"}}]
["Cuenta / Banco:",null,null,{"$f":"D3560","v":{"$error":"#REF!"}},null,"Banco de Desarrollo Rural, S.A.",null,null,null,null,"Jornal Diario:",null,null,{"$f":"N3560","v":{"$error":"#REF!"}},null,"Días Trabajados:",null,null,{"$f":"S3560","v":{"$error":"#REF!"}}]
[]
[null,null,null,null,null,null,null,null,null,null,null,null,"Ingresos",null,null,null,"Deducciones "]
[]
[null,"031","DEVENGADO",null,null,null,null,null,null,null,null,null,{"$f":"M3564","v":{"$error":"#REF!"}}]
[null,"033","BONO ACUERDO GUBERNATIVO 66-2000",null,null,null,null,null,null,null,null,null,{"$f":"M3565","v":{"$error":"#REF!"}}]
[null,"201","I.G.S.S",null,null,null,null,null,null,null,null,null,null,null,null,null,{"$f":"Q3566","v":{"$error":"#REF!"}}]
[null,"118","MONTEPÍO",null,null,null,null,null,null,null,null,null,null,null,null,null,{"$f":"Q3567","v":0}]
[null,"211","RETENCIONES JUDICIALES",null,null,null,null,null,null,null,null,null,null,null,null,null,{"$f":"Q3568","v":{"$error":"#REF!"}}]
[null,null,null,null,null,null,null,null,null,null,"Total  :",null,{"$f":"SUM(M3603:O3607)","v":{"$error":"#REF!"}},null,null,null,{"$f":"SUM(Q3605:S3607)","v":{"$error":"#REF!"}}]
[null,null,null,null,null,null,null,null,null,null,"Liquido :",null,{"$f":"M3608-Q3608","v":{"$error":"#REF!"}}]
[]
[]
[]
[]
[]
[]
[]
[]
[{"$f":"A3579","v":"María José Ceballos López"},null,null,null,null,null,null,null,null,null,null,null,{"$f":"C3597","v":{"$error":"#REF!"}}]
[{"$f":"A3580","v":"Encargada de Nómina"},null,null,null,null,null,null,null,null,null,null,null,{"$f":"P3598","v":{"$error":"#REF!"}}]
[{"$f":"A3581","v":"AMSA "},null,null,null,null,null,null,null,null,null,null,null,"AMSA"]
[]
["GOBIERNO DE LA REPÚBLICA DE GUATEMALA"]
["AUTORIDAD PARA EL MANEJO SUSTENTABLE DE LA CUENCA Y DEL LAGO DE AMATITLÁN"]
[]
[]
[{"$f":"A3555","v":"Boleta de Liquidación Mensual Renglón 031 \"Jornales\"   Correspondiente al mes de octubre 2015"}]
[{"$f":"A3556","v":{"$error":"#REF!"}}]
[]
["Empleado:",null,{"$f":"#REF!","v":{"$error":"#REF!"}},null,null,null,null,null,null,null,"Certificación No.",null,null,{"$f":"N3558+1","v":53},null,"Fecha:",null,{"$f":"R8","v":"2014-08-31"}]
["Contrato:",null,{"$f":"#REF!","v":{"$error":"#REF!"}},null,null,"Puesto Funcional:",null,null,{"$f":"#REF!","v":{"$error":"#REF!"}},null,null,null,"Titulo Jornal:",null,null,{"$f":"#REF!","v":{"$error":"#REF!"}}]
["Cuenta / Banco:",null,null,{"$f":"#REF!","v":{"$error":"#REF!"}},null,"Banco de Desarrollo Rural, S.A.",null,null,null,null,"Jornal Diario:",null,null,{"$f":"#REF!","v":{"$error":"#REF!"}},null,"Días Trabajados:",null,null,{"$f":"#REF!","v":{"$error":"#REF!"}}]
[]
[null,null,null,null,null,null,null,null,null,null,null,null,"Ingresos",null,null,null,"Deducciones "]
[]
[null,"031","DEVENGADO",null,null,null,null,null,null,null,null,null,{"$f":"#REF!","v":{"$error":"#REF!"}}]
[null,"033","BONO ACUERDO GUBERNATIVO 66-2000",null,null,null,null,null,null,null,null,null,{"$f":"#REF!","v":{"$error":"#REF!"}}]
[null,"201","I.G.S.S",null,null,null,null,null,null,null,null,null,null,null,null,null,{"$f":"#REF!","v":{"$error":"#REF!"}}]
[null,"118","MONTEPÍO",null,null,null,null,null,null,null,null,null,null,null,null,null,0]
[null,"211","RETENCIONES JUDICIALES",null,null,null,null,null,null,null,null,null,null,null,null,null,{"$f":"#REF!","v":{"$error":"#REF!"}}]
[null,null,null,null,null,null,null,null,null,null,"Total  :",null,{"$f":"SUM(M3635:O3639)","v":{"$error":"#REF!"}},null,null,null,{"$f":"SUM(Q3637:S3639)","v":{"$error":"#REF!"}}]
[null,null,null,null,null,null,null,null,null,null,"Liquido :",null,{"$f":"M3640-Q3640","v":{"$error":"#REF!"}}]
[]
[]
[]
[]
[]
[]
[]
[]
["María José Ceballos López",null,null,null,null,null,null,null,null,null,null,null,{"$f":"C3629","v":{"$error":"#REF!"}}]
["Encargada de Nómina",null,null,null,null,null,null,null,null,null,null,null,{"$f":"P3630","v":{"$error":"#REF!"}}]
["AMSA ",null,null,null,null,null,null,null,null,null,null,null,"AMSA"]
[]
[]
[]
[]
[]
[]
[]
[]
["GOBIERNO DE LA REPÚBLICA DE GUATEMALA"]
["AUTORIDAD PARA EL MANEJO SUSTENTABLE DE LA CUENCA Y DEL LAGO DE AMATITLÁN"]
[]
[]
[{"$f":"A3626","v":"Boleta de Liquidación Mensual Renglón 031 \"Jornales\"   Correspondiente al mes de octubre 2015"}]
[{"$f":"A3627","v":{"$error":"#REF!"}}]
[]
["Empleado:",null,{"$f":"C3629","v":{"$error":"#REF!"}},null,null,null,null,null,null,null,"Certificación No.",null,null,{"$f":"N3629","v":53},null,"Fecha:",null,{"$f":"R3629","v":"2014-08-31"}]
["Contrato:",null,{"$f":"C3630","v":{"$error":"#REF!"}},null,null,"Puesto Funcional:",null,null,{"$f":"I3630","v":{"$error":"#REF!"}},null,null,null,"Titulo Jornal:",null,null,{"$f":"P3630","v":{"$error":"#REF!"}}]
["Cuenta / Banco:",null,null,{"$f":"D3631","v":{"$error":"#REF!"}},null,"Banco de Desarrollo Rural, S.A.",null,null,null,null,"Jornal Diario:",null,null,{"$f":"N3631","v":{"$error":"#REF!"}},null,"Días Trabajados:",null,null,{"$f":"S3631","v":{"$error":"#REF!"}}]
[]
[null,null,null,null,null,null,null,null,null,null,null,null,"Ingresos",null,null,null,"Deducciones "]
[]
[null,"031","DEVENGADO",null,null,null,null,null,null,null,null,null,{"$f":"M3635","v":{"$error":"#REF!"}}]
[null,"033","BONO ACUERDO GUBERNATIVO 66-2000",null,null,null,null,null,null,null,null,null,{"$f":"M3636","v":{"$error":"#REF!"}}]
[null,"201","I.G.S.S",null,null,null,null,null,null,null,null,null,null,null,null,null,{"$f":"Q3637","v":{"$error":"#REF!"}}]
[null,"118","MONTEPÍO",null,null,null,null,null,null,null,null,null,null,null,null,null,{"$f":"Q3638","v":0}]
[null,"211","RETENCIONES JUDICIALES",null,null,null,null,null,null,null,null,null,null,null,null,null,{"$f":"Q3639","v":{"$error":"#REF!"}}]
[null,null,null,null,null,null,null,null,null,null,"Total  :",null,{"$f":"SUM(M3674:O3678)","v":{"$error":"#REF!"}},null,null,null,{"$f":"SUM(Q3676:S3678)","v":{"$error":"#REF!"}}]
[null,null,null,null,null,null,null,null,null,null,"Liquido :",null,{"$f":"M3679-Q3679","v":{"$error":"#REF!"}}]
[]
[]
[]
[]
[]
[]
[]
[]
[{"$f":"A3650","v":"María José Ceballos López"},null,null,null,null,null,null,null,null,null,null,null,{"$f":"C3668","v":{"$error":"#REF!"}}]
[{"$f":"A3651","v":"Encargada de Nómina"},null,null,null,null,null,null,null,null,null,null,null,{"$f":"P3669","v":{"$error":"#REF!"}}]
[{"$f":"A3652","v":"AMSA "},null,null,null,null,null,null,null,null,null,null,null,"AMSA"]